Workbook

Sheet 1．作成に係る計算表
A1: STEP①：下記の計算表の作成する。 | J1: STEP②：共同取組配分方法の選択→ | T1: 均等割
A2: 収支状況報告書作成に係る計算表
W3: 集落協定
A4: １ 交付金に係る配分額及び共同取組活動の支出額
A5: （１）配分総額
I6: 総 額（円） | N6: 配分等の基礎
B7: ①個人配分分
B8: ②共同取組活動分
B9: ③合計 | I9: =SUM(I7:M8) -> 0
A10: （２）共同取組活動支出額
B11: 支出項目 | L11: 支出額（円） | Q11: 備考
B12: ⑤共同取組活動費 | C12: ④役員報酬等 | D12: 役員報酬
D13: 日当
D14: その他手当等
D15: ④合計額 | L15: =SUM(L12:P14) -> 0
C16: 共同作業経費
B24: ⑤共同取組活動費合計額（④を含む） | L24: =L15+SUM(L16:P23) -> 0 | Q24: 内訳：
B25: ⑥ | C25: ⑤のうち、必要経費に該当しない経費の合計額 | L25: 0
B26: 残（積立・繰越）額 | L26: 0 | Q26: 過年残（積立）額累計

Sheet ２．参加者別明細
A1: STEP③：参加者別に個人配分額、日当等受領額、共同取組割当の適用の有無を入力する。 | L1: STEP④：端数がある場合は端数調整額を入力 | AA1: STEP⑤減価償却資産取得額を入力→ | AE1: STEP⑥原価償却費を入力→ | AJ1: STEP⑦：協定参加者別シートへ移動
B2: 合計 | C2: =SUM(C4:C88) -> 0 | D2: =COUNTIF(D4:D88,"有") -> 0 | E2: =SUM(E4:E88) -> 0 | F2: =SUM(F4:F88) -> 0 | G2: =SUM(G4:G88) -> 0 | L2: 合計 | M2: =SUM(M4:M88) -> 0 | N2: ='1．作成に係る計算表'!I8-M2 -> 0 | O2: =SUM(O4:O88) -> 0 | P2: ='1．作成に係る計算表'!I8-O2 -> 0 | R2: =SUM(R4:R88) -> 0 | S2: ='1．作成に係る計算表'!L24-R2 -> 0 | T2: =SUM(T4:T88) -> 0 | U2: ='1．作成に係る計算表'!L24-T2 -> 0 | V2: =SUM(V4:V88) -> 0 | W2: ='1．作成に係る計算表'!L25-V2 -> 0 | X2: =SUM(X4:X88) -> 0 | Y2: ='1．作成に係る計算表'!L25-X2 -> 0 | AA2: =SUM(AA4:AA88) -> 0 | AB2: =AC1-AA2 -> 0 | AC2: =SUM(AC4:AC88) -> 0 | AD2: =AC1-AC2 -> 0 | AE2: =SUM(AE4:AE88) -> 0 | AF2: =AG1-AE2 -> 0 | AG2: =SUM(AG4:AG88) -> 0 | AH2: =AG1-AG2 -> 0
A3: No | B3: 参加者氏名 ↓ | C3: 個人配分額 ↓ | D3: 協定農用地の有無 （共同取組割当の適用） ※協定農用地に係る農業者は「有」を選択 ↓ | E3: 共同取組割当額 | F3: 日当等受領額 ↓ | G3: 共同取組支出額 | H3: 必要経費に該当しない支出額 | I3: 原価償却資産取得費 | J3: 原価償却費 | L3: 個人配分額順位 | M3: 共同(均等割） 端数切捨 | N3: 端数調整↓ | O3: 共同(面積割） 端数切捨 | P3: 端数調整↓ | Q3: 個人配分割合 | R3: 共同支出額 (均等割）端数切捨 | S3: 端数調整↓ | T3: 共同支出額 (面積割）端数切捨 | U3: 端数調整↓ | V3: 経費以外 支出額（均等割） | W3: 端数調整↓ | X3: 経費以外 支出額（面積割） | Y3: 端数調整↓ | AA3: 減価償却資産取得額（均等割） | AB3: 端数調整↓ | AC3: 減価償却資産取得額（面積割） | AD3: 端数調整↓ | AE3: 減価償却費（均等割） | AF3: 端数調整↓ | AG3: 減価償却費（面積割） | AH3: 端数調整↓
A4: 1 | E4: =IF(M4="","",IF('1．作成に係る計算表'!$T$1="均等割",M4+N4,O4+P4)) ->  | G4: =IF(M4="","",IF('1．作成に係る計算表'!$T$1="均等割",R4+S4,T4+U4)) ->  | H4: =IF(M4="","",IF('1．作成に係る計算表'!$T$1="均等割",V4+W4,X4+Y4)) ->  | I4: =IF(M4="","",IF('1．作成に係る計算表'!$T$1="均等割",AA4+AB4,AC4+AD4)) ->  | J4: =IF(M4="","",IF('1．作成に係る計算表'!$T$1="均等割",AE4+AF4,AG4+AH4)) ->  | L4: =_xlfn.RANK.AVG(C4,$C$4:$C$88) ->  | M4: =IF(D4="有",ROUNDDOWN('1．作成に係る計算表'!$I$8/$D$2,0),IF(D4="無",0,"")) ->  | O4: =IF(D4="有",ROUNDDOWN('1．作成に係る計算表'!$I$8*Q4,0),IF(D4="無",0,"")) ->  | Q4: =C4/SUMIFS($C$4:$C$88,$D$4:$D$88,"有") ->  | R4: =IF(D4="有",ROUNDDOWN('1．作成に係る計算表'!$L$24/$D$2,0),IF(D4="無",0,"")) ->  | T4: =IF(D4="有",ROUNDDOWN('1．作成に係る計算表'!$L$24*Q4,0),IF(D4="無",0,"")) ->  | V4: =IF(D4="有",ROUNDDOWN('1．作成に係る計算表'!$L$25/$D$2,0),IF(D4="無",0,"")) ->  | X4: =IF(D4="有",ROUNDDOWN(Q4*'1．作成に係る計算表'!$L$25,0),IF(D4="無",0,"")) ->  | AA4: =IF(D4="有",ROUNDDOWN($AC$1/$D$2,0),IF(D4="無",0,"")) ->  | AC4: =IF(D4="有",ROUNDDOWN(Q4*$AC$1,0),IF(D4="無",0,"")) ->  | AE4: =IF(D4="有",ROUNDDOWN($AG$1/$D$2,0),IF(D4="無",0,"")) ->  | AG4: =IF(D4="有",ROUNDDOWN(Q4*$AG$1,0),IF(D4="無",0,"")) -> 
A5: 2 | E5: =IF(M5="","",IF('1．作成に係る計算表'!$T$1="均等割",M5+N5,O5+P5)) ->  | G5: =IF(M5="","",IF('1．作成に係る計算表'!$T$1="均等割",R5+S5,T5+U5)) ->  | H5: =IF(M5="","",IF('1．作成に係る計算表'!$T$1="均等割",V5+W5,X5+Y5)) ->  | I5: =IF(M5="","",IF('1．作成に係る計算表'!$T$1="均等割",AA5+AB5,AC5+AD5)) ->  | J5: =IF(M5="","",IF('1．作成に係る計算表'!$T$1="均等割",AE5+AF5,AG5+AH5)) ->  | M5: =IF(D5="有",ROUNDDOWN('1．作成に係る計算表'!$I$8/$D$2,0),IF(D5="無",0,"")) ->  | O5: =IF(D5="有",ROUNDDOWN('1．作成に係る計算表'!$I$8*Q5,0),IF(D5="無",0,"")) ->  | R5: =IF(D5="有",ROUNDDOWN('1．作成に係る計算表'!$L$24/$D$2,0),IF(D5="無",0,"")) ->  | T5: =IF(D5="有",ROUNDDOWN('1．作成に係る計算表'!$L$24*Q5,0),IF(D5="無",0,"")) ->  | V5: =IF(D5="有",ROUNDDOWN('1．作成に係る計算表'!$L$25/$D$2,0),IF(D5="無",0,"")) ->  | X5: =IF(D5="有",ROUNDDOWN(Q5*'1．作成に係る計算表'!$L$25,0),IF(D5="無",0,"")) -> 
A6: 3 | E6: =IF(M6="","",IF('1．作成に係る計算表'!$T$1="均等割",M6+N6,O6+P6)) ->  | G6: =IF(M6="","",IF('1．作成に係る計算表'!$T$1="均等割",R6+S6,T6+U6)) ->  | H6: =IF(M6="","",IF('1．作成に係る計算表'!$T$1="均等割",V6+W6,X6+Y6)) ->  | I6: =IF(M6="","",IF('1．作成に係る計算表'!$T$1="均等割",AA6+AB6,AC6+AD6)) ->  | J6: =IF(M6="","",IF('1．作成に係る計算表'!$T$1="均等割",AE6+AF6,AG6+AH6)) ->  | M6: =IF(D6="有",ROUNDDOWN('1．作成に係る計算表'!$I$8/$D$2,0),IF(D6="無",0,"")) ->  | O6: =IF(D6="有",ROUNDDOWN('1．作成に係る計算表'!$I$8*Q6,0),IF(D6="無",0,"")) ->  | R6: =IF(D6="有",ROUNDDOWN('1．作成に係る計算表'!$L$24/$D$2,0),IF(D6="無",0,"")) ->  | T6: =IF(D6="有",ROUNDDOWN('1．作成に係る計算表'!$L$24*Q6,0),IF(D6="無",0,"")) ->  | V6: =IF(D6="有",ROUNDDOWN('1．作成に係る計算表'!$L$25/$D$2,0),IF(D6="無",0,"")) ->  | X6: =IF(D6="有",ROUNDDOWN(Q6*'1．作成に係る計算表'!$L$25,0),IF(D6="無",0,"")) -> 
A7: 4 | E7: =IF(M7="","",IF('1．作成に係る計算表'!$T$1="均等割",M7+N7,O7+P7)) ->  | G7: =IF(M7="","",IF('1．作成に係る計算表'!$T$1="均等割",R7+S7,T7+U7)) ->  | H7: =IF(M7="","",IF('1．作成に係る計算表'!$T$1="均等割",V7+W7,X7+Y7)) ->  | I7: =IF(M7="","",IF('1．作成に係る計算表'!$T$1="均等割",AA7+AB7,AC7+AD7)) ->  | J7: =IF(M7="","",IF('1．作成に係る計算表'!$T$1="均等割",AE7+AF7,AG7+AH7)) ->  | M7: =IF(D7="有",ROUNDDOWN('1．作成に係る計算表'!$I$8/$D$2,0),IF(D7="無",0,"")) ->  | O7: =IF(D7="有",ROUNDDOWN('1．作成に係る計算表'!$I$8*Q7,0),IF(D7="無",0,"")) ->  | R7: =IF(D7="有",ROUNDDOWN('1．作成に係る計算表'!$L$24/$D$2,0),IF(D7="無",0,"")) ->  | T7: =IF(D7="有",ROUNDDOWN('1．作成に係る計算表'!$L$24*Q7,0),IF(D7="無",0,"")) ->  | V7: =IF(D7="有",ROUNDDOWN('1．作成に係る計算表'!$L$25/$D$2,0),IF(D7="無",0,"")) ->  | X7: =IF(D7="有",ROUNDDOWN(Q7*'1．作成に係る計算表'!$L$25,0),IF(D7="無",0,"")) -> 
A8: 5 | E8: =IF(M8="","",IF('1．作成に係る計算表'!$T$1="均等割",M8+N8,O8+P8)) ->  | G8: =IF(M8="","",IF('1．作成に係る計算表'!$T$1="均等割",R8+S8,T8+U8)) ->  | H8: =IF(M8="","",IF('1．作成に係る計算表'!$T$1="均等割",V8+W8,X8+Y8)) ->  | I8: =IF(M8="","",IF('1．作成に係る計算表'!$T$1="均等割",AA8+AB8,AC8+AD8)) ->  | J8: =IF(M8="","",IF('1．作成に係る計算表'!$T$1="均等割",AE8+AF8,AG8+AH8)) ->  | M8: =IF(D8="有",ROUNDDOWN('1．作成に係る計算表'!$I$8/$D$2,0),IF(D8="無",0,"")) ->  | O8: =IF(D8="有",ROUNDDOWN('1．作成に係る計算表'!$I$8*Q8,0),IF(D8="無",0,"")) ->  | R8: =IF(D8="有",ROUNDDOWN('1．作成に係る計算表'!$L$24/$D$2,0),IF(D8="無",0,"")) ->  | T8: =IF(D8="有",ROUNDDOWN('1．作成に係る計算表'!$L$24*Q8,0),IF(D8="無",0,"")) ->  | V8: =IF(D8="有",ROUNDDOWN('1．作成に係る計算表'!$L$25/$D$2,0),IF(D8="無",0,"")) ->  | X8: =IF(D8="有",ROUNDDOWN(Q8*'1．作成に係る計算表'!$L$25,0),IF(D8="無",0,"")) -> 
A9: 6 | E9: =IF(M9="","",IF('1．作成に係る計算表'!$T$1="均等割",M9+N9,O9+P9)) ->  | G9: =IF(M9="","",IF('1．作成に係る計算表'!$T$1="均等割",R9+S9,T9+U9)) ->  | H9: =IF(M9="","",IF('1．作成に係る計算表'!$T$1="均等割",V9+W9,X9+Y9)) ->  | I9: =IF(M9="","",IF('1．作成に係る計算表'!$T$1="均等割",AA9+AB9,AC9+AD9)) ->  | J9: =IF(M9="","",IF('1．作成に係る計算表'!$T$1="均等割",AE9+AF9,AG9+AH9)) ->  | M9: =IF(D9="有",ROUNDDOWN('1．作成に係る計算表'!$I$8/$D$2,0),IF(D9="無",0,"")) ->  | O9: =IF(D9="有",ROUNDDOWN('1．作成に係る計算表'!$I$8*Q9,0),IF(D9="無",0,"")) ->  | R9: =IF(D9="有",ROUNDDOWN('1．作成に係る計算表'!$L$24/$D$2,0),IF(D9="無",0,"")) ->  | T9: =IF(D9="有",ROUNDDOWN('1．作成に係る計算表'!$L$24*Q9,0),IF(D9="無",0,"")) ->  | V9: =IF(D9="有",ROUNDDOWN('1．作成に係る計算表'!$L$25/$D$2,0),IF(D9="無",0,"")) ->  | X9: =IF(D9="有",ROUNDDOWN(Q9*'1．作成に係る計算表'!$L$25,0),IF(D9="無",0,"")) -> 
A10: 7 | E10: =IF(M10="","",IF('1．作成に係る計算表'!$T$1="均等割",M10+N10,O10+P10)) ->  | G10: =IF(M10="","",IF('1．作成に係る計算表'!$T$1="均等割",R10+S10,T10+U10)) ->  | H10: =IF(M10="","",IF('1．作成に係る計算表'!$T$1="均等割",V10+W10,X10+Y10)) ->  | I10: =IF(M10="","",IF('1．作成に係る計算表'!$T$1="均等割",AA10+AB10,AC10+AD10)) ->  | J10: =IF(M10="","",IF('1．作成に係る計算表'!$T$1="均等割",AE10+AF10,AG10+AH10)) ->  | M10: =IF(D10="有",ROUNDDOWN('1．作成に係る計算表'!$I$8/$D$2,0),IF(D10="無",0,"")) ->  | O10: =IF(D10="有",ROUNDDOWN('1．作成に係る計算表'!$I$8*Q10,0),IF(D10="無",0,"")) ->  | R10: =IF(D10="有",ROUNDDOWN('1．作成に係る計算表'!$L$24/$D$2,0),IF(D10="無",0,"")) ->  | T10: =IF(D10="有",ROUNDDOWN('1．作成に係る計算表'!$L$24*Q10,0),IF(D10="無",0,"")) ->  | V10: =IF(D10="有",ROUNDDOWN('1．作成に係る計算表'!$L$25/$D$2,0),IF(D10="無",0,"")) ->  | X10: =IF(D10="有",ROUNDDOWN(Q10*'1．作成に係る計算表'!$L$25,0),IF(D10="無",0,"")) -> 
A11: 8 | E11: =IF(M11="","",IF('1．作成に係る計算表'!$T$1="均等割",M11+N11,O11+P11)) ->  | G11: =IF(M11="","",IF('1．作成に係る計算表'!$T$1="均等割",R11+S11,T11+U11)) ->  | H11: =IF(M11="","",IF('1．作成に係る計算表'!$T$1="均等割",V11+W11,X11+Y11)) ->  | I11: =IF(M11="","",IF('1．作成に係る計算表'!$T$1="均等割",AA11+AB11,AC11+AD11)) ->  | J11: =IF(M11="","",IF('1．作成に係る計算表'!$T$1="均等割",AE11+AF11,AG11+AH11)) ->  | M11: =IF(D11="有",ROUNDDOWN('1．作成に係る計算表'!$I$8/$D$2,0),IF(D11="無",0,"")) ->  | O11: =IF(D11="有",ROUNDDOWN('1．作成に係る計算表'!$I$8*Q11,0),IF(D11="無",0,"")) ->  | R11: =IF(D11="有",ROUNDDOWN('1．作成に係る計算表'!$L$24/$D$2,0),IF(D11="無",0,"")) ->  | T11: =IF(D11="有",ROUNDDOWN('1．作成に係る計算表'!$L$24*Q11,0),IF(D11="無",0,"")) ->  | V11: =IF(D11="有",ROUNDDOWN('1．作成に係る計算表'!$L$25/$D$2,0),IF(D11="無",0,"")) ->  | X11: =IF(D11="有",ROUNDDOWN(Q11*'1．作成に係る計算表'!$L$25,0),IF(D11="無",0,"")) -> 
A12: 9 | E12: =IF(M12="","",IF('1．作成に係る計算表'!$T$1="均等割",M12+N12,O12+P12)) ->  | G12: =IF(M12="","",IF('1．作成に係る計算表'!$T$1="均等割",R12+S12,T12+U12)) ->  | H12: =IF(M12="","",IF('1．作成に係る計算表'!$T$1="均等割",V12+W12,X12+Y12)) ->  | I12: =IF(M12="","",IF('1．作成に係る計算表'!$T$1="均等割",AA12+AB12,AC12+AD12)) ->  | J12: =IF(M12="","",IF('1．作成に係る計算表'!$T$1="均等割",AE12+AF12,AG12+AH12)) ->  | M12: =IF(D12="有",ROUNDDOWN('1．作成に係る計算表'!$I$8/$D$2,0),IF(D12="無",0,"")) ->  | O12: =IF(D12="有",ROUNDDOWN('1．作成に係る計算表'!$I$8*Q12,0),IF(D12="無",0,"")) ->  | R12: =IF(D12="有",ROUNDDOWN('1．作成に係る計算表'!$L$24/$D$2,0),IF(D12="無",0,"")) ->  | T12: =IF(D12="有",ROUNDDOWN('1．作成に係る計算表'!$L$24*Q12,0),IF(D12="無",0,"")) ->  | V12: =IF(D12="有",ROUNDDOWN('1．作成に係る計算表'!$L$25/$D$2,0),IF(D12="無",0,"")) ->  | X12: =IF(D12="有",ROUNDDOWN(Q12*'1．作成に係る計算表'!$L$25,0),IF(D12="無",0,"")) -> 
A13: 10 | E13: =IF(M13="","",IF('1．作成に係る計算表'!$T$1="均等割",M13+N13,O13+P13)) ->  | G13: =IF(M13="","",IF('1．作成に係る計算表'!$T$1="均等割",R13+S13,T13+U13)) ->  | H13: =IF(M13="","",IF('1．作成に係る計算表'!$T$1="均等割",V13+W13,X13+Y13)) ->  | I13: =IF(M13="","",IF('1．作成に係る計算表'!$T$1="均等割",AA13+AB13,AC13+AD13)) ->  | J13: =IF(M13="","",IF('1．作成に係る計算表'!$T$1="均等割",AE13+AF13,AG13+AH13)) ->  | M13: =IF(D13="有",ROUNDDOWN('1．作成に係る計算表'!$I$8/$D$2,0),IF(D13="無",0,"")) ->  | O13: =IF(D13="有",ROUNDDOWN('1．作成に係る計算表'!$I$8*Q13,0),IF(D13="無",0,"")) ->  | R13: =IF(D13="有",ROUNDDOWN('1．作成に係る計算表'!$L$24/$D$2,0),IF(D13="無",0,"")) ->  | T13: =IF(D13="有",ROUNDDOWN('1．作成に係る計算表'!$L$24*Q13,0),IF(D13="無",0,"")) ->  | V13: =IF(D13="有",ROUNDDOWN('1．作成に係る計算表'!$L$25/$D$2,0),IF(D13="無",0,"")) ->  | X13: =IF(D13="有",ROUNDDOWN(Q13*'1．作成に係る計算表'!$L$25,0),IF(D13="無",0,"")) -> 
A14: 11 | E14: =IF(M14="","",IF('1．作成に係る計算表'!$T$1="均等割",M14+N14,O14+P14)) ->  | G14: =IF(M14="","",IF('1．作成に係る計算表'!$T$1="均等割",R14+S14,T14+U14)) ->  | H14: =IF(M14="","",IF('1．作成に係る計算表'!$T$1="均等割",V14+W14,X14+Y14)) ->  | I14: =IF(M14="","",IF('1．作成に係る計算表'!$T$1="均等割",AA14+AB14,AC14+AD14)) ->  | J14: =IF(M14="","",IF('1．作成に係る計算表'!$T$1="均等割",AE14+AF14,AG14+AH14)) ->  | M14: =IF(D14="有",ROUNDDOWN('1．作成に係る計算表'!$I$8/$D$2,0),IF(D14="無",0,"")) ->  | O14: =IF(D14="有",ROUNDDOWN('1．作成に係る計算表'!$I$8*Q14,0),IF(D14="無",0,"")) ->  | R14: =IF(D14="有",ROUNDDOWN('1．作成に係る計算表'!$L$24/$D$2,0),IF(D14="無",0,"")) ->  | T14: =IF(D14="有",ROUNDDOWN('1．作成に係る計算表'!$L$24*Q14,0),IF(D14="無",0,"")) ->  | V14: =IF(D14="有",ROUNDDOWN('1．作成に係る計算表'!$L$25/$D$2,0),IF(D14="無",0,"")) ->  | X14: =IF(D14="有",ROUNDDOWN(Q14*'1．作成に係る計算表'!$L$25,0),IF(D14="無",0,"")) -> 
A15: 12 | E15: =IF(M15="","",IF('1．作成に係る計算表'!$T$1="均等割",M15+N15,O15+P15)) ->  | G15: =IF(M15="","",IF('1．作成に係る計算表'!$T$1="均等割",R15+S15,T15+U15)) ->  | H15: =IF(M15="","",IF('1．作成に係る計算表'!$T$1="均等割",V15+W15,X15+Y15)) ->  | I15: =IF(M15="","",IF('1．作成に係る計算表'!$T$1="均等割",AA15+AB15,AC15+AD15)) ->  | J15: =IF(M15="","",IF('1．作成に係る計算表'!$T$1="均等割",AE15+AF15,AG15+AH15)) ->  | M15: =IF(D15="有",ROUNDDOWN('1．作成に係る計算表'!$I$8/$D$2,0),IF(D15="無",0,"")) ->  | O15: =IF(D15="有",ROUNDDOWN('1．作成に係る計算表'!$I$8*Q15,0),IF(D15="無",0,"")) ->  | R15: =IF(D15="有",ROUNDDOWN('1．作成に係る計算表'!$L$24/$D$2,0),IF(D15="無",0,"")) ->  | T15: =IF(D15="有",ROUNDDOWN('1．作成に係る計算表'!$L$24*Q15,0),IF(D15="無",0,"")) ->  | V15: =IF(D15="有",ROUNDDOWN('1．作成に係る計算表'!$L$25/$D$2,0),IF(D15="無",0,"")) ->  | X15: =IF(D15="有",ROUNDDOWN(Q15*'1．作成に係る計算表'!$L$25,0),IF(D15="無",0,"")) -> 
A16: 13 | E16: =IF(M16="","",IF('1．作成に係る計算表'!$T$1="均等割",M16+N16,O16+P16)) ->  | G16: =IF(M16="","",IF('1．作成に係る計算表'!$T$1="均等割",R16+S16,T16+U16)) ->  | H16: =IF(M16="","",IF('1．作成に係る計算表'!$T$1="均等割",V16+W16,X16+Y16)) ->  | I16: =IF(M16="","",IF('1．作成に係る計算表'!$T$1="均等割",AA16+AB16,AC16+AD16)) ->  | J16: =IF(M16="","",IF('1．作成に係る計算表'!$T$1="均等割",AE16+AF16,AG16+AH16)) ->  | M16: =IF(D16="有",ROUNDDOWN('1．作成に係る計算表'!$I$8/$D$2,0),IF(D16="無",0,"")) ->  | O16: =IF(D16="有",ROUNDDOWN('1．作成に係る計算表'!$I$8*Q16,0),IF(D16="無",0,"")) ->  | R16: =IF(D16="有",ROUNDDOWN('1．作成に係る計算表'!$L$24/$D$2,0),IF(D16="無",0,"")) ->  | T16: =IF(D16="有",ROUNDDOWN('1．作成に係る計算表'!$L$24*Q16,0),IF(D16="無",0,"")) ->  | V16: =IF(D16="有",ROUNDDOWN('1．作成に係る計算表'!$L$25/$D$2,0),IF(D16="無",0,"")) ->  | X16: =IF(D16="有",ROUNDDOWN(Q16*'1．作成に係る計算表'!$L$25,0),IF(D16="無",0,"")) -> 
A17: 14 | E17: =IF(M17="","",IF('1．作成に係る計算表'!$T$1="均等割",M17+N17,O17+P17)) ->  | G17: =IF(M17="","",IF('1．作成に係る計算表'!$T$1="均等割",R17+S17,T17+U17)) ->  | H17: =IF(M17="","",IF('1．作成に係る計算表'!$T$1="均等割",V17+W17,X17+Y17)) ->  | I17: =IF(M17="","",IF('1．作成に係る計算表'!$T$1="均等割",AA17+AB17,AC17+AD17)) ->  | J17: =IF(M17="","",IF('1．作成に係る計算表'!$T$1="均等割",AE17+AF17,AG17+AH17)) ->  | M17: =IF(D17="有",ROUNDDOWN('1．作成に係る計算表'!$I$8/$D$2,0),IF(D17="無",0,"")) ->  | O17: =IF(D17="有",ROUNDDOWN('1．作成に係る計算表'!$I$8*Q17,0),IF(D17="無",0,"")) ->  | R17: =IF(D17="有",ROUNDDOWN('1．作成に係る計算表'!$L$24/$D$2,0),IF(D17="無",0,"")) ->  | T17: =IF(D17="有",ROUNDDOWN('1．作成に係る計算表'!$L$24*Q17,0),IF(D17="無",0,"")) ->  | V17: =IF(D17="有",ROUNDDOWN('1．作成に係る計算表'!$L$25/$D$2,0),IF(D17="無",0,"")) ->  | X17: =IF(D17="有",ROUNDDOWN(Q17*'1．作成に係る計算表'!$L$25,0),IF(D17="無",0,"")) -> 
A18: 15 | E18: =IF(M18="","",IF('1．作成に係る計算表'!$T$1="均等割",M18+N18,O18+P18)) ->  | G18: =IF(M18="","",IF('1．作成に係る計算表'!$T$1="均等割",R18+S18,T18+U18)) ->  | H18: =IF(M18="","",IF('1．作成に係る計算表'!$T$1="均等割",V18+W18,X18+Y18)) ->  | I18: =IF(M18="","",IF('1．作成に係る計算表'!$T$1="均等割",AA18+AB18,AC18+AD18)) ->  | J18: =IF(M18="","",IF('1．作成に係る計算表'!$T$1="均等割",AE18+AF18,AG18+AH18)) ->  | M18: =IF(D18="有",ROUNDDOWN('1．作成に係る計算表'!$I$8/$D$2,0),IF(D18="無",0,"")) ->  | O18: =IF(D18="有",ROUNDDOWN('1．作成に係る計算表'!$I$8*Q18,0),IF(D18="無",0,"")) ->  | R18: =IF(D18="有",ROUNDDOWN('1．作成に係る計算表'!$L$24/$D$2,0),IF(D18="無",0,"")) ->  | T18: =IF(D18="有",ROUNDDOWN('1．作成に係る計算表'!$L$24*Q18,0),IF(D18="無",0,"")) ->  | V18: =IF(D18="有",ROUNDDOWN('1．作成に係る計算表'!$L$25/$D$2,0),IF(D18="無",0,"")) ->  | X18: =IF(D18="有",ROUNDDOWN(Q18*'1．作成に係る計算表'!$L$25,0),IF(D18="無",0,"")) -> 
A19: 16 | E19: =IF(M19="","",IF('1．作成に係る計算表'!$T$1="均等割",M19+N19,O19+P19)) ->  | G19: =IF(M19="","",IF('1．作成に係る計算表'!$T$1="均等割",R19+S19,T19+U19)) ->  | H19: =IF(M19="","",IF('1．作成に係る計算表'!$T$1="均等割",V19+W19,X19+Y19)) ->  | I19: =IF(M19="","",IF('1．作成に係る計算表'!$T$1="均等割",AA19+AB19,AC19+AD19)) ->  | J19: =IF(M19="","",IF('1．作成に係る計算表'!$T$1="均等割",AE19+AF19,AG19+AH19)) ->  | M19: =IF(D19="有",ROUNDDOWN('1．作成に係る計算表'!$I$8/$D$2,0),IF(D19="無",0,"")) ->  | O19: =IF(D19="有",ROUNDDOWN('1．作成に係る計算表'!$I$8*Q19,0),IF(D19="無",0,"")) ->  | R19: =IF(D19="有",ROUNDDOWN('1．作成に係る計算表'!$L$24/$D$2,0),IF(D19="無",0,"")) ->  | T19: =IF(D19="有",ROUNDDOWN('1．作成に係る計算表'!$L$24*Q19,0),IF(D19="無",0,"")) ->  | V19: =IF(D19="有",ROUNDDOWN('1．作成に係る計算表'!$L$25/$D$2,0),IF(D19="無",0,"")) ->  | X19: =IF(D19="有",ROUNDDOWN(Q19*'1．作成に係る計算表'!$L$25,0),IF(D19="無",0,"")) -> 
A20: 17 | E20: =IF(M20="","",IF('1．作成に係る計算表'!$T$1="均等割",M20+N20,O20+P20)) ->  | G20: =IF(M20="","",IF('1．作成に係る計算表'!$T$1="均等割",R20+S20,T20+U20)) ->  | H20: =IF(M20="","",IF('1．作成に係る計算表'!$T$1="均等割",V20+W20,X20+Y20)) ->  | I20: =IF(M20="","",IF('1．作成に係る計算表'!$T$1="均等割",AA20+AB20,AC20+AD20)) ->  | J20: =IF(M20="","",IF('1．作成に係る計算表'!$T$1="均等割",AE20+AF20,AG20+AH20)) ->  | M20: =IF(D20="有",ROUNDDOWN('1．作成に係る計算表'!$I$8/$D$2,0),IF(D20="無",0,"")) ->  | O20: =IF(D20="有",ROUNDDOWN('1．作成に係る計算表'!$I$8*Q20,0),IF(D20="無",0,"")) ->  | R20: =IF(D20="有",ROUNDDOWN('1．作成に係る計算表'!$L$24/$D$2,0),IF(D20="無",0,"")) ->  | T20: =IF(D20="有",ROUNDDOWN('1．作成に係る計算表'!$L$24*Q20,0),IF(D20="無",0,"")) ->  | V20: =IF(D20="有",ROUNDDOWN('1．作成に係る計算表'!$L$25/$D$2,0),IF(D20="無",0,"")) ->  | X20: =IF(D20="有",ROUNDDOWN(Q20*'1．作成に係る計算表'!$L$25,0),IF(D20="無",0,"")) -> 
A21: 18 | E21: =IF(M21="","",IF('1．作成に係る計算表'!$T$1="均等割",M21+N21,O21+P21)) ->  | G21: =IF(M21="","",IF('1．作成に係る計算表'!$T$1="均等割",R21+S21,T21+U21)) ->  | H21: =IF(M21="","",IF('1．作成に係る計算表'!$T$1="均等割",V21+W21,X21+Y21)) ->  | I21: =IF(M21="","",IF('1．作成に係る計算表'!$T$1="均等割",AA21+AB21,AC21+AD21)) ->  | J21: =IF(M21="","",IF('1．作成に係る計算表'!$T$1="均等割",AE21+AF21,AG21+AH21)) ->  | M21: =IF(D21="有",ROUNDDOWN('1．作成に係る計算表'!$I$8/$D$2,0),IF(D21="無",0,"")) ->  | O21: =IF(D21="有",ROUNDDOWN('1．作成に係る計算表'!$I$8*Q21,0),IF(D21="無",0,"")) ->  | R21: =IF(D21="有",ROUNDDOWN('1．作成に係る計算表'!$L$24/$D$2,0),IF(D21="無",0,"")) ->  | T21: =IF(D21="有",ROUNDDOWN('1．作成に係る計算表'!$L$24*Q21,0),IF(D21="無",0,"")) ->  | V21: =IF(D21="有",ROUNDDOWN('1．作成に係る計算表'!$L$25/$D$2,0),IF(D21="無",0,"")) ->  | X21: =IF(D21="有",ROUNDDOWN(Q21*'1．作成に係る計算表'!$L$25,0),IF(D21="無",0,"")) -> 
A22: 19 | E22: =IF(M22="","",IF('1．作成に係る計算表'!$T$1="均等割",M22+N22,O22+P22)) ->  | G22: =IF(M22="","",IF('1．作成に係る計算表'!$T$1="均等割",R22+S22,T22+U22)) ->  | H22: =IF(M22="","",IF('1．作成に係る計算表'!$T$1="均等割",V22+W22,X22+Y22)) ->  | I22: =IF(M22="","",IF('1．作成に係る計算表'!$T$1="均等割",AA22+AB22,AC22+AD22)) ->  | J22: =IF(M22="","",IF('1．作成に係る計算表'!$T$1="均等割",AE22+AF22,AG22+AH22)) ->  | M22: =IF(D22="有",ROUNDDOWN('1．作成に係る計算表'!$I$8/$D$2,0),IF(D22="無",0,"")) ->  | O22: =IF(D22="有",ROUNDDOWN('1．作成に係る計算表'!$I$8*Q22,0),IF(D22="無",0,"")) ->  | R22: =IF(D22="有",ROUNDDOWN('1．作成に係る計算表'!$L$24/$D$2,0),IF(D22="無",0,"")) ->  | T22: =IF(D22="有",ROUNDDOWN('1．作成に係る計算表'!$L$24*Q22,0),IF(D22="無",0,"")) ->  | V22: =IF(D22="有",ROUNDDOWN('1．作成に係る計算表'!$L$25/$D$2,0),IF(D22="無",0,"")) ->  | X22: =IF(D22="有",ROUNDDOWN(Q22*'1．作成に係る計算表'!$L$25,0),IF(D22="無",0,"")) -> 
A23: 20 | E23: =IF(M23="","",IF('1．作成に係る計算表'!$T$1="均等割",M23+N23,O23+P23)) ->  | G23: =IF(M23="","",IF('1．作成に係る計算表'!$T$1="均等割",R23+S23,T23+U23)) ->  | H23: =IF(M23="","",IF('1．作成に係る計算表'!$T$1="均等割",V23+W23,X23+Y23)) ->  | I23: =IF(M23="","",IF('1．作成に係る計算表'!$T$1="均等割",AA23+AB23,AC23+AD23)) ->  | J23: =IF(M23="","",IF('1．作成に係る計算表'!$T$1="均等割",AE23+AF23,AG23+AH23)) ->  | M23: =IF(D23="有",ROUNDDOWN('1．作成に係る計算表'!$I$8/$D$2,0),IF(D23="無",0,"")) ->  | O23: =IF(D23="有",ROUNDDOWN('1．作成に係る計算表'!$I$8*Q23,0),IF(D23="無",0,"")) ->  | R23: =IF(D23="有",ROUNDDOWN('1．作成に係る計算表'!$L$24/$D$2,0),IF(D23="無",0,"")) ->  | T23: =IF(D23="有",ROUNDDOWN('1．作成に係る計算表'!$L$24*Q23,0),IF(D23="無",0,"")) ->  | V23: =IF(D23="有",ROUNDDOWN('1．作成に係る計算表'!$L$25/$D$2,0),IF(D23="無",0,"")) ->  | X23: =IF(D23="有",ROUNDDOWN(Q23*'1．作成に係る計算表'!$L$25,0),IF(D23="無",0,"")) -> 
A24: 21 | E24: =IF(M24="","",IF('1．作成に係る計算表'!$T$1="均等割",M24+N24,O24+P24)) ->  | G24: =IF(M24="","",IF('1．作成に係る計算表'!$T$1="均等割",R24+S24,T24+U24)) ->  | H24: =IF(M24="","",IF('1．作成に係る計算表'!$T$1="均等割",V24+W24,X24+Y24)) ->  | I24: =IF(M24="","",IF('1．作成に係る計算表'!$T$1="均等割",AA24+AB24,AC24+AD24)) ->  | J24: =IF(M24="","",IF('1．作成に係る計算表'!$T$1="均等割",AE24+AF24,AG24+AH24)) ->  | M24: =IF(D24="有",ROUNDDOWN('1．作成に係る計算表'!$I$8/$D$2,0),IF(D24="無",0,"")) ->  | O24: =IF(D24="有",ROUNDDOWN('1．作成に係る計算表'!$I$8*Q24,0),IF(D24="無",0,"")) ->  | R24: =IF(D24="有",ROUNDDOWN('1．作成に係る計算表'!$L$24/$D$2,0),IF(D24="無",0,"")) ->  | T24: =IF(D24="有",ROUNDDOWN('1．作成に係る計算表'!$L$24*Q24,0),IF(D24="無",0,"")) ->  | V24: =IF(D24="有",ROUNDDOWN('1．作成に係る計算表'!$L$25/$D$2,0),IF(D24="無",0,"")) ->  | X24: =IF(D24="有",ROUNDDOWN(Q24*'1．作成に係る計算表'!$L$25,0),IF(D24="無",0,"")) -> 
A25: 22 | E25: =IF(M25="","",IF('1．作成に係る計算表'!$T$1="均等割",M25+N25,O25+P25)) ->  | G25: =IF(M25="","",IF('1．作成に係る計算表'!$T$1="均等割",R25+S25,T25+U25)) ->  | H25: =IF(M25="","",IF('1．作成に係る計算表'!$T$1="均等割",V25+W25,X25+Y25)) ->  | I25: =IF(M25="","",IF('1．作成に係る計算表'!$T$1="均等割",AA25+AB25,AC25+AD25)) ->  | J25: =IF(M25="","",IF('1．作成に係る計算表'!$T$1="均等割",AE25+AF25,AG25+AH25)) ->  | M25: =IF(D25="有",ROUNDDOWN('1．作成に係る計算表'!$I$8/$D$2,0),IF(D25="無",0,"")) ->  | O25: =IF(D25="有",ROUNDDOWN('1．作成に係る計算表'!$I$8*Q25,0),IF(D25="無",0,"")) ->  | R25: =IF(D25="有",ROUNDDOWN('1．作成に係る計算表'!$L$24/$D$2,0),IF(D25="無",0,"")) ->  | T25: =IF(D25="有",ROUNDDOWN('1．作成に係る計算表'!$L$24*Q25,0),IF(D25="無",0,"")) ->  | V25: =IF(D25="有",ROUNDDOWN('1．作成に係る計算表'!$L$25/$D$2,0),IF(D25="無",0,"")) ->  | X25: =IF(D25="有",ROUNDDOWN(Q25*'1．作成に係る計算表'!$L$25,0),IF(D25="無",0,"")) -> 
A26: 23 | E26: =IF(M26="","",IF('1．作成に係る計算表'!$T$1="均等割",M26+N26,O26+P26)) ->  | G26: =IF(M26="","",IF('1．作成に係る計算表'!$T$1="均等割",R26+S26,T26+U26)) ->  | H26: =IF(M26="","",IF('1．作成に係る計算表'!$T$1="均等割",V26+W26,X26+Y26)) ->  | I26: =IF(M26="","",IF('1．作成に係る計算表'!$T$1="均等割",AA26+AB26,AC26+AD26)) ->  | J26: =IF(M26="","",IF('1．作成に係る計算表'!$T$1="均等割",AE26+AF26,AG26+AH26)) ->  | M26: =IF(D26="有",ROUNDDOWN('1．作成に係る計算表'!$I$8/$D$2,0),IF(D26="無",0,"")) ->  | O26: =IF(D26="有",ROUNDDOWN('1．作成に係る計算表'!$I$8*Q26,0),IF(D26="無",0,"")) ->  | R26: =IF(D26="有",ROUNDDOWN('1．作成に係る計算表'!$L$24/$D$2,0),IF(D26="無",0,"")) ->  | T26: =IF(D26="有",ROUNDDOWN('1．作成に係る計算表'!$L$24*Q26,0),IF(D26="無",0,"")) ->  | V26: =IF(D26="有",ROUNDDOWN('1．作成に係る計算表'!$L$25/$D$2,0),IF(D26="無",0,"")) ->  | X26: =IF(D26="有",ROUNDDOWN(Q26*'1．作成に係る計算表'!$L$25,0),IF(D26="無",0,"")) -> 
A27: 24 | E27: =IF(M27="","",IF('1．作成に係る計算表'!$T$1="均等割",M27+N27,O27+P27)) ->  | G27: =IF(M27="","",IF('1．作成に係る計算表'!$T$1="均等割",R27+S27,T27+U27)) ->  | H27: =IF(M27="","",IF('1．作成に係る計算表'!$T$1="均等割",V27+W27,X27+Y27)) ->  | I27: =IF(M27="","",IF('1．作成に係る計算表'!$T$1="均等割",AA27+AB27,AC27+AD27)) ->  | J27: =IF(M27="","",IF('1．作成に係る計算表'!$T$1="均等割",AE27+AF27,AG27+AH27)) ->  | M27: =IF(D27="有",ROUNDDOWN('1．作成に係る計算表'!$I$8/$D$2,0),IF(D27="無",0,"")) ->  | O27: =IF(D27="有",ROUNDDOWN('1．作成に係る計算表'!$I$8*Q27,0),IF(D27="無",0,"")) ->  | R27: =IF(D27="有",ROUNDDOWN('1．作成に係る計算表'!$L$24/$D$2,0),IF(D27="無",0,"")) ->  | T27: =IF(D27="有",ROUNDDOWN('1．作成に係る計算表'!$L$24*Q27,0),IF(D27="無",0,"")) ->  | V27: =IF(D27="有",ROUNDDOWN('1．作成に係る計算表'!$L$25/$D$2,0),IF(D27="無",0,"")) ->  | X27: =IF(D27="有",ROUNDDOWN(Q27*'1．作成に係る計算表'!$L$25,0),IF(D27="無",0,"")) -> 
A28: 25 | E28: =IF(M28="","",IF('1．作成に係る計算表'!$T$1="均等割",M28+N28,O28+P28)) ->  | G28: =IF(M28="","",IF('1．作成に係る計算表'!$T$1="均等割",R28+S28,T28+U28)) ->  | H28: =IF(M28="","",IF('1．作成に係る計算表'!$T$1="均等割",V28+W28,X28+Y28)) ->  | I28: =IF(M28="","",IF('1．作成に係る計算表'!$T$1="均等割",AA28+AB28,AC28+AD28)) ->  | J28: =IF(M28="","",IF('1．作成に係る計算表'!$T$1="均等割",AE28+AF28,AG28+AH28)) ->  | M28: =IF(D28="有",ROUNDDOWN('1．作成に係る計算表'!$I$8/$D$2,0),IF(D28="無",0,"")) ->  | O28: =IF(D28="有",ROUNDDOWN('1．作成に係る計算表'!$I$8*Q28,0),IF(D28="無",0,"")) ->  | R28: =IF(D28="有",ROUNDDOWN('1．作成に係る計算表'!$L$24/$D$2,0),IF(D28="無",0,"")) ->  | T28: =IF(D28="有",ROUNDDOWN('1．作成に係る計算表'!$L$24*Q28,0),IF(D28="無",0,"")) ->  | V28: =IF(D28="有",ROUNDDOWN('1．作成に係る計算表'!$L$25/$D$2,0),IF(D28="無",0,"")) ->  | X28: =IF(D28="有",ROUNDDOWN(Q28*'1．作成に係る計算表'!$L$25,0),IF(D28="無",0,"")) -> 
A29: 26 | E29: =IF(M29="","",IF('1．作成に係る計算表'!$T$1="均等割",M29+N29,O29+P29)) ->  | G29: =IF(M29="","",IF('1．作成に係る計算表'!$T$1="均等割",R29+S29,T29+U29)) ->  | H29: =IF(M29="","",IF('1．作成に係る計算表'!$T$1="均等割",V29+W29,X29+Y29)) ->  | I29: =IF(M29="","",IF('1．作成に係る計算表'!$T$1="均等割",AA29+AB29,AC29+AD29)) ->  | J29: =IF(M29="","",IF('1．作成に係る計算表'!$T$1="均等割",AE29+AF29,AG29+AH29)) ->  | M29: =IF(D29="有",ROUNDDOWN('1．作成に係る計算表'!$I$8/$D$2,0),IF(D29="無",0,"")) ->  | O29: =IF(D29="有",ROUNDDOWN('1．作成に係る計算表'!$I$8*Q29,0),IF(D29="無",0,"")) ->  | R29: =IF(D29="有",ROUNDDOWN('1．作成に係る計算表'!$L$24/$D$2,0),IF(D29="無",0,"")) ->  | T29: =IF(D29="有",ROUNDDOWN('1．作成に係る計算表'!$L$24*Q29,0),IF(D29="無",0,"")) ->  | V29: =IF(D29="有",ROUNDDOWN('1．作成に係る計算表'!$L$25/$D$2,0),IF(D29="無",0,"")) ->  | X29: =IF(D29="有",ROUNDDOWN(Q29*'1．作成に係る計算表'!$L$25,0),IF(D29="無",0,"")) -> 
A30: 27 | E30: =IF(M30="","",IF('1．作成に係る計算表'!$T$1="均等割",M30+N30,O30+P30)) ->  | G30: =IF(M30="","",IF('1．作成に係る計算表'!$T$1="均等割",R30+S30,T30+U30)) ->  | H30: =IF(M30="","",IF('1．作成に係る計算表'!$T$1="均等割",V30+W30,X30+Y30)) ->  | I30: =IF(M30="","",IF('1．作成に係る計算表'!$T$1="均等割",AA30+AB30,AC30+AD30)) ->  | J30: =IF(M30="","",IF('1．作成に係る計算表'!$T$1="均等割",AE30+AF30,AG30+AH30)) ->  | M30: =IF(D30="有",ROUNDDOWN('1．作成に係る計算表'!$I$8/$D$2,0),IF(D30="無",0,"")) ->  | O30: =IF(D30="有",ROUNDDOWN('1．作成に係る計算表'!$I$8*Q30,0),IF(D30="無",0,"")) ->  | R30: =IF(D30="有",ROUNDDOWN('1．作成に係る計算表'!$L$24/$D$2,0),IF(D30="無",0,"")) ->  | T30: =IF(D30="有",ROUNDDOWN('1．作成に係る計算表'!$L$24*Q30,0),IF(D30="無",0,"")) ->  | V30: =IF(D30="有",ROUNDDOWN('1．作成に係る計算表'!$L$25/$D$2,0),IF(D30="無",0,"")) ->  | X30: =IF(D30="有",ROUNDDOWN(Q30*'1．作成に係る計算表'!$L$25,0),IF(D30="無",0,"")) -> 
A31: 28 | E31: =IF(M31="","",IF('1．作成に係る計算表'!$T$1="均等割",M31+N31,O31+P31)) ->  | G31: =IF(M31="","",IF('1．作成に係る計算表'!$T$1="均等割",R31+S31,T31+U31)) ->  | H31: =IF(M31="","",IF('1．作成に係る計算表'!$T$1="均等割",V31+W31,X31+Y31)) ->  | I31: =IF(M31="","",IF('1．作成に係る計算表'!$T$1="均等割",AA31+AB31,AC31+AD31)) ->  | J31: =IF(M31="","",IF('1．作成に係る計算表'!$T$1="均等割",AE31+AF31,AG31+AH31)) ->  | M31: =IF(D31="有",ROUNDDOWN('1．作成に係る計算表'!$I$8/$D$2,0),IF(D31="無",0,"")) ->  | O31: =IF(D31="有",ROUNDDOWN('1．作成に係る計算表'!$I$8*Q31,0),IF(D31="無",0,"")) ->  | R31: =IF(D31="有",ROUNDDOWN('1．作成に係る計算表'!$L$24/$D$2,0),IF(D31="無",0,"")) ->  | T31: =IF(D31="有",ROUNDDOWN('1．作成に係る計算表'!$L$24*Q31,0),IF(D31="無",0,"")) ->  | V31: =IF(D31="有",ROUNDDOWN('1．作成に係る計算表'!$L$25/$D$2,0),IF(D31="無",0,"")) ->  | X31: =IF(D31="有",ROUNDDOWN(Q31*'1．作成に係る計算表'!$L$25,0),IF(D31="無",0,"")) -> 
A32: 29 | E32: =IF(M32="","",IF('1．作成に係る計算表'!$T$1="均等割",M32+N32,O32+P32)) ->  | G32: =IF(M32="","",IF('1．作成に係る計算表'!$T$1="均等割",R32+S32,T32+U32)) ->  | H32: =IF(M32="","",IF('1．作成に係る計算表'!$T$1="均等割",V32+W32,X32+Y32)) ->  | I32: =IF(M32="","",IF('1．作成に係る計算表'!$T$1="均等割",AA32+AB32,AC32+AD32)) ->  | J32: =IF(M32="","",IF('1．作成に係る計算表'!$T$1="均等割",AE32+AF32,AG32+AH32)) ->  | M32: =IF(D32="有",ROUNDDOWN('1．作成に係る計算表'!$I$8/$D$2,0),IF(D32="無",0,"")) ->  | O32: =IF(D32="有",ROUNDDOWN('1．作成に係る計算表'!$I$8*Q32,0),IF(D32="無",0,"")) ->  | R32: =IF(D32="有",ROUNDDOWN('1．作成に係る計算表'!$L$24/$D$2,0),IF(D32="無",0,"")) ->  | T32: =IF(D32="有",ROUNDDOWN('1．作成に係る計算表'!$L$24*Q32,0),IF(D32="無",0,"")) ->  | V32: =IF(D32="有",ROUNDDOWN('1．作成に係る計算表'!$L$25/$D$2,0),IF(D32="無",0,"")) ->  | X32: =IF(D32="有",ROUNDDOWN(Q32*'1．作成に係る計算表'!$L$25,0),IF(D32="無",0,"")) -> 
A33: 30 | E33: =IF(M33="","",IF('1．作成に係る計算表'!$T$1="均等割",M33+N33,O33+P33)) ->  | G33: =IF(M33="","",IF('1．作成に係る計算表'!$T$1="均等割",R33+S33,T33+U33)) ->  | H33: =IF(M33="","",IF('1．作成に係る計算表'!$T$1="均等割",V33+W33,X33+Y33)) ->  | I33: =IF(M33="","",IF('1．作成に係る計算表'!$T$1="均等割",AA33+AB33,AC33+AD33)) ->  | J33: =IF(M33="","",IF('1．作成に係る計算表'!$T$1="均等割",AE33+AF33,AG33+AH33)) ->  | M33: =IF(D33="有",ROUNDDOWN('1．作成に係る計算表'!$I$8/$D$2,0),IF(D33="無",0,"")) ->  | O33: =IF(D33="有",ROUNDDOWN('1．作成に係る計算表'!$I$8*Q33,0),IF(D33="無",0,"")) ->  | R33: =IF(D33="有",ROUNDDOWN('1．作成に係る計算表'!$L$24/$D$2,0),IF(D33="無",0,"")) ->  | T33: =IF(D33="有",ROUNDDOWN('1．作成に係る計算表'!$L$24*Q33,0),IF(D33="無",0,"")) ->  | V33: =IF(D33="有",ROUNDDOWN('1．作成に係る計算表'!$L$25/$D$2,0),IF(D33="無",0,"")) ->  | X33: =IF(D33="有",ROUNDDOWN(Q33*'1．作成に係る計算表'!$L$25,0),IF(D33="無",0,"")) -> 
A34: 31 | E34: =IF(M34="","",IF('1．作成に係る計算表'!$T$1="均等割",M34+N34,O34+P34)) ->  | G34: =IF(M34="","",IF('1．作成に係る計算表'!$T$1="均等割",R34+S34,T34+U34)) ->  | H34: =IF(M34="","",IF('1．作成に係る計算表'!$T$1="均等割",V34+W34,X34+Y34)) ->  | I34: =IF(M34="","",IF('1．作成に係る計算表'!$T$1="均等割",AA34+AB34,AC34+AD34)) ->  | J34: =IF(M34="","",IF('1．作成に係る計算表'!$T$1="均等割",AE34+AF34,AG34+AH34)) ->  | M34: =IF(D34="有",ROUNDDOWN('1．作成に係る計算表'!$I$8/$D$2,0),IF(D34="無",0,"")) ->  | O34: =IF(D34="有",ROUNDDOWN('1．作成に係る計算表'!$I$8*Q34,0),IF(D34="無",0,"")) ->  | R34: =IF(D34="有",ROUNDDOWN('1．作成に係る計算表'!$L$24/$D$2,0),IF(D34="無",0,"")) ->  | T34: =IF(D34="有",ROUNDDOWN('1．作成に係る計算表'!$L$24*Q34,0),IF(D34="無",0,"")) ->  | V34: =IF(D34="有",ROUNDDOWN('1．作成に係る計算表'!$L$25/$D$2,0),IF(D34="無",0,"")) ->  | X34: =IF(D34="有",ROUNDDOWN(Q34*'1．作成に係る計算表'!$L$25,0),IF(D34="無",0,"")) -> 
A35: 32 | E35: =IF(M35="","",IF('1．作成に係る計算表'!$T$1="均等割",M35+N35,O35+P35)) ->  | G35: =IF(M35="","",IF('1．作成に係る計算表'!$T$1="均等割",R35+S35,T35+U35)) ->  | H35: =IF(M35="","",IF('1．作成に係る計算表'!$T$1="均等割",V35+W35,X35+Y35)) ->  | I35: =IF(M35="","",IF('1．作成に係る計算表'!$T$1="均等割",AA35+AB35,AC35+AD35)) ->  | J35: =IF(M35="","",IF('1．作成に係る計算表'!$T$1="均等割",AE35+AF35,AG35+AH35)) ->  | M35: =IF(D35="有",ROUNDDOWN('1．作成に係る計算表'!$I$8/$D$2,0),IF(D35="無",0,"")) ->  | O35: =IF(D35="有",ROUNDDOWN('1．作成に係る計算表'!$I$8*Q35,0),IF(D35="無",0,"")) ->  | R35: =IF(D35="有",ROUNDDOWN('1．作成に係る計算表'!$L$24/$D$2,0),IF(D35="無",0,"")) ->  | T35: =IF(D35="有",ROUNDDOWN('1．作成に係る計算表'!$L$24*Q35,0),IF(D35="無",0,"")) ->  | V35: =IF(D35="有",ROUNDDOWN('1．作成に係る計算表'!$L$25/$D$2,0),IF(D35="無",0,"")) ->  | X35: =IF(D35="有",ROUNDDOWN(Q35*'1．作成に係る計算表'!$L$25,0),IF(D35="無",0,"")) -> 
A36: 33 | E36: =IF(M36="","",IF('1．作成に係る計算表'!$T$1="均等割",M36+N36,O36+P36)) ->  | G36: =IF(M36="","",IF('1．作成に係る計算表'!$T$1="均等割",R36+S36,T36+U36)) ->  | H36: =IF(M36="","",IF('1．作成に係る計算表'!$T$1="均等割",V36+W36,X36+Y36)) ->  | I36: =IF(M36="","",IF('1．作成に係る計算表'!$T$1="均等割",AA36+AB36,AC36+AD36)) ->  | J36: =IF(M36="","",IF('1．作成に係る計算表'!$T$1="均等割",AE36+AF36,AG36+AH36)) ->  | L36: =_xlfn.RANK.AVG(C36,$C$4:$C$88) ->  | M36: =IF(D36="有",ROUNDDOWN('1．作成に係る計算表'!$I$8/$D$2,0),IF(D36="無",0,"")) ->  | O36: =IF(D36="有",ROUNDDOWN('1．作成に係る計算表'!$I$8*Q36,0),IF(D36="無",0,"")) ->  | Q36: =C36/SUMIFS($C$4:$C$88,$D$4:$D$88,"有") ->  | R36: =IF(D36="有",ROUNDDOWN('1．作成に係る計算表'!$L$24/$D$2,0),IF(D36="無",0,"")) ->  | T36: =IF(D36="有",ROUNDDOWN('1．作成に係る計算表'!$L$24*Q36,0),IF(D36="無",0,"")) ->  | V36: =IF(D36="有",ROUNDDOWN('1．作成に係る計算表'!$L$25/$D$2,0),IF(D36="無",0,"")) ->  | X36: =IF(D36="有",ROUNDDOWN(Q36*'1．作成に係る計算表'!$L$25,0),IF(D36="無",0,"")) ->  | AA36: =IF(D36="有",ROUNDDOWN($AC$1/$D$2,0),IF(D36="無",0,"")) ->  | AC36: =IF(D36="有",ROUNDDOWN(Q36*$AC$1,0),IF(D36="無",0,"")) ->  | AE36: =IF(D36="有",ROUNDDOWN($AG$1/$D$2,0),IF(D36="無",0,"")) ->  | AG36: =IF(D36="有",ROUNDDOWN(Q36*$AG$1,0),IF(D36="無",0,"")) -> 
A37: 34 | E37: =IF(M37="","",IF('1．作成に係る計算表'!$T$1="均等割",M37+N37,O37+P37)) ->  | G37: =IF(M37="","",IF('1．作成に係る計算表'!$T$1="均等割",R37+S37,T37+U37)) ->  | H37: =IF(M37="","",IF('1．作成に係る計算表'!$T$1="均等割",V37+W37,X37+Y37)) ->  | I37: =IF(M37="","",IF('1．作成に係る計算表'!$T$1="均等割",AA37+AB37,AC37+AD37)) ->  | J37: =IF(M37="","",IF('1．作成に係る計算表'!$T$1="均等割",AE37+AF37,AG37+AH37)) ->  | M37: =IF(D37="有",ROUNDDOWN('1．作成に係る計算表'!$I$8/$D$2,0),IF(D37="無",0,"")) ->  | O37: =IF(D37="有",ROUNDDOWN('1．作成に係る計算表'!$I$8*Q37,0),IF(D37="無",0,"")) ->  | R37: =IF(D37="有",ROUNDDOWN('1．作成に係る計算表'!$L$24/$D$2,0),IF(D37="無",0,"")) ->  | T37: =IF(D37="有",ROUNDDOWN('1．作成に係る計算表'!$L$24*Q37,0),IF(D37="無",0,"")) ->  | V37: =IF(D37="有",ROUNDDOWN('1．作成に係る計算表'!$L$25/$D$2,0),IF(D37="無",0,"")) ->  | X37: =IF(D37="有",ROUNDDOWN(Q37*'1．作成に係る計算表'!$L$25,0),IF(D37="無",0,"")) -> 
A38: 35 | E38: =IF(M38="","",IF('1．作成に係る計算表'!$T$1="均等割",M38+N38,O38+P38)) ->  | G38: =IF(M38="","",IF('1．作成に係る計算表'!$T$1="均等割",R38+S38,T38+U38)) ->  | H38: =IF(M38="","",IF('1．作成に係る計算表'!$T$1="均等割",V38+W38,X38+Y38)) ->  | I38: =IF(M38="","",IF('1．作成に係る計算表'!$T$1="均等割",AA38+AB38,AC38+AD38)) ->  | J38: =IF(M38="","",IF('1．作成に係る計算表'!$T$1="均等割",AE38+AF38,AG38+AH38)) ->  | M38: =IF(D38="有",ROUNDDOWN('1．作成に係る計算表'!$I$8/$D$2,0),IF(D38="無",0,"")) ->  | O38: =IF(D38="有",ROUNDDOWN('1．作成に係る計算表'!$I$8*Q38,0),IF(D38="無",0,"")) ->  | R38: =IF(D38="有",ROUNDDOWN('1．作成に係る計算表'!$L$24/$D$2,0),IF(D38="無",0,"")) ->  | T38: =IF(D38="有",ROUNDDOWN('1．作成に係る計算表'!$L$24*Q38,0),IF(D38="無",0,"")) ->  | V38: =IF(D38="有",ROUNDDOWN('1．作成に係る計算表'!$L$25/$D$2,0),IF(D38="無",0,"")) ->  | X38: =IF(D38="有",ROUNDDOWN(Q38*'1．作成に係る計算表'!$L$25,0),IF(D38="無",0,"")) -> 
A39: 36 | E39: =IF(M39="","",IF('1．作成に係る計算表'!$T$1="均等割",M39+N39,O39+P39)) ->  | G39: =IF(M39="","",IF('1．作成に係る計算表'!$T$1="均等割",R39+S39,T39+U39)) ->  | H39: =IF(M39="","",IF('1．作成に係る計算表'!$T$1="均等割",V39+W39,X39+Y39)) ->  | I39: =IF(M39="","",IF('1．作成に係る計算表'!$T$1="均等割",AA39+AB39,AC39+AD39)) ->  | J39: =IF(M39="","",IF('1．作成に係る計算表'!$T$1="均等割",AE39+AF39,AG39+AH39)) ->  | M39: =IF(D39="有",ROUNDDOWN('1．作成に係る計算表'!$I$8/$D$2,0),IF(D39="無",0,"")) ->  | O39: =IF(D39="有",ROUNDDOWN('1．作成に係る計算表'!$I$8*Q39,0),IF(D39="無",0,"")) ->  | R39: =IF(D39="有",ROUNDDOWN('1．作成に係る計算表'!$L$24/$D$2,0),IF(D39="無",0,"")) ->  | T39: =IF(D39="有",ROUNDDOWN('1．作成に係る計算表'!$L$24*Q39,0),IF(D39="無",0,"")) ->  | V39: =IF(D39="有",ROUNDDOWN('1．作成に係る計算表'!$L$25/$D$2,0),IF(D39="無",0,"")) ->  | X39: =IF(D39="有",ROUNDDOWN(Q39*'1．作成に係る計算表'!$L$25,0),IF(D39="無",0,"")) -> 
A40: 37 | E40: =IF(M40="","",IF('1．作成に係る計算表'!$T$1="均等割",M40+N40,O40+P40)) ->  | G40: =IF(M40="","",IF('1．作成に係る計算表'!$T$1="均等割",R40+S40,T40+U40)) ->  | H40: =IF(M40="","",IF('1．作成に係る計算表'!$T$1="均等割",V40+W40,X40+Y40)) ->  | I40: =IF(M40="","",IF('1．作成に係る計算表'!$T$1="均等割",AA40+AB40,AC40+AD40)) ->  | J40: =IF(M40="","",IF('1．作成に係る計算表'!$T$1="均等割",AE40+AF40,AG40+AH40)) ->  | M40: =IF(D40="有",ROUNDDOWN('1．作成に係る計算表'!$I$8/$D$2,0),IF(D40="無",0,"")) ->  | O40: =IF(D40="有",ROUNDDOWN('1．作成に係る計算表'!$I$8*Q40,0),IF(D40="無",0,"")) ->  | R40: =IF(D40="有",ROUNDDOWN('1．作成に係る計算表'!$L$24/$D$2,0),IF(D40="無",0,"")) ->  | T40: =IF(D40="有",ROUNDDOWN('1．作成に係る計算表'!$L$24*Q40,0),IF(D40="無",0,"")) ->  | V40: =IF(D40="有",ROUNDDOWN('1．作成に係る計算表'!$L$25/$D$2,0),IF(D40="無",0,"")) ->  | X40: =IF(D40="有",ROUNDDOWN(Q40*'1．作成に係る計算表'!$L$25,0),IF(D40="無",0,"")) -> 
A41: 38 | E41: =IF(M41="","",IF('1．作成に係る計算表'!$T$1="均等割",M41+N41,O41+P41)) ->  | G41: =IF(M41="","",IF('1．作成に係る計算表'!$T$1="均等割",R41+S41,T41+U41)) ->  | H41: =IF(M41="","",IF('1．作成に係る計算表'!$T$1="均等割",V41+W41,X41+Y41)) ->  | I41: =IF(M41="","",IF('1．作成に係る計算表'!$T$1="均等割",AA41+AB41,AC41+AD41)) ->  | J41: =IF(M41="","",IF('1．作成に係る計算表'!$T$1="均等割",AE41+AF41,AG41+AH41)) ->  | M41: =IF(D41="有",ROUNDDOWN('1．作成に係る計算表'!$I$8/$D$2,0),IF(D41="無",0,"")) ->  | O41: =IF(D41="有",ROUNDDOWN('1．作成に係る計算表'!$I$8*Q41,0),IF(D41="無",0,"")) ->  | R41: =IF(D41="有",ROUNDDOWN('1．作成に係る計算表'!$L$24/$D$2,0),IF(D41="無",0,"")) ->  | T41: =IF(D41="有",ROUNDDOWN('1．作成に係る計算表'!$L$24*Q41,0),IF(D41="無",0,"")) ->  | V41: =IF(D41="有",ROUNDDOWN('1．作成に係る計算表'!$L$25/$D$2,0),IF(D41="無",0,"")) ->  | X41: =IF(D41="有",ROUNDDOWN(Q41*'1．作成に係る計算表'!$L$25,0),IF(D41="無",0,"")) -> 
A42: 39 | E42: =IF(M42="","",IF('1．作成に係る計算表'!$T$1="均等割",M42+N42,O42+P42)) ->  | G42: =IF(M42="","",IF('1．作成に係る計算表'!$T$1="均等割",R42+S42,T42+U42)) ->  | H42: =IF(M42="","",IF('1．作成に係る計算表'!$T$1="均等割",V42+W42,X42+Y42)) ->  | I42: =IF(M42="","",IF('1．作成に係る計算表'!$T$1="均等割",AA42+AB42,AC42+AD42)) ->  | J42: =IF(M42="","",IF('1．作成に係る計算表'!$T$1="均等割",AE42+AF42,AG42+AH42)) ->  | M42: =IF(D42="有",ROUNDDOWN('1．作成に係る計算表'!$I$8/$D$2,0),IF(D42="無",0,"")) ->  | O42: =IF(D42="有",ROUNDDOWN('1．作成に係る計算表'!$I$8*Q42,0),IF(D42="無",0,"")) ->  | R42: =IF(D42="有",ROUNDDOWN('1．作成に係る計算表'!$L$24/$D$2,0),IF(D42="無",0,"")) ->  | T42: =IF(D42="有",ROUNDDOWN('1．作成に係る計算表'!$L$24*Q42,0),IF(D42="無",0,"")) ->  | V42: =IF(D42="有",ROUNDDOWN('1．作成に係る計算表'!$L$25/$D$2,0),IF(D42="無",0,"")) ->  | X42: =IF(D42="有",ROUNDDOWN(Q42*'1．作成に係る計算表'!$L$25,0),IF(D42="無",0,"")) -> 
A43: 40 | E43: =IF(M43="","",IF('1．作成に係る計算表'!$T$1="均等割",M43+N43,O43+P43)) ->  | G43: =IF(M43="","",IF('1．作成に係る計算表'!$T$1="均等割",R43+S43,T43+U43)) ->  | H43: =IF(M43="","",IF('1．作成に係る計算表'!$T$1="均等割",V43+W43,X43+Y43)) ->  | I43: =IF(M43="","",IF('1．作成に係る計算表'!$T$1="均等割",AA43+AB43,AC43+AD43)) ->  | J43: =IF(M43="","",IF('1．作成に係る計算表'!$T$1="均等割",AE43+AF43,AG43+AH43)) ->  | M43: =IF(D43="有",ROUNDDOWN('1．作成に係る計算表'!$I$8/$D$2,0),IF(D43="無",0,"")) ->  | O43: =IF(D43="有",ROUNDDOWN('1．作成に係る計算表'!$I$8*Q43,0),IF(D43="無",0,"")) ->  | R43: =IF(D43="有",ROUNDDOWN('1．作成に係る計算表'!$L$24/$D$2,0),IF(D43="無",0,"")) ->  | T43: =IF(D43="有",ROUNDDOWN('1．作成に係る計算表'!$L$24*Q43,0),IF(D43="無",0,"")) ->  | V43: =IF(D43="有",ROUNDDOWN('1．作成に係る計算表'!$L$25/$D$2,0),IF(D43="無",0,"")) ->  | X43: =IF(D43="有",ROUNDDOWN(Q43*'1．作成に係る計算表'!$L$25,0),IF(D43="無",0,"")) -> 
A44: 41 | E44: =IF(M44="","",IF('1．作成に係る計算表'!$T$1="均等割",M44+N44,O44+P44)) ->  | G44: =IF(M44="","",IF('1．作成に係る計算表'!$T$1="均等割",R44+S44,T44+U44)) ->  | H44: =IF(M44="","",IF('1．作成に係る計算表'!$T$1="均等割",V44+W44,X44+Y44)) ->  | I44: =IF(M44="","",IF('1．作成に係る計算表'!$T$1="均等割",AA44+AB44,AC44+AD44)) ->  | J44: =IF(M44="","",IF('1．作成に係る計算表'!$T$1="均等割",AE44+AF44,AG44+AH44)) ->  | M44: =IF(D44="有",ROUNDDOWN('1．作成に係る計算表'!$I$8/$D$2,0),IF(D44="無",0,"")) ->  | O44: =IF(D44="有",ROUNDDOWN('1．作成に係る計算表'!$I$8*Q44,0),IF(D44="無",0,"")) ->  | R44: =IF(D44="有",ROUNDDOWN('1．作成に係る計算表'!$L$24/$D$2,0),IF(D44="無",0,"")) ->  | T44: =IF(D44="有",ROUNDDOWN('1．作成に係る計算表'!$L$24*Q44,0),IF(D44="無",0,"")) ->  | V44: =IF(D44="有",ROUNDDOWN('1．作成に係る計算表'!$L$25/$D$2,0),IF(D44="無",0,"")) ->  | X44: =IF(D44="有",ROUNDDOWN(Q44*'1．作成に係る計算表'!$L$25,0),IF(D44="無",0,"")) -> 
A45: 42 | E45: =IF(M45="","",IF('1．作成に係る計算表'!$T$1="均等割",M45+N45,O45+P45)) ->  | G45: =IF(M45="","",IF('1．作成に係る計算表'!$T$1="均等割",R45+S45,T45+U45)) ->  | H45: =IF(M45="","",IF('1．作成に係る計算表'!$T$1="均等割",V45+W45,X45+Y45)) ->  | I45: =IF(M45="","",IF('1．作成に係る計算表'!$T$1="均等割",AA45+AB45,AC45+AD45)) ->  | J45: =IF(M45="","",IF('1．作成に係る計算表'!$T$1="均等割",AE45+AF45,AG45+AH45)) ->  | M45: =IF(D45="有",ROUNDDOWN('1．作成に係る計算表'!$I$8/$D$2,0),IF(D45="無",0,"")) ->  | O45: =IF(D45="有",ROUNDDOWN('1．作成に係る計算表'!$I$8*Q45,0),IF(D45="無",0,"")) ->  | R45: =IF(D45="有",ROUNDDOWN('1．作成に係る計算表'!$L$24/$D$2,0),IF(D45="無",0,"")) ->  | T45: =IF(D45="有",ROUNDDOWN('1．作成に係る計算表'!$L$24*Q45,0),IF(D45="無",0,"")) ->  | V45: =IF(D45="有",ROUNDDOWN('1．作成に係る計算表'!$L$25/$D$2,0),IF(D45="無",0,"")) ->  | X45: =IF(D45="有",ROUNDDOWN(Q45*'1．作成に係る計算表'!$L$25,0),IF(D45="無",0,"")) -> 
A46: 43 | E46: =IF(M46="","",IF('1．作成に係る計算表'!$T$1="均等割",M46+N46,O46+P46)) ->  | G46: =IF(M46="","",IF('1．作成に係る計算表'!$T$1="均等割",R46+S46,T46+U46)) ->  | H46: =IF(M46="","",IF('1．作成に係る計算表'!$T$1="均等割",V46+W46,X46+Y46)) ->  | I46: =IF(M46="","",IF('1．作成に係る計算表'!$T$1="均等割",AA46+AB46,AC46+AD46)) ->  | J46: =IF(M46="","",IF('1．作成に係る計算表'!$T$1="均等割",AE46+AF46,AG46+AH46)) ->  | M46: =IF(D46="有",ROUNDDOWN('1．作成に係る計算表'!$I$8/$D$2,0),IF(D46="無",0,"")) ->  | O46: =IF(D46="有",ROUNDDOWN('1．作成に係る計算表'!$I$8*Q46,0),IF(D46="無",0,"")) ->  | R46: =IF(D46="有",ROUNDDOWN('1．作成に係る計算表'!$L$24/$D$2,0),IF(D46="無",0,"")) ->  | T46: =IF(D46="有",ROUNDDOWN('1．作成に係る計算表'!$L$24*Q46,0),IF(D46="無",0,"")) ->  | V46: =IF(D46="有",ROUNDDOWN('1．作成に係る計算表'!$L$25/$D$2,0),IF(D46="無",0,"")) ->  | X46: =IF(D46="有",ROUNDDOWN(Q46*'1．作成に係る計算表'!$L$25,0),IF(D46="無",0,"")) -> 
A47: 44 | E47: =IF(M47="","",IF('1．作成に係る計算表'!$T$1="均等割",M47+N47,O47+P47)) ->  | G47: =IF(M47="","",IF('1．作成に係る計算表'!$T$1="均等割",R47+S47,T47+U47)) ->  | H47: =IF(M47="","",IF('1．作成に係る計算表'!$T$1="均等割",V47+W47,X47+Y47)) ->  | I47: =IF(M47="","",IF('1．作成に係る計算表'!$T$1="均等割",AA47+AB47,AC47+AD47)) ->  | J47: =IF(M47="","",IF('1．作成に係る計算表'!$T$1="均等割",AE47+AF47,AG47+AH47)) ->  | M47: =IF(D47="有",ROUNDDOWN('1．作成に係る計算表'!$I$8/$D$2,0),IF(D47="無",0,"")) ->  | O47: =IF(D47="有",ROUNDDOWN('1．作成に係る計算表'!$I$8*Q47,0),IF(D47="無",0,"")) ->  | R47: =IF(D47="有",ROUNDDOWN('1．作成に係る計算表'!$L$24/$D$2,0),IF(D47="無",0,"")) ->  | T47: =IF(D47="有",ROUNDDOWN('1．作成に係る計算表'!$L$24*Q47,0),IF(D47="無",0,"")) ->  | V47: =IF(D47="有",ROUNDDOWN('1．作成に係る計算表'!$L$25/$D$2,0),IF(D47="無",0,"")) ->  | X47: =IF(D47="有",ROUNDDOWN(Q47*'1．作成に係る計算表'!$L$25,0),IF(D47="無",0,"")) -> 
A48: 45 | E48: =IF(M48="","",IF('1．作成に係る計算表'!$T$1="均等割",M48+N48,O48+P48)) ->  | G48: =IF(M48="","",IF('1．作成に係る計算表'!$T$1="均等割",R48+S48,T48+U48)) ->  | H48: =IF(M48="","",IF('1．作成に係る計算表'!$T$1="均等割",V48+W48,X48+Y48)) ->  | I48: =IF(M48="","",IF('1．作成に係る計算表'!$T$1="均等割",AA48+AB48,AC48+AD48)) ->  | J48: =IF(M48="","",IF('1．作成に係る計算表'!$T$1="均等割",AE48+AF48,AG48+AH48)) ->  | M48: =IF(D48="有",ROUNDDOWN('1．作成に係る計算表'!$I$8/$D$2,0),IF(D48="無",0,"")) ->  | O48: =IF(D48="有",ROUNDDOWN('1．作成に係る計算表'!$I$8*Q48,0),IF(D48="無",0,"")) ->  | R48: =IF(D48="有",ROUNDDOWN('1．作成に係る計算表'!$L$24/$D$2,0),IF(D48="無",0,"")) ->  | T48: =IF(D48="有",ROUNDDOWN('1．作成に係る計算表'!$L$24*Q48,0),IF(D48="無",0,"")) ->  | V48: =IF(D48="有",ROUNDDOWN('1．作成に係る計算表'!$L$25/$D$2,0),IF(D48="無",0,"")) ->  | X48: =IF(D48="有",ROUNDDOWN(Q48*'1．作成に係る計算表'!$L$25,0),IF(D48="無",0,"")) -> 
A49: 46 | E49: =IF(M49="","",IF('1．作成に係る計算表'!$T$1="均等割",M49+N49,O49+P49)) ->  | G49: =IF(M49="","",IF('1．作成に係る計算表'!$T$1="均等割",R49+S49,T49+U49)) ->  | H49: =IF(M49="","",IF('1．作成に係る計算表'!$T$1="均等割",V49+W49,X49+Y49)) ->  | I49: =IF(M49="","",IF('1．作成に係る計算表'!$T$1="均等割",AA49+AB49,AC49+AD49)) ->  | J49: =IF(M49="","",IF('1．作成に係る計算表'!$T$1="均等割",AE49+AF49,AG49+AH49)) ->  | M49: =IF(D49="有",ROUNDDOWN('1．作成に係る計算表'!$I$8/$D$2,0),IF(D49="無",0,"")) ->  | O49: =IF(D49="有",ROUNDDOWN('1．作成に係る計算表'!$I$8*Q49,0),IF(D49="無",0,"")) ->  | R49: =IF(D49="有",ROUNDDOWN('1．作成に係る計算表'!$L$24/$D$2,0),IF(D49="無",0,"")) ->  | T49: =IF(D49="有",ROUNDDOWN('1．作成に係る計算表'!$L$24*Q49,0),IF(D49="無",0,"")) ->  | V49: =IF(D49="有",ROUNDDOWN('1．作成に係る計算表'!$L$25/$D$2,0),IF(D49="無",0,"")) ->  | X49: =IF(D49="有",ROUNDDOWN(Q49*'1．作成に係る計算表'!$L$25,0),IF(D49="無",0,"")) -> 
A50: 47 | E50: =IF(M50="","",IF('1．作成に係る計算表'!$T$1="均等割",M50+N50,O50+P50)) ->  | G50: =IF(M50="","",IF('1．作成に係る計算表'!$T$1="均等割",R50+S50,T50+U50)) ->  | H50: =IF(M50="","",IF('1．作成に係る計算表'!$T$1="均等割",V50+W50,X50+Y50)) ->  | I50: =IF(M50="","",IF('1．作成に係る計算表'!$T$1="均等割",AA50+AB50,AC50+AD50)) ->  | J50: =IF(M50="","",IF('1．作成に係る計算表'!$T$1="均等割",AE50+AF50,AG50+AH50)) ->  | M50: =IF(D50="有",ROUNDDOWN('1．作成に係る計算表'!$I$8/$D$2,0),IF(D50="無",0,"")) ->  | O50: =IF(D50="有",ROUNDDOWN('1．作成に係る計算表'!$I$8*Q50,0),IF(D50="無",0,"")) ->  | R50: =IF(D50="有",ROUNDDOWN('1．作成に係る計算表'!$L$24/$D$2,0),IF(D50="無",0,"")) ->  | T50: =IF(D50="有",ROUNDDOWN('1．作成に係る計算表'!$L$24*Q50,0),IF(D50="無",0,"")) ->  | V50: =IF(D50="有",ROUNDDOWN('1．作成に係る計算表'!$L$25/$D$2,0),IF(D50="無",0,"")) ->  | X50: =IF(D50="有",ROUNDDOWN(Q50*'1．作成に係る計算表'!$L$25,0),IF(D50="無",0,"")) -> 
A51: 48 | E51: =IF(M51="","",IF('1．作成に係る計算表'!$T$1="均等割",M51+N51,O51+P51)) ->  | G51: =IF(M51="","",IF('1．作成に係る計算表'!$T$1="均等割",R51+S51,T51+U51)) ->  | H51: =IF(M51="","",IF('1．作成に係る計算表'!$T$1="均等割",V51+W51,X51+Y51)) ->  | I51: =IF(M51="","",IF('1．作成に係る計算表'!$T$1="均等割",AA51+AB51,AC51+AD51)) ->  | J51: =IF(M51="","",IF('1．作成に係る計算表'!$T$1="均等割",AE51+AF51,AG51+AH51)) ->  | M51: =IF(D51="有",ROUNDDOWN('1．作成に係る計算表'!$I$8/$D$2,0),IF(D51="無",0,"")) ->  | O51: =IF(D51="有",ROUNDDOWN('1．作成に係る計算表'!$I$8*Q51,0),IF(D51="無",0,"")) ->  | R51: =IF(D51="有",ROUNDDOWN('1．作成に係る計算表'!$L$24/$D$2,0),IF(D51="無",0,"")) ->  | T51: =IF(D51="有",ROUNDDOWN('1．作成に係る計算表'!$L$24*Q51,0),IF(D51="無",0,"")) ->  | V51: =IF(D51="有",ROUNDDOWN('1．作成に係る計算表'!$L$25/$D$2,0),IF(D51="無",0,"")) ->  | X51: =IF(D51="有",ROUNDDOWN(Q51*'1．作成に係る計算表'!$L$25,0),IF(D51="無",0,"")) -> 
A52: 49 | E52: =IF(M52="","",IF('1．作成に係る計算表'!$T$1="均等割",M52+N52,O52+P52)) ->  | G52: =IF(M52="","",IF('1．作成に係る計算表'!$T$1="均等割",R52+S52,T52+U52)) ->  | H52: =IF(M52="","",IF('1．作成に係る計算表'!$T$1="均等割",V52+W52,X52+Y52)) ->  | I52: =IF(M52="","",IF('1．作成に係る計算表'!$T$1="均等割",AA52+AB52,AC52+AD52)) ->  | J52: =IF(M52="","",IF('1．作成に係る計算表'!$T$1="均等割",AE52+AF52,AG52+AH52)) ->  | M52: =IF(D52="有",ROUNDDOWN('1．作成に係る計算表'!$I$8/$D$2,0),IF(D52="無",0,"")) ->  | O52: =IF(D52="有",ROUNDDOWN('1．作成に係る計算表'!$I$8*Q52,0),IF(D52="無",0,"")) ->  | R52: =IF(D52="有",ROUNDDOWN('1．作成に係る計算表'!$L$24/$D$2,0),IF(D52="無",0,"")) ->  | T52: =IF(D52="有",ROUNDDOWN('1．作成に係る計算表'!$L$24*Q52,0),IF(D52="無",0,"")) ->  | V52: =IF(D52="有",ROUNDDOWN('1．作成に係る計算表'!$L$25/$D$2,0),IF(D52="無",0,"")) ->  | X52: =IF(D52="有",ROUNDDOWN(Q52*'1．作成に係る計算表'!$L$25,0),IF(D52="無",0,"")) -> 
A53: 50 | E53: =IF(M53="","",IF('1．作成に係る計算表'!$T$1="均等割",M53+N53,O53+P53)) ->  | G53: =IF(M53="","",IF('1．作成に係る計算表'!$T$1="均等割",R53+S53,T53+U53)) ->  | H53: =IF(M53="","",IF('1．作成に係る計算表'!$T$1="均等割",V53+W53,X53+Y53)) ->  | I53: =IF(M53="","",IF('1．作成に係る計算表'!$T$1="均等割",AA53+AB53,AC53+AD53)) ->  | J53: =IF(M53="","",IF('1．作成に係る計算表'!$T$1="均等割",AE53+AF53,AG53+AH53)) ->  | M53: =IF(D53="有",ROUNDDOWN('1．作成に係る計算表'!$I$8/$D$2,0),IF(D53="無",0,"")) ->  | O53: =IF(D53="有",ROUNDDOWN('1．作成に係る計算表'!$I$8*Q53,0),IF(D53="無",0,"")) ->  | R53: =IF(D53="有",ROUNDDOWN('1．作成に係る計算表'!$L$24/$D$2,0),IF(D53="無",0,"")) ->  | T53: =IF(D53="有",ROUNDDOWN('1．作成に係る計算表'!$L$24*Q53,0),IF(D53="無",0,"")) ->  | V53: =IF(D53="有",ROUNDDOWN('1．作成に係る計算表'!$L$25/$D$2,0),IF(D53="無",0,"")) ->  | X53: =IF(D53="有",ROUNDDOWN(Q53*'1．作成に係る計算表'!$L$25,0),IF(D53="無",0,"")) -> 
A54: 51 | E54: =IF(M54="","",IF('1．作成に係る計算表'!$T$1="均等割",M54+N54,O54+P54)) ->  | G54: =IF(M54="","",IF('1．作成に係る計算表'!$T$1="均等割",R54+S54,T54+U54)) ->  | H54: =IF(M54="","",IF('1．作成に係る計算表'!$T$1="均等割",V54+W54,X54+Y54)) ->  | I54: =IF(M54="","",IF('1．作成に係る計算表'!$T$1="均等割",AA54+AB54,AC54+AD54)) ->  | J54: =IF(M54="","",IF('1．作成に係る計算表'!$T$1="均等割",AE54+AF54,AG54+AH54)) ->  | M54: =IF(D54="有",ROUNDDOWN('1．作成に係る計算表'!$I$8/$D$2,0),IF(D54="無",0,"")) ->  | O54: =IF(D54="有",ROUNDDOWN('1．作成に係る計算表'!$I$8*Q54,0),IF(D54="無",0,"")) ->  | R54: =IF(D54="有",ROUNDDOWN('1．作成に係る計算表'!$L$24/$D$2,0),IF(D54="無",0,"")) ->  | T54: =IF(D54="有",ROUNDDOWN('1．作成に係る計算表'!$L$24*Q54,0),IF(D54="無",0,"")) ->  | V54: =IF(D54="有",ROUNDDOWN('1．作成に係る計算表'!$L$25/$D$2,0),IF(D54="無",0,"")) ->  | X54: =IF(D54="有",ROUNDDOWN(Q54*'1．作成に係る計算表'!$L$25,0),IF(D54="無",0,"")) -> 
A55: 52 | E55: =IF(M55="","",IF('1．作成に係る計算表'!$T$1="均等割",M55+N55,O55+P55)) ->  | G55: =IF(M55="","",IF('1．作成に係る計算表'!$T$1="均等割",R55+S55,T55+U55)) ->  | H55: =IF(M55="","",IF('1．作成に係る計算表'!$T$1="均等割",V55+W55,X55+Y55)) ->  | I55: =IF(M55="","",IF('1．作成に係る計算表'!$T$1="均等割",AA55+AB55,AC55+AD55)) ->  | J55: =IF(M55="","",IF('1．作成に係る計算表'!$T$1="均等割",AE55+AF55,AG55+AH55)) ->  | M55: =IF(D55="有",ROUNDDOWN('1．作成に係る計算表'!$I$8/$D$2,0),IF(D55="無",0,"")) ->  | O55: =IF(D55="有",ROUNDDOWN('1．作成に係る計算表'!$I$8*Q55,0),IF(D55="無",0,"")) ->  | R55: =IF(D55="有",ROUNDDOWN('1．作成に係る計算表'!$L$24/$D$2,0),IF(D55="無",0,"")) ->  | T55: =IF(D55="有",ROUNDDOWN('1．作成に係る計算表'!$L$24*Q55,0),IF(D55="無",0,"")) ->  | V55: =IF(D55="有",ROUNDDOWN('1．作成に係る計算表'!$L$25/$D$2,0),IF(D55="無",0,"")) ->  | X55: =IF(D55="有",ROUNDDOWN(Q55*'1．作成に係る計算表'!$L$25,0),IF(D55="無",0,"")) -> 
A56: 53 | E56: =IF(M56="","",IF('1．作成に係る計算表'!$T$1="均等割",M56+N56,O56+P56)) ->  | G56: =IF(M56="","",IF('1．作成に係る計算表'!$T$1="均等割",R56+S56,T56+U56)) ->  | H56: =IF(M56="","",IF('1．作成に係る計算表'!$T$1="均等割",V56+W56,X56+Y56)) ->  | I56: =IF(M56="","",IF('1．作成に係る計算表'!$T$1="均等割",AA56+AB56,AC56+AD56)) ->  | J56: =IF(M56="","",IF('1．作成に係る計算表'!$T$1="均等割",AE56+AF56,AG56+AH56)) ->  | M56: =IF(D56="有",ROUNDDOWN('1．作成に係る計算表'!$I$8/$D$2,0),IF(D56="無",0,"")) ->  | O56: =IF(D56="有",ROUNDDOWN('1．作成に係る計算表'!$I$8*Q56,0),IF(D56="無",0,"")) ->  | R56: =IF(D56="有",ROUNDDOWN('1．作成に係る計算表'!$L$24/$D$2,0),IF(D56="無",0,"")) ->  | T56: =IF(D56="有",ROUNDDOWN('1．作成に係る計算表'!$L$24*Q56,0),IF(D56="無",0,"")) ->  | V56: =IF(D56="有",ROUNDDOWN('1．作成に係る計算表'!$L$25/$D$2,0),IF(D56="無",0,"")) ->  | X56: =IF(D56="有",ROUNDDOWN(Q56*'1．作成に係る計算表'!$L$25,0),IF(D56="無",0,"")) -> 
A57: 54 | E57: =IF(M57="","",IF('1．作成に係る計算表'!$T$1="均等割",M57+N57,O57+P57)) ->  | G57: =IF(M57="","",IF('1．作成に係る計算表'!$T$1="均等割",R57+S57,T57+U57)) ->  | H57: =IF(M57="","",IF('1．作成に係る計算表'!$T$1="均等割",V57+W57,X57+Y57)) ->  | I57: =IF(M57="","",IF('1．作成に係る計算表'!$T$1="均等割",AA57+AB57,AC57+AD57)) ->  | J57: =IF(M57="","",IF('1．作成に係る計算表'!$T$1="均等割",AE57+AF57,AG57+AH57)) ->  | M57: =IF(D57="有",ROUNDDOWN('1．作成に係る計算表'!$I$8/$D$2,0),IF(D57="無",0,"")) ->  | O57: =IF(D57="有",ROUNDDOWN('1．作成に係る計算表'!$I$8*Q57,0),IF(D57="無",0,"")) ->  | R57: =IF(D57="有",ROUNDDOWN('1．作成に係る計算表'!$L$24/$D$2,0),IF(D57="無",0,"")) ->  | T57: =IF(D57="有",ROUNDDOWN('1．作成に係る計算表'!$L$24*Q57,0),IF(D57="無",0,"")) ->  | V57: =IF(D57="有",ROUNDDOWN('1．作成に係る計算表'!$L$25/$D$2,0),IF(D57="無",0,"")) ->  | X57: =IF(D57="有",ROUNDDOWN(Q57*'1．作成に係る計算表'!$L$25,0),IF(D57="無",0,"")) -> 
A58: 55 | E58: =IF(M58="","",IF('1．作成に係る計算表'!$T$1="均等割",M58+N58,O58+P58)) ->  | G58: =IF(M58="","",IF('1．作成に係る計算表'!$T$1="均等割",R58+S58,T58+U58)) ->  | H58: =IF(M58="","",IF('1．作成に係る計算表'!$T$1="均等割",V58+W58,X58+Y58)) ->  | I58: =IF(M58="","",IF('1．作成に係る計算表'!$T$1="均等割",AA58+AB58,AC58+AD58)) ->  | J58: =IF(M58="","",IF('1．作成に係る計算表'!$T$1="均等割",AE58+AF58,AG58+AH58)) ->  | M58: =IF(D58="有",ROUNDDOWN('1．作成に係る計算表'!$I$8/$D$2,0),IF(D58="無",0,"")) ->  | O58: =IF(D58="有",ROUNDDOWN('1．作成に係る計算表'!$I$8*Q58,0),IF(D58="無",0,"")) ->  | R58: =IF(D58="有",ROUNDDOWN('1．作成に係る計算表'!$L$24/$D$2,0),IF(D58="無",0,"")) ->  | T58: =IF(D58="有",ROUNDDOWN('1．作成に係る計算表'!$L$24*Q58,0),IF(D58="無",0,"")) ->  | V58: =IF(D58="有",ROUNDDOWN('1．作成に係る計算表'!$L$25/$D$2,0),IF(D58="無",0,"")) ->  | X58: =IF(D58="有",ROUNDDOWN(Q58*'1．作成に係る計算表'!$L$25,0),IF(D58="無",0,"")) -> 
A59: 56 | E59: =IF(M59="","",IF('1．作成に係る計算表'!$T$1="均等割",M59+N59,O59+P59)) ->  | G59: =IF(M59="","",IF('1．作成に係る計算表'!$T$1="均等割",R59+S59,T59+U59)) ->  | H59: =IF(M59="","",IF('1．作成に係る計算表'!$T$1="均等割",V59+W59,X59+Y59)) ->  | I59: =IF(M59="","",IF('1．作成に係る計算表'!$T$1="均等割",AA59+AB59,AC59+AD59)) ->  | J59: =IF(M59="","",IF('1．作成に係る計算表'!$T$1="均等割",AE59+AF59,AG59+AH59)) ->  | M59: =IF(D59="有",ROUNDDOWN('1．作成に係る計算表'!$I$8/$D$2,0),IF(D59="無",0,"")) ->  | O59: =IF(D59="有",ROUNDDOWN('1．作成に係る計算表'!$I$8*Q59,0),IF(D59="無",0,"")) ->  | R59: =IF(D59="有",ROUNDDOWN('1．作成に係る計算表'!$L$24/$D$2,0),IF(D59="無",0,"")) ->  | T59: =IF(D59="有",ROUNDDOWN('1．作成に係る計算表'!$L$24*Q59,0),IF(D59="無",0,"")) ->  | V59: =IF(D59="有",ROUNDDOWN('1．作成に係る計算表'!$L$25/$D$2,0),IF(D59="無",0,"")) ->  | X59: =IF(D59="有",ROUNDDOWN(Q59*'1．作成に係る計算表'!$L$25,0),IF(D59="無",0,"")) -> 
A60: 57 | E60: =IF(M60="","",IF('1．作成に係る計算表'!$T$1="均等割",M60+N60,O60+P60)) ->  | G60: =IF(M60="","",IF('1．作成に係る計算表'!$T$1="均等割",R60+S60,T60+U60)) ->  | H60: =IF(M60="","",IF('1．作成に係る計算表'!$T$1="均等割",V60+W60,X60+Y60)) ->  | I60: =IF(M60="","",IF('1．作成に係る計算表'!$T$1="均等割",AA60+AB60,AC60+AD60)) ->  | J60: =IF(M60="","",IF('1．作成に係る計算表'!$T$1="均等割",AE60+AF60,AG60+AH60)) ->  | M60: =IF(D60="有",ROUNDDOWN('1．作成に係る計算表'!$I$8/$D$2,0),IF(D60="無",0,"")) ->  | O60: =IF(D60="有",ROUNDDOWN('1．作成に係る計算表'!$I$8*Q60,0),IF(D60="無",0,"")) ->  | R60: =IF(D60="有",ROUNDDOWN('1．作成に係る計算表'!$L$24/$D$2,0),IF(D60="無",0,"")) ->  | T60: =IF(D60="有",ROUNDDOWN('1．作成に係る計算表'!$L$24*Q60,0),IF(D60="無",0,"")) ->  | V60: =IF(D60="有",ROUNDDOWN('1．作成に係る計算表'!$L$25/$D$2,0),IF(D60="無",0,"")) ->  | X60: =IF(D60="有",ROUNDDOWN(Q60*'1．作成に係る計算表'!$L$25,0),IF(D60="無",0,"")) -> 
A61: 58 | E61: =IF(M61="","",IF('1．作成に係る計算表'!$T$1="均等割",M61+N61,O61+P61)) ->  | G61: =IF(M61="","",IF('1．作成に係る計算表'!$T$1="均等割",R61+S61,T61+U61)) ->  | H61: =IF(M61="","",IF('1．作成に係る計算表'!$T$1="均等割",V61+W61,X61+Y61)) ->  | I61: =IF(M61="","",IF('1．作成に係る計算表'!$T$1="均等割",AA61+AB61,AC61+AD61)) ->  | J61: =IF(M61="","",IF('1．作成に係る計算表'!$T$1="均等割",AE61+AF61,AG61+AH61)) ->  | M61: =IF(D61="有",ROUNDDOWN('1．作成に係る計算表'!$I$8/$D$2,0),IF(D61="無",0,"")) ->  | O61: =IF(D61="有",ROUNDDOWN('1．作成に係る計算表'!$I$8*Q61,0),IF(D61="無",0,"")) ->  | R61: =IF(D61="有",ROUNDDOWN('1．作成に係る計算表'!$L$24/$D$2,0),IF(D61="無",0,"")) ->  | T61: =IF(D61="有",ROUNDDOWN('1．作成に係る計算表'!$L$24*Q61,0),IF(D61="無",0,"")) ->  | V61: =IF(D61="有",ROUNDDOWN('1．作成に係る計算表'!$L$25/$D$2,0),IF(D61="無",0,"")) ->  | X61: =IF(D61="有",ROUNDDOWN(Q61*'1．作成に係る計算表'!$L$25,0),IF(D61="無",0,"")) -> 
A62: 59 | E62: =IF(M62="","",IF('1．作成に係る計算表'!$T$1="均等割",M62+N62,O62+P62)) ->  | G62: =IF(M62="","",IF('1．作成に係る計算表'!$T$1="均等割",R62+S62,T62+U62)) ->  | H62: =IF(M62="","",IF('1．作成に係る計算表'!$T$1="均等割",V62+W62,X62+Y62)) ->  | I62: =IF(M62="","",IF('1．作成に係る計算表'!$T$1="均等割",AA62+AB62,AC62+AD62)) ->  | J62: =IF(M62="","",IF('1．作成に係る計算表'!$T$1="均等割",AE62+AF62,AG62+AH62)) ->  | M62: =IF(D62="有",ROUNDDOWN('1．作成に係る計算表'!$I$8/$D$2,0),IF(D62="無",0,"")) ->  | O62: =IF(D62="有",ROUNDDOWN('1．作成に係る計算表'!$I$8*Q62,0),IF(D62="無",0,"")) ->  | R62: =IF(D62="有",ROUNDDOWN('1．作成に係る計算表'!$L$24/$D$2,0),IF(D62="無",0,"")) ->  | T62: =IF(D62="有",ROUNDDOWN('1．作成に係る計算表'!$L$24*Q62,0),IF(D62="無",0,"")) ->  | V62: =IF(D62="有",ROUNDDOWN('1．作成に係る計算表'!$L$25/$D$2,0),IF(D62="無",0,"")) ->  | X62: =IF(D62="有",ROUNDDOWN(Q62*'1．作成に係る計算表'!$L$25,0),IF(D62="無",0,"")) -> 
A63: 60 | E63: =IF(M63="","",IF('1．作成に係る計算表'!$T$1="均等割",M63+N63,O63+P63)) ->  | G63: =IF(M63="","",IF('1．作成に係る計算表'!$T$1="均等割",R63+S63,T63+U63)) ->  | H63: =IF(M63="","",IF('1．作成に係る計算表'!$T$1="均等割",V63+W63,X63+Y63)) ->  | I63: =IF(M63="","",IF('1．作成に係る計算表'!$T$1="均等割",AA63+AB63,AC63+AD63)) ->  | J63: =IF(M63="","",IF('1．作成に係る計算表'!$T$1="均等割",AE63+AF63,AG63+AH63)) ->  | M63: =IF(D63="有",ROUNDDOWN('1．作成に係る計算表'!$I$8/$D$2,0),IF(D63="無",0,"")) ->  | O63: =IF(D63="有",ROUNDDOWN('1．作成に係る計算表'!$I$8*Q63,0),IF(D63="無",0,"")) ->  | R63: =IF(D63="有",ROUNDDOWN('1．作成に係る計算表'!$L$24/$D$2,0),IF(D63="無",0,"")) ->  | T63: =IF(D63="有",ROUNDDOWN('1．作成に係る計算表'!$L$24*Q63,0),IF(D63="無",0,"")) ->  | V63: =IF(D63="有",ROUNDDOWN('1．作成に係る計算表'!$L$25/$D$2,0),IF(D63="無",0,"")) ->  | X63: =IF(D63="有",ROUNDDOWN(Q63*'1．作成に係る計算表'!$L$25,0),IF(D63="無",0,"")) -> 
A64: 61 | E64: =IF(M64="","",IF('1．作成に係る計算表'!$T$1="均等割",M64+N64,O64+P64)) ->  | G64: =IF(M64="","",IF('1．作成に係る計算表'!$T$1="均等割",R64+S64,T64+U64)) ->  | H64: =IF(M64="","",IF('1．作成に係る計算表'!$T$1="均等割",V64+W64,X64+Y64)) ->  | I64: =IF(M64="","",IF('1．作成に係る計算表'!$T$1="均等割",AA64+AB64,AC64+AD64)) ->  | J64: =IF(M64="","",IF('1．作成に係る計算表'!$T$1="均等割",AE64+AF64,AG64+AH64)) ->  | M64: =IF(D64="有",ROUNDDOWN('1．作成に係る計算表'!$I$8/$D$2,0),IF(D64="無",0,"")) ->  | O64: =IF(D64="有",ROUNDDOWN('1．作成に係る計算表'!$I$8*Q64,0),IF(D64="無",0,"")) ->  | R64: =IF(D64="有",ROUNDDOWN('1．作成に係る計算表'!$L$24/$D$2,0),IF(D64="無",0,"")) ->  | T64: =IF(D64="有",ROUNDDOWN('1．作成に係る計算表'!$L$24*Q64,0),IF(D64="無",0,"")) ->  | V64: =IF(D64="有",ROUNDDOWN('1．作成に係る計算表'!$L$25/$D$2,0),IF(D64="無",0,"")) ->  | X64: =IF(D64="有",ROUNDDOWN(Q64*'1．作成に係る計算表'!$L$25,0),IF(D64="無",0,"")) -> 
A65: 62 | E65: =IF(M65="","",IF('1．作成に係る計算表'!$T$1="均等割",M65+N65,O65+P65)) ->  | G65: =IF(M65="","",IF('1．作成に係る計算表'!$T$1="均等割",R65+S65,T65+U65)) ->  | H65: =IF(M65="","",IF('1．作成に係る計算表'!$T$1="均等割",V65+W65,X65+Y65)) ->  | I65: =IF(M65="","",IF('1．作成に係る計算表'!$T$1="均等割",AA65+AB65,AC65+AD65)) ->  | J65: =IF(M65="","",IF('1．作成に係る計算表'!$T$1="均等割",AE65+AF65,AG65+AH65)) ->  | M65: =IF(D65="有",ROUNDDOWN('1．作成に係る計算表'!$I$8/$D$2,0),IF(D65="無",0,"")) ->  | O65: =IF(D65="有",ROUNDDOWN('1．作成に係る計算表'!$I$8*Q65,0),IF(D65="無",0,"")) ->  | R65: =IF(D65="有",ROUNDDOWN('1．作成に係る計算表'!$L$24/$D$2,0),IF(D65="無",0,"")) ->  | T65: =IF(D65="有",ROUNDDOWN('1．作成に係る計算表'!$L$24*Q65,0),IF(D65="無",0,"")) ->  | V65: =IF(D65="有",ROUNDDOWN('1．作成に係る計算表'!$L$25/$D$2,0),IF(D65="無",0,"")) ->  | X65: =IF(D65="有",ROUNDDOWN(Q65*'1．作成に係る計算表'!$L$25,0),IF(D65="無",0,"")) -> 
A66: 63 | E66: =IF(M66="","",IF('1．作成に係る計算表'!$T$1="均等割",M66+N66,O66+P66)) ->  | G66: =IF(M66="","",IF('1．作成に係る計算表'!$T$1="均等割",R66+S66,T66+U66)) ->  | H66: =IF(M66="","",IF('1．作成に係る計算表'!$T$1="均等割",V66+W66,X66+Y66)) ->  | I66: =IF(M66="","",IF('1．作成に係る計算表'!$T$1="均等割",AA66+AB66,AC66+AD66)) ->  | J66: =IF(M66="","",IF('1．作成に係る計算表'!$T$1="均等割",AE66+AF66,AG66+AH66)) ->  | M66: =IF(D66="有",ROUNDDOWN('1．作成に係る計算表'!$I$8/$D$2,0),IF(D66="無",0,"")) ->  | O66: =IF(D66="有",ROUNDDOWN('1．作成に係る計算表'!$I$8*Q66,0),IF(D66="無",0,"")) ->  | R66: =IF(D66="有",ROUNDDOWN('1．作成に係る計算表'!$L$24/$D$2,0),IF(D66="無",0,"")) ->  | T66: =IF(D66="有",ROUNDDOWN('1．作成に係る計算表'!$L$24*Q66,0),IF(D66="無",0,"")) ->  | V66: =IF(D66="有",ROUNDDOWN('1．作成に係る計算表'!$L$25/$D$2,0),IF(D66="無",0,"")) ->  | X66: =IF(D66="有",ROUNDDOWN(Q66*'1．作成に係る計算表'!$L$25,0),IF(D66="無",0,"")) -> 
A67: 64 | E67: =IF(M67="","",IF('1．作成に係る計算表'!$T$1="均等割",M67+N67,O67+P67)) ->  | G67: =IF(M67="","",IF('1．作成に係る計算表'!$T$1="均等割",R67+S67,T67+U67)) ->  | H67: =IF(M67="","",IF('1．作成に係る計算表'!$T$1="均等割",V67+W67,X67+Y67)) ->  | I67: =IF(M67="","",IF('1．作成に係る計算表'!$T$1="均等割",AA67+AB67,AC67+AD67)) ->  | J67: =IF(M67="","",IF('1．作成に係る計算表'!$T$1="均等割",AE67+AF67,AG67+AH67)) ->  | M67: =IF(D67="有",ROUNDDOWN('1．作成に係る計算表'!$I$8/$D$2,0),IF(D67="無",0,"")) ->  | O67: =IF(D67="有",ROUNDDOWN('1．作成に係る計算表'!$I$8*Q67,0),IF(D67="無",0,"")) ->  | R67: =IF(D67="有",ROUNDDOWN('1．作成に係る計算表'!$L$24/$D$2,0),IF(D67="無",0,"")) ->  | T67: =IF(D67="有",ROUNDDOWN('1．作成に係る計算表'!$L$24*Q67,0),IF(D67="無",0,"")) ->  | V67: =IF(D67="有",ROUNDDOWN('1．作成に係る計算表'!$L$25/$D$2,0),IF(D67="無",0,"")) ->  | X67: =IF(D67="有",ROUNDDOWN(Q67*'1．作成に係る計算表'!$L$25,0),IF(D67="無",0,"")) -> 
A68: 65 | E68: =IF(M68="","",IF('1．作成に係る計算表'!$T$1="均等割",M68+N68,O68+P68)) ->  | G68: =IF(M68="","",IF('1．作成に係る計算表'!$T$1="均等割",R68+S68,T68+U68)) ->  | H68: =IF(M68="","",IF('1．作成に係る計算表'!$T$1="均等割",V68+W68,X68+Y68)) ->  | I68: =IF(M68="","",IF('1．作成に係る計算表'!$T$1="均等割",AA68+AB68,AC68+AD68)) ->  | J68: =IF(M68="","",IF('1．作成に係る計算表'!$T$1="均等割",AE68+AF68,AG68+AH68)) ->  | L68: =_xlfn.RANK.AVG(C68,$C$4:$C$88) ->  | M68: =IF(D68="有",ROUNDDOWN('1．作成に係る計算表'!$I$8/$D$2,0),IF(D68="無",0,"")) ->  | O68: =IF(D68="有",ROUNDDOWN('1．作成に係る計算表'!$I$8*Q68,0),IF(D68="無",0,"")) ->  | Q68: =C68/SUMIFS($C$4:$C$88,$D$4:$D$88,"有") ->  | R68: =IF(D68="有",ROUNDDOWN('1．作成に係る計算表'!$L$24/$D$2,0),IF(D68="無",0,"")) ->  | T68: =IF(D68="有",ROUNDDOWN('1．作成に係る計算表'!$L$24*Q68,0),IF(D68="無",0,"")) ->  | V68: =IF(D68="有",ROUNDDOWN('1．作成に係る計算表'!$L$25/$D$2,0),IF(D68="無",0,"")) ->  | X68: =IF(D68="有",ROUNDDOWN(Q68*'1．作成に係る計算表'!$L$25,0),IF(D68="無",0,"")) ->  | AA68: =IF(D68="有",ROUNDDOWN($AC$1/$D$2,0),IF(D68="無",0,"")) ->  | AC68: =IF(D68="有",ROUNDDOWN(Q68*$AC$1,0),IF(D68="無",0,"")) ->  | AE68: =IF(D68="有",ROUNDDOWN($AG$1/$D$2,0),IF(D68="無",0,"")) ->  | AG68: =IF(D68="有",ROUNDDOWN(Q68*$AG$1,0),IF(D68="無",0,"")) -> 
A69: 66 | E69: =IF(M69="","",IF('1．作成に係る計算表'!$T$1="均等割",M69+N69,O69+P69)) ->  | G69: =IF(M69="","",IF('1．作成に係る計算表'!$T$1="均等割",R69+S69,T69+U69)) ->  | H69: =IF(M69="","",IF('1．作成に係る計算表'!$T$1="均等割",V69+W69,X69+Y69)) ->  | I69: =IF(M69="","",IF('1．作成に係る計算表'!$T$1="均等割",AA69+AB69,AC69+AD69)) ->  | J69: =IF(M69="","",IF('1．作成に係る計算表'!$T$1="均等割",AE69+AF69,AG69+AH69)) ->  | M69: =IF(D69="有",ROUNDDOWN('1．作成に係る計算表'!$I$8/$D$2,0),IF(D69="無",0,"")) ->  | O69: =IF(D69="有",ROUNDDOWN('1．作成に係る計算表'!$I$8*Q69,0),IF(D69="無",0,"")) ->  | R69: =IF(D69="有",ROUNDDOWN('1．作成に係る計算表'!$L$24/$D$2,0),IF(D69="無",0,"")) ->  | T69: =IF(D69="有",ROUNDDOWN('1．作成に係る計算表'!$L$24*Q69,0),IF(D69="無",0,"")) ->  | V69: =IF(D69="有",ROUNDDOWN('1．作成に係る計算表'!$L$25/$D$2,0),IF(D69="無",0,"")) ->  | X69: =IF(D69="有",ROUNDDOWN(Q69*'1．作成に係る計算表'!$L$25,0),IF(D69="無",0,"")) -> 
A70: 67 | E70: =IF(M70="","",IF('1．作成に係る計算表'!$T$1="均等割",M70+N70,O70+P70)) ->  | G70: =IF(M70="","",IF('1．作成に係る計算表'!$T$1="均等割",R70+S70,T70+U70)) ->  | H70: =IF(M70="","",IF('1．作成に係る計算表'!$T$1="均等割",V70+W70,X70+Y70)) ->  | I70: =IF(M70="","",IF('1．作成に係る計算表'!$T$1="均等割",AA70+AB70,AC70+AD70)) ->  | J70: =IF(M70="","",IF('1．作成に係る計算表'!$T$1="均等割",AE70+AF70,AG70+AH70)) ->  | M70: =IF(D70="有",ROUNDDOWN('1．作成に係る計算表'!$I$8/$D$2,0),IF(D70="無",0,"")) ->  | O70: =IF(D70="有",ROUNDDOWN('1．作成に係る計算表'!$I$8*Q70,0),IF(D70="無",0,"")) ->  | R70: =IF(D70="有",ROUNDDOWN('1．作成に係る計算表'!$L$24/$D$2,0),IF(D70="無",0,"")) ->  | T70: =IF(D70="有",ROUNDDOWN('1．作成に係る計算表'!$L$24*Q70,0),IF(D70="無",0,"")) ->  | V70: =IF(D70="有",ROUNDDOWN('1．作成に係る計算表'!$L$25/$D$2,0),IF(D70="無",0,"")) ->  | X70: =IF(D70="有",ROUNDDOWN(Q70*'1．作成に係る計算表'!$L$25,0),IF(D70="無",0,"")) -> 
A71: 68 | E71: =IF(M71="","",IF('1．作成に係る計算表'!$T$1="均等割",M71+N71,O71+P71)) ->  | G71: =IF(M71="","",IF('1．作成に係る計算表'!$T$1="均等割",R71+S71,T71+U71)) ->  | H71: =IF(M71="","",IF('1．作成に係る計算表'!$T$1="均等割",V71+W71,X71+Y71)) ->  | I71: =IF(M71="","",IF('1．作成に係る計算表'!$T$1="均等割",AA71+AB71,AC71+AD71)) ->  | J71: =IF(M71="","",IF('1．作成に係る計算表'!$T$1="均等割",AE71+AF71,AG71+AH71)) ->  | M71: =IF(D71="有",ROUNDDOWN('1．作成に係る計算表'!$I$8/$D$2,0),IF(D71="無",0,"")) ->  | O71: =IF(D71="有",ROUNDDOWN('1．作成に係る計算表'!$I$8*Q71,0),IF(D71="無",0,"")) ->  | R71: =IF(D71="有",ROUNDDOWN('1．作成に係る計算表'!$L$24/$D$2,0),IF(D71="無",0,"")) ->  | T71: =IF(D71="有",ROUNDDOWN('1．作成に係る計算表'!$L$24*Q71,0),IF(D71="無",0,"")) ->  | V71: =IF(D71="有",ROUNDDOWN('1．作成に係る計算表'!$L$25/$D$2,0),IF(D71="無",0,"")) ->  | X71: =IF(D71="有",ROUNDDOWN(Q71*'1．作成に係る計算表'!$L$25,0),IF(D71="無",0,"")) -> 
A72: 69 | E72: =IF(M72="","",IF('1．作成に係る計算表'!$T$1="均等割",M72+N72,O72+P72)) ->  | G72: =IF(M72="","",IF('1．作成に係る計算表'!$T$1="均等割",R72+S72,T72+U72)) ->  | H72: =IF(M72="","",IF('1．作成に係る計算表'!$T$1="均等割",V72+W72,X72+Y72)) ->  | I72: =IF(M72="","",IF('1．作成に係る計算表'!$T$1="均等割",AA72+AB72,AC72+AD72)) ->  | J72: =IF(M72="","",IF('1．作成に係る計算表'!$T$1="均等割",AE72+AF72,AG72+AH72)) ->  | M72: =IF(D72="有",ROUNDDOWN('1．作成に係る計算表'!$I$8/$D$2,0),IF(D72="無",0,"")) ->  | O72: =IF(D72="有",ROUNDDOWN('1．作成に係る計算表'!$I$8*Q72,0),IF(D72="無",0,"")) ->  | R72: =IF(D72="有",ROUNDDOWN('1．作成に係る計算表'!$L$24/$D$2,0),IF(D72="無",0,"")) ->  | T72: =IF(D72="有",ROUNDDOWN('1．作成に係る計算表'!$L$24*Q72,0),IF(D72="無",0,"")) ->  | V72: =IF(D72="有",ROUNDDOWN('1．作成に係る計算表'!$L$25/$D$2,0),IF(D72="無",0,"")) ->  | X72: =IF(D72="有",ROUNDDOWN(Q72*'1．作成に係る計算表'!$L$25,0),IF(D72="無",0,"")) -> 
A73: 70 | E73: =IF(M73="","",IF('1．作成に係る計算表'!$T$1="均等割",M73+N73,O73+P73)) ->  | G73: =IF(M73="","",IF('1．作成に係る計算表'!$T$1="均等割",R73+S73,T73+U73)) ->  | H73: =IF(M73="","",IF('1．作成に係る計算表'!$T$1="均等割",V73+W73,X73+Y73)) ->  | I73: =IF(M73="","",IF('1．作成に係る計算表'!$T$1="均等割",AA73+AB73,AC73+AD73)) ->  | J73: =IF(M73="","",IF('1．作成に係る計算表'!$T$1="均等割",AE73+AF73,AG73+AH73)) ->  | M73: =IF(D73="有",ROUNDDOWN('1．作成に係る計算表'!$I$8/$D$2,0),IF(D73="無",0,"")) ->  | O73: =IF(D73="有",ROUNDDOWN('1．作成に係る計算表'!$I$8*Q73,0),IF(D73="無",0,"")) ->  | R73: =IF(D73="有",ROUNDDOWN('1．作成に係る計算表'!$L$24/$D$2,0),IF(D73="無",0,"")) ->  | T73: =IF(D73="有",ROUNDDOWN('1．作成に係る計算表'!$L$24*Q73,0),IF(D73="無",0,"")) ->  | V73: =IF(D73="有",ROUNDDOWN('1．作成に係る計算表'!$L$25/$D$2,0),IF(D73="無",0,"")) ->  | X73: =IF(D73="有",ROUNDDOWN(Q73*'1．作成に係る計算表'!$L$25,0),IF(D73="無",0,"")) -> 
A74: 71 | E74: =IF(M74="","",IF('1．作成に係る計算表'!$T$1="均等割",M74+N74,O74+P74)) ->  | G74: =IF(M74="","",IF('1．作成に係る計算表'!$T$1="均等割",R74+S74,T74+U74)) ->  | H74: =IF(M74="","",IF('1．作成に係る計算表'!$T$1="均等割",V74+W74,X74+Y74)) ->  | I74: =IF(M74="","",IF('1．作成に係る計算表'!$T$1="均等割",AA74+AB74,AC74+AD74)) ->  | J74: =IF(M74="","",IF('1．作成に係る計算表'!$T$1="均等割",AE74+AF74,AG74+AH74)) ->  | M74: =IF(D74="有",ROUNDDOWN('1．作成に係る計算表'!$I$8/$D$2,0),IF(D74="無",0,"")) ->  | O74: =IF(D74="有",ROUNDDOWN('1．作成に係る計算表'!$I$8*Q74,0),IF(D74="無",0,"")) ->  | R74: =IF(D74="有",ROUNDDOWN('1．作成に係る計算表'!$L$24/$D$2,0),IF(D74="無",0,"")) ->  | T74: =IF(D74="有",ROUNDDOWN('1．作成に係る計算表'!$L$24*Q74,0),IF(D74="無",0,"")) ->  | V74: =IF(D74="有",ROUNDDOWN('1．作成に係る計算表'!$L$25/$D$2,0),IF(D74="無",0,"")) ->  | X74: =IF(D74="有",ROUNDDOWN(Q74*'1．作成に係る計算表'!$L$25,0),IF(D74="無",0,"")) -> 
A75: 72 | E75: =IF(M75="","",IF('1．作成に係る計算表'!$T$1="均等割",M75+N75,O75+P75)) ->  | G75: =IF(M75="","",IF('1．作成に係る計算表'!$T$1="均等割",R75+S75,T75+U75)) ->  | H75: =IF(M75="","",IF('1．作成に係る計算表'!$T$1="均等割",V75+W75,X75+Y75)) ->  | I75: =IF(M75="","",IF('1．作成に係る計算表'!$T$1="均等割",AA75+AB75,AC75+AD75)) ->  | J75: =IF(M75="","",IF('1．作成に係る計算表'!$T$1="均等割",AE75+AF75,AG75+AH75)) ->  | M75: =IF(D75="有",ROUNDDOWN('1．作成に係る計算表'!$I$8/$D$2,0),IF(D75="無",0,"")) ->  | O75: =IF(D75="有",ROUNDDOWN('1．作成に係る計算表'!$I$8*Q75,0),IF(D75="無",0,"")) ->  | R75: =IF(D75="有",ROUNDDOWN('1．作成に係る計算表'!$L$24/$D$2,0),IF(D75="無",0,"")) ->  | T75: =IF(D75="有",ROUNDDOWN('1．作成に係る計算表'!$L$24*Q75,0),IF(D75="無",0,"")) ->  | V75: =IF(D75="有",ROUNDDOWN('1．作成に係る計算表'!$L$25/$D$2,0),IF(D75="無",0,"")) ->  | X75: =IF(D75="有",ROUNDDOWN(Q75*'1．作成に係る計算表'!$L$25,0),IF(D75="無",0,"")) -> 
A76: 73 | E76: =IF(M76="","",IF('1．作成に係る計算表'!$T$1="均等割",M76+N76,O76+P76)) ->  | G76: =IF(M76="","",IF('1．作成に係る計算表'!$T$1="均等割",R76+S76,T76+U76)) ->  | H76: =IF(M76="","",IF('1．作成に係る計算表'!$T$1="均等割",V76+W76,X76+Y76)) ->  | I76: =IF(M76="","",IF('1．作成に係る計算表'!$T$1="均等割",AA76+AB76,AC76+AD76)) ->  | J76: =IF(M76="","",IF('1．作成に係る計算表'!$T$1="均等割",AE76+AF76,AG76+AH76)) ->  | M76: =IF(D76="有",ROUNDDOWN('1．作成に係る計算表'!$I$8/$D$2,0),IF(D76="無",0,"")) ->  | O76: =IF(D76="有",ROUNDDOWN('1．作成に係る計算表'!$I$8*Q76,0),IF(D76="無",0,"")) ->  | R76: =IF(D76="有",ROUNDDOWN('1．作成に係る計算表'!$L$24/$D$2,0),IF(D76="無",0,"")) ->  | T76: =IF(D76="有",ROUNDDOWN('1．作成に係る計算表'!$L$24*Q76,0),IF(D76="無",0,"")) ->  | V76: =IF(D76="有",ROUNDDOWN('1．作成に係る計算表'!$L$25/$D$2,0),IF(D76="無",0,"")) ->  | X76: =IF(D76="有",ROUNDDOWN(Q76*'1．作成に係る計算表'!$L$25,0),IF(D76="無",0,"")) -> 
A77: 74 | E77: =IF(M77="","",IF('1．作成に係る計算表'!$T$1="均等割",M77+N77,O77+P77)) ->  | G77: =IF(M77="","",IF('1．作成に係る計算表'!$T$1="均等割",R77+S77,T77+U77)) ->  | H77: =IF(M77="","",IF('1．作成に係る計算表'!$T$1="均等割",V77+W77,X77+Y77)) ->  | I77: =IF(M77="","",IF('1．作成に係る計算表'!$T$1="均等割",AA77+AB77,AC77+AD77)) ->  | J77: =IF(M77="","",IF('1．作成に係る計算表'!$T$1="均等割",AE77+AF77,AG77+AH77)) ->  | M77: =IF(D77="有",ROUNDDOWN('1．作成に係る計算表'!$I$8/$D$2,0),IF(D77="無",0,"")) ->  | O77: =IF(D77="有",ROUNDDOWN('1．作成に係る計算表'!$I$8*Q77,0),IF(D77="無",0,"")) ->  | R77: =IF(D77="有",ROUNDDOWN('1．作成に係る計算表'!$L$24/$D$2,0),IF(D77="無",0,"")) ->  | T77: =IF(D77="有",ROUNDDOWN('1．作成に係る計算表'!$L$24*Q77,0),IF(D77="無",0,"")) ->  | V77: =IF(D77="有",ROUNDDOWN('1．作成に係る計算表'!$L$25/$D$2,0),IF(D77="無",0,"")) ->  | X77: =IF(D77="有",ROUNDDOWN(Q77*'1．作成に係る計算表'!$L$25,0),IF(D77="無",0,"")) -> 
A78: 75 | E78: =IF(M78="","",IF('1．作成に係る計算表'!$T$1="均等割",M78+N78,O78+P78)) ->  | G78: =IF(M78="","",IF('1．作成に係る計算表'!$T$1="均等割",R78+S78,T78+U78)) ->  | H78: =IF(M78="","",IF('1．作成に係る計算表'!$T$1="均等割",V78+W78,X78+Y78)) ->  | I78: =IF(M78="","",IF('1．作成に係る計算表'!$T$1="均等割",AA78+AB78,AC78+AD78)) ->  | J78: =IF(M78="","",IF('1．作成に係る計算表'!$T$1="均等割",AE78+AF78,AG78+AH78)) ->  | M78: =IF(D78="有",ROUNDDOWN('1．作成に係る計算表'!$I$8/$D$2,0),IF(D78="無",0,"")) ->  | O78: =IF(D78="有",ROUNDDOWN('1．作成に係る計算表'!$I$8*Q78,0),IF(D78="無",0,"")) ->  | R78: =IF(D78="有",ROUNDDOWN('1．作成に係る計算表'!$L$24/$D$2,0),IF(D78="無",0,"")) ->  | T78: =IF(D78="有",ROUNDDOWN('1．作成に係る計算表'!$L$24*Q78,0),IF(D78="無",0,"")) ->  | V78: =IF(D78="有",ROUNDDOWN('1．作成に係る計算表'!$L$25/$D$2,0),IF(D78="無",0,"")) ->  | X78: =IF(D78="有",ROUNDDOWN(Q78*'1．作成に係る計算表'!$L$25,0),IF(D78="無",0,"")) -> 
A79: 76 | E79: =IF(M79="","",IF('1．作成に係る計算表'!$T$1="均等割",M79+N79,O79+P79)) ->  | G79: =IF(M79="","",IF('1．作成に係る計算表'!$T$1="均等割",R79+S79,T79+U79)) ->  | H79: =IF(M79="","",IF('1．作成に係る計算表'!$T$1="均等割",V79+W79,X79+Y79)) ->  | I79: =IF(M79="","",IF('1．作成に係る計算表'!$T$1="均等割",AA79+AB79,AC79+AD79)) ->  | J79: =IF(M79="","",IF('1．作成に係る計算表'!$T$1="均等割",AE79+AF79,AG79+AH79)) ->  | M79: =IF(D79="有",ROUNDDOWN('1．作成に係る計算表'!$I$8/$D$2,0),IF(D79="無",0,"")) ->  | O79: =IF(D79="有",ROUNDDOWN('1．作成に係る計算表'!$I$8*Q79,0),IF(D79="無",0,"")) ->  | R79: =IF(D79="有",ROUNDDOWN('1．作成に係る計算表'!$L$24/$D$2,0),IF(D79="無",0,"")) ->  | T79: =IF(D79="有",ROUNDDOWN('1．作成に係る計算表'!$L$24*Q79,0),IF(D79="無",0,"")) ->  | V79: =IF(D79="有",ROUNDDOWN('1．作成に係る計算表'!$L$25/$D$2,0),IF(D79="無",0,"")) ->  | X79: =IF(D79="有",ROUNDDOWN(Q79*'1．作成に係る計算表'!$L$25,0),IF(D79="無",0,"")) -> 
A80: 77 | E80: =IF(M80="","",IF('1．作成に係る計算表'!$T$1="均等割",M80+N80,O80+P80)) ->  | G80: =IF(M80="","",IF('1．作成に係る計算表'!$T$1="均等割",R80+S80,T80+U80)) ->  | H80: =IF(M80="","",IF('1．作成に係る計算表'!$T$1="均等割",V80+W80,X80+Y80)) ->  | I80: =IF(M80="","",IF('1．作成に係る計算表'!$T$1="均等割",AA80+AB80,AC80+AD80)) ->  | J80: =IF(M80="","",IF('1．作成に係る計算表'!$T$1="均等割",AE80+AF80,AG80+AH80)) ->  | M80: =IF(D80="有",ROUNDDOWN('1．作成に係る計算表'!$I$8/$D$2,0),IF(D80="無",0,"")) ->  | O80: =IF(D80="有",ROUNDDOWN('1．作成に係る計算表'!$I$8*Q80,0),IF(D80="無",0,"")) ->  | R80: =IF(D80="有",ROUNDDOWN('1．作成に係る計算表'!$L$24/$D$2,0),IF(D80="無",0,"")) ->  | T80: =IF(D80="有",ROUNDDOWN('1．作成に係る計算表'!$L$24*Q80,0),IF(D80="無",0,"")) ->  | V80: =IF(D80="有",ROUNDDOWN('1．作成に係る計算表'!$L$25/$D$2,0),IF(D80="無",0,"")) ->  | X80: =IF(D80="有",ROUNDDOWN(Q80*'1．作成に係る計算表'!$L$25,0),IF(D80="無",0,"")) -> 
A81: 78 | E81: =IF(M81="","",IF('1．作成に係る計算表'!$T$1="均等割",M81+N81,O81+P81)) ->  | G81: =IF(M81="","",IF('1．作成に係る計算表'!$T$1="均等割",R81+S81,T81+U81)) ->  | H81: =IF(M81="","",IF('1．作成に係る計算表'!$T$1="均等割",V81+W81,X81+Y81)) ->  | I81: =IF(M81="","",IF('1．作成に係る計算表'!$T$1="均等割",AA81+AB81,AC81+AD81)) ->  | J81: =IF(M81="","",IF('1．作成に係る計算表'!$T$1="均等割",AE81+AF81,AG81+AH81)) ->  | M81: =IF(D81="有",ROUNDDOWN('1．作成に係る計算表'!$I$8/$D$2,0),IF(D81="無",0,"")) ->  | O81: =IF(D81="有",ROUNDDOWN('1．作成に係る計算表'!$I$8*Q81,0),IF(D81="無",0,"")) ->  | R81: =IF(D81="有",ROUNDDOWN('1．作成に係る計算表'!$L$24/$D$2,0),IF(D81="無",0,"")) ->  | T81: =IF(D81="有",ROUNDDOWN('1．作成に係る計算表'!$L$24*Q81,0),IF(D81="無",0,"")) ->  | V81: =IF(D81="有",ROUNDDOWN('1．作成に係る計算表'!$L$25/$D$2,0),IF(D81="無",0,"")) ->  | X81: =IF(D81="有",ROUNDDOWN(Q81*'1．作成に係る計算表'!$L$25,0),IF(D81="無",0,"")) -> 
A82: 79 | E82: =IF(M82="","",IF('1．作成に係る計算表'!$T$1="均等割",M82+N82,O82+P82)) ->  | G82: =IF(M82="","",IF('1．作成に係る計算表'!$T$1="均等割",R82+S82,T82+U82)) ->  | H82: =IF(M82="","",IF('1．作成に係る計算表'!$T$1="均等割",V82+W82,X82+Y82)) ->  | I82: =IF(M82="","",IF('1．作成に係る計算表'!$T$1="均等割",AA82+AB82,AC82+AD82)) ->  | J82: =IF(M82="","",IF('1．作成に係る計算表'!$T$1="均等割",AE82+AF82,AG82+AH82)) ->  | M82: =IF(D82="有",ROUNDDOWN('1．作成に係る計算表'!$I$8/$D$2,0),IF(D82="無",0,"")) ->  | O82: =IF(D82="有",ROUNDDOWN('1．作成に係る計算表'!$I$8*Q82,0),IF(D82="無",0,"")) ->  | R82: =IF(D82="有",ROUNDDOWN('1．作成に係る計算表'!$L$24/$D$2,0),IF(D82="無",0,"")) ->  | T82: =IF(D82="有",ROUNDDOWN('1．作成に係る計算表'!$L$24*Q82,0),IF(D82="無",0,"")) ->  | V82: =IF(D82="有",ROUNDDOWN('1．作成に係る計算表'!$L$25/$D$2,0),IF(D82="無",0,"")) ->  | X82: =IF(D82="有",ROUNDDOWN(Q82*'1．作成に係る計算表'!$L$25,0),IF(D82="無",0,"")) -> 
A83: 80 | E83: =IF(M83="","",IF('1．作成に係る計算表'!$T$1="均等割",M83+N83,O83+P83)) ->  | G83: =IF(M83="","",IF('1．作成に係る計算表'!$T$1="均等割",R83+S83,T83+U83)) ->  | H83: =IF(M83="","",IF('1．作成に係る計算表'!$T$1="均等割",V83+W83,X83+Y83)) ->  | I83: =IF(M83="","",IF('1．作成に係る計算表'!$T$1="均等割",AA83+AB83,AC83+AD83)) ->  | J83: =IF(M83="","",IF('1．作成に係る計算表'!$T$1="均等割",AE83+AF83,AG83+AH83)) ->  | M83: =IF(D83="有",ROUNDDOWN('1．作成に係る計算表'!$I$8/$D$2,0),IF(D83="無",0,"")) ->  | O83: =IF(D83="有",ROUNDDOWN('1．作成に係る計算表'!$I$8*Q83,0),IF(D83="無",0,"")) ->  | R83: =IF(D83="有",ROUNDDOWN('1．作成に係る計算表'!$L$24/$D$2,0),IF(D83="無",0,"")) ->  | T83: =IF(D83="有",ROUNDDOWN('1．作成に係る計算表'!$L$24*Q83,0),IF(D83="無",0,"")) ->  | V83: =IF(D83="有",ROUNDDOWN('1．作成に係る計算表'!$L$25/$D$2,0),IF(D83="無",0,"")) ->  | X83: =IF(D83="有",ROUNDDOWN(Q83*'1．作成に係る計算表'!$L$25,0),IF(D83="無",0,"")) -> 
A84: 81 | E84: =IF(M84="","",IF('1．作成に係る計算表'!$T$1="均等割",M84+N84,O84+P84)) ->  | G84: =IF(M84="","",IF('1．作成に係る計算表'!$T$1="均等割",R84+S84,T84+U84)) ->  | H84: =IF(M84="","",IF('1．作成に係る計算表'!$T$1="均等割",V84+W84,X84+Y84)) ->  | I84: =IF(M84="","",IF('1．作成に係る計算表'!$T$1="均等割",AA84+AB84,AC84+AD84)) ->  | J84: =IF(M84="","",IF('1．作成に係る計算表'!$T$1="均等割",AE84+AF84,AG84+AH84)) ->  | M84: =IF(D84="有",ROUNDDOWN('1．作成に係る計算表'!$I$8/$D$2,0),IF(D84="無",0,"")) ->  | O84: =IF(D84="有",ROUNDDOWN('1．作成に係る計算表'!$I$8*Q84,0),IF(D84="無",0,"")) ->  | R84: =IF(D84="有",ROUNDDOWN('1．作成に係る計算表'!$L$24/$D$2,0),IF(D84="無",0,"")) ->  | T84: =IF(D84="有",ROUNDDOWN('1．作成に係る計算表'!$L$24*Q84,0),IF(D84="無",0,"")) ->  | V84: =IF(D84="有",ROUNDDOWN('1．作成に係る計算表'!$L$25/$D$2,0),IF(D84="無",0,"")) ->  | X84: =IF(D84="有",ROUNDDOWN(Q84*'1．作成に係る計算表'!$L$25,0),IF(D84="無",0,"")) -> 
A85: 82 | E85: =IF(M85="","",IF('1．作成に係る計算表'!$T$1="均等割",M85+N85,O85+P85)) ->  | G85: =IF(M85="","",IF('1．作成に係る計算表'!$T$1="均等割",R85+S85,T85+U85)) ->  | H85: =IF(M85="","",IF('1．作成に係る計算表'!$T$1="均等割",V85+W85,X85+Y85)) ->  | I85: =IF(M85="","",IF('1．作成に係る計算表'!$T$1="均等割",AA85+AB85,AC85+AD85)) ->  | J85: =IF(M85="","",IF('1．作成に係る計算表'!$T$1="均等割",AE85+AF85,AG85+AH85)) ->  | M85: =IF(D85="有",ROUNDDOWN('1．作成に係る計算表'!$I$8/$D$2,0),IF(D85="無",0,"")) ->  | O85: =IF(D85="有",ROUNDDOWN('1．作成に係る計算表'!$I$8*Q85,0),IF(D85="無",0,"")) ->  | R85: =IF(D85="有",ROUNDDOWN('1．作成に係る計算表'!$L$24/$D$2,0),IF(D85="無",0,"")) ->  | T85: =IF(D85="有",ROUNDDOWN('1．作成に係る計算表'!$L$24*Q85,0),IF(D85="無",0,"")) ->  | V85: =IF(D85="有",ROUNDDOWN('1．作成に係る計算表'!$L$25/$D$2,0),IF(D85="無",0,"")) ->  | X85: =IF(D85="有",ROUNDDOWN(Q85*'1．作成に係る計算表'!$L$25,0),IF(D85="無",0,"")) -> 
A86: 83 | E86: =IF(M86="","",IF('1．作成に係る計算表'!$T$1="均等割",M86+N86,O86+P86)) ->  | G86: =IF(M86="","",IF('1．作成に係る計算表'!$T$1="均等割",R86+S86,T86+U86)) ->  | H86: =IF(M86="","",IF('1．作成に係る計算表'!$T$1="均等割",V86+W86,X86+Y86)) ->  | I86: =IF(M86="","",IF('1．作成に係る計算表'!$T$1="均等割",AA86+AB86,AC86+AD86)) ->  | J86: =IF(M86="","",IF('1．作成に係る計算表'!$T$1="均等割",AE86+AF86,AG86+AH86)) ->  | M86: =IF(D86="有",ROUNDDOWN('1．作成に係る計算表'!$I$8/$D$2,0),IF(D86="無",0,"")) ->  | O86: =IF(D86="有",ROUNDDOWN('1．作成に係る計算表'!$I$8*Q86,0),IF(D86="無",0,"")) ->  | R86: =IF(D86="有",ROUNDDOWN('1．作成に係る計算表'!$L$24/$D$2,0),IF(D86="無",0,"")) ->  | T86: =IF(D86="有",ROUNDDOWN('1．作成に係る計算表'!$L$24*Q86,0),IF(D86="無",0,"")) ->  | V86: =IF(D86="有",ROUNDDOWN('1．作成に係る計算表'!$L$25/$D$2,0),IF(D86="無",0,"")) ->  | X86: =IF(D86="有",ROUNDDOWN(Q86*'1．作成に係る計算表'!$L$25,0),IF(D86="無",0,"")) -> 
A87: 84 | E87: =IF(M87="","",IF('1．作成に係る計算表'!$T$1="均等割",M87+N87,O87+P87)) ->  | G87: =IF(M87="","",IF('1．作成に係る計算表'!$T$1="均等割",R87+S87,T87+U87)) ->  | H87: =IF(M87="","",IF('1．作成に係る計算表'!$T$1="均等割",V87+W87,X87+Y87)) ->  | I87: =IF(M87="","",IF('1．作成に係る計算表'!$T$1="均等割",AA87+AB87,AC87+AD87)) ->  | J87: =IF(M87="","",IF('1．作成に係る計算表'!$T$1="均等割",AE87+AF87,AG87+AH87)) ->  | M87: =IF(D87="有",ROUNDDOWN('1．作成に係る計算表'!$I$8/$D$2,0),IF(D87="無",0,"")) ->  | O87: =IF(D87="有",ROUNDDOWN('1．作成に係る計算表'!$I$8*Q87,0),IF(D87="無",0,"")) ->  | R87: =IF(D87="有",ROUNDDOWN('1．作成に係る計算表'!$L$24/$D$2,0),IF(D87="無",0,"")) ->  | T87: =IF(D87="有",ROUNDDOWN('1．作成に係る計算表'!$L$24*Q87,0),IF(D87="無",0,"")) ->  | V87: =IF(D87="有",ROUNDDOWN('1．作成に係る計算表'!$L$25/$D$2,0),IF(D87="無",0,"")) ->  | X87: =IF(D87="有",ROUNDDOWN(Q87*'1．作成に係る計算表'!$L$25,0),IF(D87="無",0,"")) -> 
A88: 85 | E88: =IF(M88="","",IF('1．作成に係る計算表'!$T$1="均等割",M88+N88,O88+P88)) ->  | G88: =IF(M88="","",IF('1．作成に係る計算表'!$T$1="均等割",R88+S88,T88+U88)) ->  | H88: =IF(M88="","",IF('1．作成に係る計算表'!$T$1="均等割",V88+W88,X88+Y88)) ->  | I88: =IF(M88="","",IF('1．作成に係る計算表'!$T$1="均等割",AA88+AB88,AC88+AD88)) ->  | J88: =IF(M88="","",IF('1．作成に係る計算表'!$T$1="均等割",AE88+AF88,AG88+AH88)) ->  | M88: =IF(D88="有",ROUNDDOWN('1．作成に係る計算表'!$I$8/$D$2,0),IF(D88="無",0,"")) ->  | O88: =IF(D88="有",ROUNDDOWN('1．作成に係る計算表'!$I$8*Q88,0),IF(D88="無",0,"")) ->  | R88: =IF(D88="有",ROUNDDOWN('1．作成に係る計算表'!$L$24/$D$2,0),IF(D88="無",0,"")) ->  | T88: =IF(D88="有",ROUNDDOWN('1．作成に係る計算表'!$L$24*Q88,0),IF(D88="無",0,"")) ->  | V88: =IF(D88="有",ROUNDDOWN('1．作成に係る計算表'!$L$25/$D$2,0),IF(D88="無",0,"")) ->  | X88: =IF(D88="有",ROUNDDOWN(Q88*'1．作成に係る計算表'!$L$25,0),IF(D88="無",0,"")) -> 

Sheet ３．収支状況報告書
B1: STEP⑧：代表者名及び該当行政区を入力する。 | E1: STEP⑨：申告対象年を入力する。→ | H1: 令和 | I1: 5 | J1: STEP⑩：印刷する。
M2: 2023-12-31
A4: =H1&I1&"年分【"&H1&I1&"年1月1日～"&H1&I1&"年12月31日】" -> 令和5年分【令和5年1月1日～令和5年12月31日】
A5: 確定申告に係る中山間地域等直接支払交付金収支状況報告書
J7: 集落協定名 | K7: =IF('1．作成に係る計算表'!R3="","",'1．作成に係る計算表'!R3) ->  | M7: 集落協定
J9: 集落協定代表者 | N9: ㊞
J11: 該当行政区名
A13: No. | B13: 氏名 | C13: 収入 | G13: 支出 | M13: 所得金額 | N13: 備考
C14: 交付金 | F14: 役員報酬等 | G14: ⑤ 共同取組活動分 | K14: ⑨ | L14: ⑩
C15: ① | D15: ② | E15: ③ | F15: ④ | G15: 支出額 | H15: ⑥ ⑤のうち | I15: ⑦ ⑤のうち | J15: ⑧ | K15: 減価償却費 | L15: 必要経費 （⑧+⑨）
C16: 個人配分分 | D16: 共同取組活動分 | E16: 合計 （①＋②） | F16: 個人が受領した額 | H16: 必要経費に該当しない支出額 | I16: 減価償却資産 の取得金額 | J16: 差引計 （⑤-⑥-⑦） | M16: （③-⑩＋④）
C17: 円 | D17: 円 | E17: 円 | F17: 円 | G17: 円 | H17: 円 | I17: 円 | J17: 円 | K17: 円 | L17: 円 | M17: 円
B18: 集落合計 | C18: =SUM(C19:C103) -> 0 | D18: =SUM(D19:D103) -> 0 | E18: =C18+D18 -> 0 | F18: =SUM(F19:F103) -> 0 | G18: =SUM(G19:G103) -> 0 | H18: =SUM(H19:H103) -> 0 | I18: =SUM(I19:I103) -> 0 | J18: =G18-H18-I18 -> 0 | K18: =SUM(K19:K103) -> 0 | L18: =J18+K18 -> 0 | M18: =E18-L18+F18 -> 0
A19: 1 | B19: =IF('２．参加者別明細'!B4="","",'２．参加者別明細'!B4) ->  | C19: =IF(B19="","",'２．参加者別明細'!C4) ->  | D19: =IF(B19="","",'２．参加者別明細'!E4) ->  | E19: =IF(ISERR(IF(B19="","",C19+D19))=TRUE,"",IF(B19="","",C19+D19)) ->  | F19: =IF(B19="","",'２．参加者別明細'!F4) ->  | G19: ='２．参加者別明細'!G4 ->  | H19: ='２．参加者別明細'!H4 ->  | I19: ='２．参加者別明細'!I4 ->  | J19: =IF(G19="","",G19-H19-I19) ->  | K19: ='２．参加者別明細'!J4 ->  | L19: =IF(G19="","",J19+K19) ->  | M19: =IF(G19="","",E19-L19+F19) ->  | O19: =IF(B19="","","○") -> 
A20: 2 | B20: =IF('２．参加者別明細'!B5="","",'２．参加者別明細'!B5) ->  | C20: =IF(B20="","",'２．参加者別明細'!C5) ->  | D20: =IF(B20="","",'２．参加者別明細'!E5) ->  | E20: =IF(ISERR(IF(B20="","",C20+D20))=TRUE,"",IF(B20="","",C20+D20)) ->  | F20: =IF(B20="","",'２．参加者別明細'!F5) ->  | G20: ='２．参加者別明細'!G5 ->  | H20: ='２．参加者別明細'!H5 ->  | I20: ='２．参加者別明細'!I5 ->  | J20: =IF(G20="","",G20-H20-I20) ->  | K20: ='２．参加者別明細'!J5 ->  | L20: =IF(G20="","",J20+K20) ->  | M20: =IF(G20="","",E20-L20+F20) ->  | O20: =IF(B20="","","○") -> 
A21: 3 | B21: =IF('２．参加者別明細'!B6="","",'２．参加者別明細'!B6) ->  | C21: =IF(B21="","",'２．参加者別明細'!C6) ->  | D21: =IF(B21="","",'２．参加者別明細'!E6) ->  | F21: =IF(B21="","",'２．参加者別明細'!F6) ->  | G21: ='２．参加者別明細'!G6 ->  | H21: ='２．参加者別明細'!H6 ->  | I21: ='２．参加者別明細'!I6 ->  | K21: ='２．参加者別明細'!J6 -> 
A22: 4 | B22: =IF('２．参加者別明細'!B7="","",'２．参加者別明細'!B7) ->  | C22: =IF(B22="","",'２．参加者別明細'!C7) ->  | D22: =IF(B22="","",'２．参加者別明細'!E7) ->  | F22: =IF(B22="","",'２．参加者別明細'!F7) ->  | G22: ='２．参加者別明細'!G7 ->  | H22: ='２．参加者別明細'!H7 ->  | I22: ='２．参加者別明細'!I7 ->  | K22: ='２．参加者別明細'!J7 -> 
A23: 5 | B23: =IF('２．参加者別明細'!B8="","",'２．参加者別明細'!B8) ->  | C23: =IF(B23="","",'２．参加者別明細'!C8) ->  | D23: =IF(B23="","",'２．参加者別明細'!E8) ->  | F23: =IF(B23="","",'２．参加者別明細'!F8) ->  | G23: ='２．参加者別明細'!G8 ->  | H23: ='２．参加者別明細'!H8 ->  | I23: ='２．参加者別明細'!I8 ->  | K23: ='２．参加者別明細'!J8 -> 
A24: 6 | B24: =IF('２．参加者別明細'!B9="","",'２．参加者別明細'!B9) ->  | C24: =IF(B24="","",'２．参加者別明細'!C9) ->  | D24: =IF(B24="","",'２．参加者別明細'!E9) ->  | F24: =IF(B24="","",'２．参加者別明細'!F9) ->  | G24: ='２．参加者別明細'!G9 ->  | H24: ='２．参加者別明細'!H9 ->  | I24: ='２．参加者別明細'!I9 ->  | K24: ='２．参加者別明細'!J9 -> 
A25: 7 | B25: =IF('２．参加者別明細'!B10="","",'２．参加者別明細'!B10) ->  | C25: =IF(B25="","",'２．参加者別明細'!C10) ->  | D25: =IF(B25="","",'２．参加者別明細'!E10) ->  | F25: =IF(B25="","",'２．参加者別明細'!F10) ->  | G25: ='２．参加者別明細'!G10 ->  | H25: ='２．参加者別明細'!H10 ->  | I25: ='２．参加者別明細'!I10 ->  | K25: ='２．参加者別明細'!J10 -> 
A26: 8 | B26: =IF('２．参加者別明細'!B11="","",'２．参加者別明細'!B11) ->  | C26: =IF(B26="","",'２．参加者別明細'!C11) ->  | D26: =IF(B26="","",'２．参加者別明細'!E11) ->  | F26: =IF(B26="","",'２．参加者別明細'!F11) ->  | G26: ='２．参加者別明細'!G11 ->  | H26: ='２．参加者別明細'!H11 ->  | I26: ='２．参加者別明細'!I11 ->  | K26: ='２．参加者別明細'!J11 -> 
A27: 9 | B27: =IF('２．参加者別明細'!B12="","",'２．参加者別明細'!B12) ->  | C27: =IF(B27="","",'２．参加者別明細'!C12) ->  | D27: =IF(B27="","",'２．参加者別明細'!E12) ->  | F27: =IF(B27="","",'２．参加者別明細'!F12) ->  | G27: ='２．参加者別明細'!G12 ->  | H27: ='２．参加者別明細'!H12 ->  | I27: ='２．参加者別明細'!I12 ->  | K27: ='２．参加者別明細'!J12 -> 
A28: 10 | B28: =IF('２．参加者別明細'!B13="","",'２．参加者別明細'!B13) ->  | C28: =IF(B28="","",'２．参加者別明細'!C13) ->  | D28: =IF(B28="","",'２．参加者別明細'!E13) ->  | F28: =IF(B28="","",'２．参加者別明細'!F13) ->  | G28: ='２．参加者別明細'!G13 ->  | H28: ='２．参加者別明細'!H13 ->  | I28: ='２．参加者別明細'!I13 ->  | K28: ='２．参加者別明細'!J13 -> 
A29: 11 | B29: =IF('２．参加者別明細'!B14="","",'２．参加者別明細'!B14) ->  | C29: =IF(B29="","",'２．参加者別明細'!C14) ->  | D29: =IF(B29="","",'２．参加者別明細'!E14) ->  | F29: =IF(B29="","",'２．参加者別明細'!F14) ->  | G29: ='２．参加者別明細'!G14 ->  | H29: ='２．参加者別明細'!H14 ->  | I29: ='２．参加者別明細'!I14 ->  | K29: ='２．参加者別明細'!J14 -> 
A30: 12 | B30: =IF('２．参加者別明細'!B15="","",'２．参加者別明細'!B15) ->  | C30: =IF(B30="","",'２．参加者別明細'!C15) ->  | D30: =IF(B30="","",'２．参加者別明細'!E15) ->  | F30: =IF(B30="","",'２．参加者別明細'!F15) ->  | G30: ='２．参加者別明細'!G15 ->  | H30: ='２．参加者別明細'!H15 ->  | I30: ='２．参加者別明細'!I15 ->  | K30: ='２．参加者別明細'!J15 -> 
A31: 13 | B31: =IF('２．参加者別明細'!B16="","",'２．参加者別明細'!B16) ->  | C31: =IF(B31="","",'２．参加者別明細'!C16) ->  | D31: =IF(B31="","",'２．参加者別明細'!E16) ->  | F31: =IF(B31="","",'２．参加者別明細'!F16) ->  | G31: ='２．参加者別明細'!G16 ->  | H31: ='２．参加者別明細'!H16 ->  | I31: ='２．参加者別明細'!I16 ->  | K31: ='２．参加者別明細'!J16 -> 
A32: 14 | B32: =IF('２．参加者別明細'!B17="","",'２．参加者別明細'!B17) ->  | C32: =IF(B32="","",'２．参加者別明細'!C17) ->  | D32: =IF(B32="","",'２．参加者別明細'!E17) ->  | F32: =IF(B32="","",'２．参加者別明細'!F17) ->  | G32: ='２．参加者別明細'!G17 ->  | H32: ='２．参加者別明細'!H17 ->  | I32: ='２．参加者別明細'!I17 ->  | K32: ='２．参加者別明細'!J17 -> 
A33: 15 | B33: =IF('２．参加者別明細'!B18="","",'２．参加者別明細'!B18) ->  | C33: =IF(B33="","",'２．参加者別明細'!C18) ->  | D33: =IF(B33="","",'２．参加者別明細'!E18) ->  | F33: =IF(B33="","",'２．参加者別明細'!F18) ->  | G33: ='２．参加者別明細'!G18 ->  | H33: ='２．参加者別明細'!H18 ->  | I33: ='２．参加者別明細'!I18 ->  | K33: ='２．参加者別明細'!J18 -> 
A34: 16 | B34: =IF('２．参加者別明細'!B19="","",'２．参加者別明細'!B19) ->  | C34: =IF(B34="","",'２．参加者別明細'!C19) ->  | D34: =IF(B34="","",'２．参加者別明細'!E19) ->  | F34: =IF(B34="","",'２．参加者別明細'!F19) ->  | G34: ='２．参加者別明細'!G19 ->  | H34: ='２．参加者別明細'!H19 ->  | I34: ='２．参加者別明細'!I19 ->  | K34: ='２．参加者別明細'!J19 -> 
A35: 17 | B35: =IF('２．参加者別明細'!B20="","",'２．参加者別明細'!B20) ->  | C35: =IF(B35="","",'２．参加者別明細'!C20) ->  | D35: =IF(B35="","",'２．参加者別明細'!E20) ->  | F35: =IF(B35="","",'２．参加者別明細'!F20) ->  | G35: ='２．参加者別明細'!G20 ->  | H35: ='２．参加者別明細'!H20 ->  | I35: ='２．参加者別明細'!I20 ->  | K35: ='２．参加者別明細'!J20 -> 
A36: 18 | B36: =IF('２．参加者別明細'!B21="","",'２．参加者別明細'!B21) ->  | C36: =IF(B36="","",'２．参加者別明細'!C21) ->  | D36: =IF(B36="","",'２．参加者別明細'!E21) ->  | F36: =IF(B36="","",'２．参加者別明細'!F21) ->  | G36: ='２．参加者別明細'!G21 ->  | H36: ='２．参加者別明細'!H21 ->  | I36: ='２．参加者別明細'!I21 ->  | K36: ='２．参加者別明細'!J21 -> 
A37: 19 | B37: =IF('２．参加者別明細'!B22="","",'２．参加者別明細'!B22) ->  | C37: =IF(B37="","",'２．参加者別明細'!C22) ->  | D37: =IF(B37="","",'２．参加者別明細'!E22) ->  | F37: =IF(B37="","",'２．参加者別明細'!F22) ->  | G37: ='２．参加者別明細'!G22 ->  | H37: ='２．参加者別明細'!H22 ->  | I37: ='２．参加者別明細'!I22 ->  | K37: ='２．参加者別明細'!J22 -> 
A38: 20 | B38: =IF('２．参加者別明細'!B23="","",'２．参加者別明細'!B23) ->  | C38: =IF(B38="","",'２．参加者別明細'!C23) ->  | D38: =IF(B38="","",'２．参加者別明細'!E23) ->  | F38: =IF(B38="","",'２．参加者別明細'!F23) ->  | G38: ='２．参加者別明細'!G23 ->  | H38: ='２．参加者別明細'!H23 ->  | I38: ='２．参加者別明細'!I23 ->  | K38: ='２．参加者別明細'!J23 -> 
A39: 21 | B39: =IF('２．参加者別明細'!B24="","",'２．参加者別明細'!B24) ->  | C39: =IF(B39="","",'２．参加者別明細'!C24) ->  | D39: =IF(B39="","",'２．参加者別明細'!E24) ->  | F39: =IF(B39="","",'２．参加者別明細'!F24) ->  | G39: ='２．参加者別明細'!G24 ->  | H39: ='２．参加者別明細'!H24 ->  | I39: ='２．参加者別明細'!I24 ->  | K39: ='２．参加者別明細'!J24 -> 
A40: 22 | B40: =IF('２．参加者別明細'!B25="","",'２．参加者別明細'!B25) ->  | C40: =IF(B40="","",'２．参加者別明細'!C25) ->  | D40: =IF(B40="","",'２．参加者別明細'!E25) ->  | F40: =IF(B40="","",'２．参加者別明細'!F25) ->  | G40: ='２．参加者別明細'!G25 ->  | H40: ='２．参加者別明細'!H25 ->  | I40: ='２．参加者別明細'!I25 ->  | K40: ='２．参加者別明細'!J25 -> 
A41: 23 | B41: =IF('２．参加者別明細'!B26="","",'２．参加者別明細'!B26) ->  | C41: =IF(B41="","",'２．参加者別明細'!C26) ->  | D41: =IF(B41="","",'２．参加者別明細'!E26) ->  | F41: =IF(B41="","",'２．参加者別明細'!F26) ->  | G41: ='２．参加者別明細'!G26 ->  | H41: ='２．参加者別明細'!H26 ->  | I41: ='２．参加者別明細'!I26 ->  | K41: ='２．参加者別明細'!J26 -> 
A42: 24 | B42: =IF('２．参加者別明細'!B27="","",'２．参加者別明細'!B27) ->  | C42: =IF(B42="","",'２．参加者別明細'!C27) ->  | D42: =IF(B42="","",'２．参加者別明細'!E27) ->  | F42: =IF(B42="","",'２．参加者別明細'!F27) ->  | G42: ='２．参加者別明細'!G27 ->  | H42: ='２．参加者別明細'!H27 ->  | I42: ='２．参加者別明細'!I27 ->  | K42: ='２．参加者別明細'!J27 -> 
A43: 25 | B43: =IF('２．参加者別明細'!B28="","",'２．参加者別明細'!B28) ->  | C43: =IF(B43="","",'２．参加者別明細'!C28) ->  | D43: =IF(B43="","",'２．参加者別明細'!E28) ->  | F43: =IF(B43="","",'２．参加者別明細'!F28) ->  | G43: ='２．参加者別明細'!G28 ->  | H43: ='２．参加者別明細'!H28 ->  | I43: ='２．参加者別明細'!I28 ->  | K43: ='２．参加者別明細'!J28 -> 
A44: 26 | B44: =IF('２．参加者別明細'!B29="","",'２．参加者別明細'!B29) ->  | C44: =IF(B44="","",'２．参加者別明細'!C29) ->  | D44: =IF(B44="","",'２．参加者別明細'!E29) ->  | F44: =IF(B44="","",'２．参加者別明細'!F29) ->  | G44: ='２．参加者別明細'!G29 ->  | H44: ='２．参加者別明細'!H29 ->  | I44: ='２．参加者別明細'!I29 ->  | K44: ='２．参加者別明細'!J29 -> 
A45: 27 | B45: =IF('２．参加者別明細'!B30="","",'２．参加者別明細'!B30) ->  | C45: =IF(B45="","",'２．参加者別明細'!C30) ->  | D45: =IF(B45="","",'２．参加者別明細'!E30) ->  | F45: =IF(B45="","",'２．参加者別明細'!F30) ->  | G45: ='２．参加者別明細'!G30 ->  | H45: ='２．参加者別明細'!H30 ->  | I45: ='２．参加者別明細'!I30 ->  | K45: ='２．参加者別明細'!J30 -> 
A46: 28 | B46: =IF('２．参加者別明細'!B31="","",'２．参加者別明細'!B31) ->  | C46: =IF(B46="","",'２．参加者別明細'!C31) ->  | D46: =IF(B46="","",'２．参加者別明細'!E31) ->  | F46: =IF(B46="","",'２．参加者別明細'!F31) ->  | G46: ='２．参加者別明細'!G31 ->  | H46: ='２．参加者別明細'!H31 ->  | I46: ='２．参加者別明細'!I31 ->  | K46: ='２．参加者別明細'!J31 -> 
A47: 29 | B47: =IF('２．参加者別明細'!B32="","",'２．参加者別明細'!B32) ->  | C47: =IF(B47="","",'２．参加者別明細'!C32) ->  | D47: =IF(B47="","",'２．参加者別明細'!E32) ->  | F47: =IF(B47="","",'２．参加者別明細'!F32) ->  | G47: ='２．参加者別明細'!G32 ->  | H47: ='２．参加者別明細'!H32 ->  | I47: ='２．参加者別明細'!I32 ->  | K47: ='２．参加者別明細'!J32 -> 
A48: 30 | B48: =IF('２．参加者別明細'!B33="","",'２．参加者別明細'!B33) ->  | C48: =IF(B48="","",'２．参加者別明細'!C33) ->  | D48: =IF(B48="","",'２．参加者別明細'!E33) ->  | F48: =IF(B48="","",'２．参加者別明細'!F33) ->  | G48: ='２．参加者別明細'!G33 ->  | H48: ='２．参加者別明細'!H33 ->  | I48: ='２．参加者別明細'!I33 ->  | K48: ='２．参加者別明細'!J33 -> 
A49: 31 | B49: =IF('２．参加者別明細'!B34="","",'２．参加者別明細'!B34) ->  | C49: =IF(B49="","",'２．参加者別明細'!C34) ->  | D49: =IF(B49="","",'２．参加者別明細'!E34) ->  | F49: =IF(B49="","",'２．参加者別明細'!F34) ->  | G49: ='２．参加者別明細'!G34 ->  | H49: ='２．参加者別明細'!H34 ->  | I49: ='２．参加者別明細'!I34 ->  | K49: ='２．参加者別明細'!J34 -> 
A50: 32 | B50: =IF('２．参加者別明細'!B35="","",'２．参加者別明細'!B35) ->  | C50: =IF(B50="","",'２．参加者別明細'!C35) ->  | D50: =IF(B50="","",'２．参加者別明細'!E35) ->  | F50: =IF(B50="","",'２．参加者別明細'!F35) ->  | G50: ='２．参加者別明細'!G35 ->  | H50: ='２．参加者別明細'!H35 ->  | I50: ='２．参加者別明細'!I35 ->  | K50: ='２．参加者別明細'!J35 -> 
A51: 33 | B51: =IF('２．参加者別明細'!B36="","",'２．参加者別明細'!B36) ->  | C51: =IF(B51="","",'２．参加者別明細'!C36) ->  | D51: =IF(B51="","",'２．参加者別明細'!E36) ->  | F51: =IF(B51="","",'２．参加者別明細'!F36) ->  | G51: ='２．参加者別明細'!G36 ->  | H51: ='２．参加者別明細'!H36 ->  | I51: ='２．参加者別明細'!I36 ->  | K51: ='２．参加者別明細'!J36 -> 
A52: 34 | B52: =IF('２．参加者別明細'!B37="","",'２．参加者別明細'!B37) ->  | C52: =IF(B52="","",'２．参加者別明細'!C37) ->  | D52: =IF(B52="","",'２．参加者別明細'!E37) ->  | F52: =IF(B52="","",'２．参加者別明細'!F37) ->  | G52: ='２．参加者別明細'!G37 ->  | H52: ='２．参加者別明細'!H37 ->  | I52: ='２．参加者別明細'!I37 ->  | K52: ='２．参加者別明細'!J37 -> 
A53: 35 | B53: =IF('２．参加者別明細'!B38="","",'２．参加者別明細'!B38) ->  | C53: =IF(B53="","",'２．参加者別明細'!C38) ->  | D53: =IF(B53="","",'２．参加者別明細'!E38) ->  | F53: =IF(B53="","",'２．参加者別明細'!F38) ->  | G53: ='２．参加者別明細'!G38 ->  | H53: ='２．参加者別明細'!H38 ->  | I53: ='２．参加者別明細'!I38 ->  | K53: ='２．参加者別明細'!J38 -> 
A54: 36 | B54: =IF('２．参加者別明細'!B39="","",'２．参加者別明細'!B39) ->  | C54: =IF(B54="","",'２．参加者別明細'!C39) ->  | D54: =IF(B54="","",'２．参加者別明細'!E39) ->  | F54: =IF(B54="","",'２．参加者別明細'!F39) ->  | G54: ='２．参加者別明細'!G39 ->  | H54: ='２．参加者別明細'!H39 ->  | I54: ='２．参加者別明細'!I39 ->  | K54: ='２．参加者別明細'!J39 -> 
A55: 37 | B55: =IF('２．参加者別明細'!B40="","",'２．参加者別明細'!B40) ->  | C55: =IF(B55="","",'２．参加者別明細'!C40) ->  | D55: =IF(B55="","",'２．参加者別明細'!E40) ->  | F55: =IF(B55="","",'２．参加者別明細'!F40) ->  | G55: ='２．参加者別明細'!G40 ->  | H55: ='２．参加者別明細'!H40 ->  | I55: ='２．参加者別明細'!I40 ->  | K55: ='２．参加者別明細'!J40 -> 
A56: 38 | B56: =IF('２．参加者別明細'!B41="","",'２．参加者別明細'!B41) ->  | C56: =IF(B56="","",'２．参加者別明細'!C41) ->  | D56: =IF(B56="","",'２．参加者別明細'!E41) ->  | F56: =IF(B56="","",'２．参加者別明細'!F41) ->  | G56: ='２．参加者別明細'!G41 ->  | H56: ='２．参加者別明細'!H41 ->  | I56: ='２．参加者別明細'!I41 ->  | K56: ='２．参加者別明細'!J41 -> 
A57: 39 | B57: =IF('２．参加者別明細'!B42="","",'２．参加者別明細'!B42) ->  | C57: =IF(B57="","",'２．参加者別明細'!C42) ->  | D57: =IF(B57="","",'２．参加者別明細'!E42) ->  | F57: =IF(B57="","",'２．参加者別明細'!F42) ->  | G57: ='２．参加者別明細'!G42 ->  | H57: ='２．参加者別明細'!H42 ->  | I57: ='２．参加者別明細'!I42 ->  | K57: ='２．参加者別明細'!J42 -> 
A58: 40 | B58: =IF('２．参加者別明細'!B43="","",'２．参加者別明細'!B43) ->  | C58: =IF(B58="","",'２．参加者別明細'!C43) ->  | D58: =IF(B58="","",'２．参加者別明細'!E43) ->  | F58: =IF(B58="","",'２．参加者別明細'!F43) ->  | G58: ='２．参加者別明細'!G43 ->  | H58: ='２．参加者別明細'!H43 ->  | I58: ='２．参加者別明細'!I43 ->  | K58: ='２．参加者別明細'!J43 -> 
A59: 41 | B59: =IF('２．参加者別明細'!B44="","",'２．参加者別明細'!B44) ->  | C59: =IF(B59="","",'２．参加者別明細'!C44) ->  | D59: =IF(B59="","",'２．参加者別明細'!E44) ->  | F59: =IF(B59="","",'２．参加者別明細'!F44) ->  | G59: ='２．参加者別明細'!G44 ->  | H59: ='２．参加者別明細'!H44 ->  | I59: ='２．参加者別明細'!I44 ->  | K59: ='２．参加者別明細'!J44 -> 
A60: 42 | B60: =IF('２．参加者別明細'!B45="","",'２．参加者別明細'!B45) ->  | C60: =IF(B60="","",'２．参加者別明細'!C45) ->  | D60: =IF(B60="","",'２．参加者別明細'!E45) ->  | F60: =IF(B60="","",'２．参加者別明細'!F45) ->  | G60: ='２．参加者別明細'!G45 ->  | H60: ='２．参加者別明細'!H45 ->  | I60: ='２．参加者別明細'!I45 ->  | K60: ='２．参加者別明細'!J45 -> 
A61: 43 | B61: =IF('２．参加者別明細'!B46="","",'２．参加者別明細'!B46) ->  | C61: =IF(B61="","",'２．参加者別明細'!C46) ->  | D61: =IF(B61="","",'２．参加者別明細'!E46) ->  | F61: =IF(B61="","",'２．参加者別明細'!F46) ->  | G61: ='２．参加者別明細'!G46 ->  | H61: ='２．参加者別明細'!H46 ->  | I61: ='２．参加者別明細'!I46 ->  | K61: ='２．参加者別明細'!J46 -> 
A62: 44 | B62: =IF('２．参加者別明細'!B47="","",'２．参加者別明細'!B47) ->  | C62: =IF(B62="","",'２．参加者別明細'!C47) ->  | D62: =IF(B62="","",'２．参加者別明細'!E47) ->  | F62: =IF(B62="","",'２．参加者別明細'!F47) ->  | G62: ='２．参加者別明細'!G47 ->  | H62: ='２．参加者別明細'!H47 ->  | I62: ='２．参加者別明細'!I47 ->  | K62: ='２．参加者別明細'!J47 -> 
A63: 45 | B63: =IF('２．参加者別明細'!B48="","",'２．参加者別明細'!B48) ->  | C63: =IF(B63="","",'２．参加者別明細'!C48) ->  | D63: =IF(B63="","",'２．参加者別明細'!E48) ->  | F63: =IF(B63="","",'２．参加者別明細'!F48) ->  | G63: ='２．参加者別明細'!G48 ->  | H63: ='２．参加者別明細'!H48 ->  | I63: ='２．参加者別明細'!I48 ->  | K63: ='２．参加者別明細'!J48 -> 
A64: 46 | B64: =IF('２．参加者別明細'!B49="","",'２．参加者別明細'!B49) ->  | C64: =IF(B64="","",'２．参加者別明細'!C49) ->  | D64: =IF(B64="","",'２．参加者別明細'!E49) ->  | F64: =IF(B64="","",'２．参加者別明細'!F49) ->  | G64: ='２．参加者別明細'!G49 ->  | H64: ='２．参加者別明細'!H49 ->  | I64: ='２．参加者別明細'!I49 ->  | K64: ='２．参加者別明細'!J49 -> 
A65: 47 | B65: =IF('２．参加者別明細'!B50="","",'２．参加者別明細'!B50) ->  | C65: =IF(B65="","",'２．参加者別明細'!C50) ->  | D65: =IF(B65="","",'２．参加者別明細'!E50) ->  | F65: =IF(B65="","",'２．参加者別明細'!F50) ->  | G65: ='２．参加者別明細'!G50 ->  | H65: ='２．参加者別明細'!H50 ->  | I65: ='２．参加者別明細'!I50 ->  | K65: ='２．参加者別明細'!J50 -> 
A66: 48 | B66: =IF('２．参加者別明細'!B51="","",'２．参加者別明細'!B51) ->  | C66: =IF(B66="","",'２．参加者別明細'!C51) ->  | D66: =IF(B66="","",'２．参加者別明細'!E51) ->  | F66: =IF(B66="","",'２．参加者別明細'!F51) ->  | G66: ='２．参加者別明細'!G51 ->  | H66: ='２．参加者別明細'!H51 ->  | I66: ='２．参加者別明細'!I51 ->  | K66: ='２．参加者別明細'!J51 -> 
A67: 49 | B67: =IF('２．参加者別明細'!B52="","",'２．参加者別明細'!B52) ->  | C67: =IF(B67="","",'２．参加者別明細'!C52) ->  | D67: =IF(B67="","",'２．参加者別明細'!E52) ->  | F67: =IF(B67="","",'２．参加者別明細'!F52) ->  | G67: ='２．参加者別明細'!G52 ->  | H67: ='２．参加者別明細'!H52 ->  | I67: ='２．参加者別明細'!I52 ->  | K67: ='２．参加者別明細'!J52 -> 
A68: 50 | B68: =IF('２．参加者別明細'!B53="","",'２．参加者別明細'!B53) ->  | C68: =IF(B68="","",'２．参加者別明細'!C53) ->  | D68: =IF(B68="","",'２．参加者別明細'!E53) ->  | F68: =IF(B68="","",'２．参加者別明細'!F53) ->  | G68: ='２．参加者別明細'!G53 ->  | H68: ='２．参加者別明細'!H53 ->  | I68: ='２．参加者別明細'!I53 ->  | K68: ='２．参加者別明細'!J53 -> 
A69: 51 | B69: =IF('２．参加者別明細'!B54="","",'２．参加者別明細'!B54) ->  | C69: =IF(B69="","",'２．参加者別明細'!C54) ->  | D69: =IF(B69="","",'２．参加者別明細'!E54) ->  | F69: =IF(B69="","",'２．参加者別明細'!F54) ->  | G69: ='２．参加者別明細'!G54 ->  | H69: ='２．参加者別明細'!H54 ->  | I69: ='２．参加者別明細'!I54 ->  | K69: ='２．参加者別明細'!J54 -> 
A70: 52 | B70: =IF('２．参加者別明細'!B55="","",'２．参加者別明細'!B55) ->  | C70: =IF(B70="","",'２．参加者別明細'!C55) ->  | D70: =IF(B70="","",'２．参加者別明細'!E55) ->  | F70: =IF(B70="","",'２．参加者別明細'!F55) ->  | G70: ='２．参加者別明細'!G55 ->  | H70: ='２．参加者別明細'!H55 ->  | I70: ='２．参加者別明細'!I55 ->  | K70: ='２．参加者別明細'!J55 -> 
A71: 53 | B71: =IF('２．参加者別明細'!B56="","",'２．参加者別明細'!B56) ->  | C71: =IF(B71="","",'２．参加者別明細'!C56) ->  | D71: =IF(B71="","",'２．参加者別明細'!E56) ->  | F71: =IF(B71="","",'２．参加者別明細'!F56) ->  | G71: ='２．参加者別明細'!G56 ->  | H71: ='２．参加者別明細'!H56 ->  | I71: ='２．参加者別明細'!I56 ->  | K71: ='２．参加者別明細'!J56 -> 
A72: 54 | B72: =IF('２．参加者別明細'!B57="","",'２．参加者別明細'!B57) ->  | C72: =IF(B72="","",'２．参加者別明細'!C57) ->  | D72: =IF(B72="","",'２．参加者別明細'!E57) ->  | F72: =IF(B72="","",'２．参加者別明細'!F57) ->  | G72: ='２．参加者別明細'!G57 ->  | H72: ='２．参加者別明細'!H57 ->  | I72: ='２．参加者別明細'!I57 ->  | K72: ='２．参加者別明細'!J57 -> 
A73: 55 | B73: =IF('２．参加者別明細'!B58="","",'２．参加者別明細'!B58) ->  | C73: =IF(B73="","",'２．参加者別明細'!C58) ->  | D73: =IF(B73="","",'２．参加者別明細'!E58) ->  | F73: =IF(B73="","",'２．参加者別明細'!F58) ->  | G73: ='２．参加者別明細'!G58 ->  | H73: ='２．参加者別明細'!H58 ->  | I73: ='２．参加者別明細'!I58 ->  | K73: ='２．参加者別明細'!J58 -> 
A74: 56 | B74: =IF('２．参加者別明細'!B59="","",'２．参加者別明細'!B59) ->  | C74: =IF(B74="","",'２．参加者別明細'!C59) ->  | D74: =IF(B74="","",'２．参加者別明細'!E59) ->  | F74: =IF(B74="","",'２．参加者別明細'!F59) ->  | G74: ='２．参加者別明細'!G59 ->  | H74: ='２．参加者別明細'!H59 ->  | I74: ='２．参加者別明細'!I59 ->  | K74: ='２．参加者別明細'!J59 -> 
A75: 57 | B75: =IF('２．参加者別明細'!B60="","",'２．参加者別明細'!B60) ->  | C75: =IF(B75="","",'２．参加者別明細'!C60) ->  | D75: =IF(B75="","",'２．参加者別明細'!E60) ->  | F75: =IF(B75="","",'２．参加者別明細'!F60) ->  | G75: ='２．参加者別明細'!G60 ->  | H75: ='２．参加者別明細'!H60 ->  | I75: ='２．参加者別明細'!I60 ->  | K75: ='２．参加者別明細'!J60 -> 
A76: 58 | B76: =IF('２．参加者別明細'!B61="","",'２．参加者別明細'!B61) ->  | C76: =IF(B76="","",'２．参加者別明細'!C61) ->  | D76: =IF(B76="","",'２．参加者別明細'!E61) ->  | F76: =IF(B76="","",'２．参加者別明細'!F61) ->  | G76: ='２．参加者別明細'!G61 ->  | H76: ='２．参加者別明細'!H61 ->  | I76: ='２．参加者別明細'!I61 ->  | K76: ='２．参加者別明細'!J61 -> 
A77: 59 | B77: =IF('２．参加者別明細'!B62="","",'２．参加者別明細'!B62) ->  | C77: =IF(B77="","",'２．参加者別明細'!C62) ->  | D77: =IF(B77="","",'２．参加者別明細'!E62) ->  | F77: =IF(B77="","",'２．参加者別明細'!F62) ->  | G77: ='２．参加者別明細'!G62 ->  | H77: ='２．参加者別明細'!H62 ->  | I77: ='２．参加者別明細'!I62 ->  | K77: ='２．参加者別明細'!J62 -> 
A78: 60 | B78: =IF('２．参加者別明細'!B63="","",'２．参加者別明細'!B63) ->  | C78: =IF(B78="","",'２．参加者別明細'!C63) ->  | D78: =IF(B78="","",'２．参加者別明細'!E63) ->  | F78: =IF(B78="","",'２．参加者別明細'!F63) ->  | G78: ='２．参加者別明細'!G63 ->  | H78: ='２．参加者別明細'!H63 ->  | I78: ='２．参加者別明細'!I63 ->  | K78: ='２．参加者別明細'!J63 -> 
A79: 61 | B79: =IF('２．参加者別明細'!B64="","",'２．参加者別明細'!B64) ->  | C79: =IF(B79="","",'２．参加者別明細'!C64) ->  | D79: =IF(B79="","",'２．参加者別明細'!E64) ->  | F79: =IF(B79="","",'２．参加者別明細'!F64) ->  | G79: ='２．参加者別明細'!G64 ->  | H79: ='２．参加者別明細'!H64 ->  | I79: ='２．参加者別明細'!I64 ->  | K79: ='２．参加者別明細'!J64 -> 
A80: 62 | B80: =IF('２．参加者別明細'!B65="","",'２．参加者別明細'!B65) ->  | C80: =IF(B80="","",'２．参加者別明細'!C65) ->  | D80: =IF(B80="","",'２．参加者別明細'!E65) ->  | F80: =IF(B80="","",'２．参加者別明細'!F65) ->  | G80: ='２．参加者別明細'!G65 ->  | H80: ='２．参加者別明細'!H65 ->  | I80: ='２．参加者別明細'!I65 ->  | K80: ='２．参加者別明細'!J65 -> 
A81: 63 | B81: =IF('２．参加者別明細'!B66="","",'２．参加者別明細'!B66) ->  | C81: =IF(B81="","",'２．参加者別明細'!C66) ->  | D81: =IF(B81="","",'２．参加者別明細'!E66) ->  | F81: =IF(B81="","",'２．参加者別明細'!F66) ->  | G81: ='２．参加者別明細'!G66 ->  | H81: ='２．参加者別明細'!H66 ->  | I81: ='２．参加者別明細'!I66 ->  | K81: ='２．参加者別明細'!J66 -> 
A82: 64 | B82: =IF('２．参加者別明細'!B67="","",'２．参加者別明細'!B67) ->  | C82: =IF(B82="","",'２．参加者別明細'!C67) ->  | D82: =IF(B82="","",'２．参加者別明細'!E67) ->  | F82: =IF(B82="","",'２．参加者別明細'!F67) ->  | G82: ='２．参加者別明細'!G67 ->  | H82: ='２．参加者別明細'!H67 ->  | I82: ='２．参加者別明細'!I67 ->  | K82: ='２．参加者別明細'!J67 -> 
A83: 65 | B83: =IF('２．参加者別明細'!B68="","",'２．参加者別明細'!B68) ->  | C83: =IF(B83="","",'２．参加者別明細'!C68) ->  | D83: =IF(B83="","",'２．参加者別明細'!E68) ->  | F83: =IF(B83="","",'２．参加者別明細'!F68) ->  | G83: ='２．参加者別明細'!G68 ->  | H83: ='２．参加者別明細'!H68 ->  | I83: ='２．参加者別明細'!I68 ->  | K83: ='２．参加者別明細'!J68 -> 
A84: 66 | B84: =IF('２．参加者別明細'!B69="","",'２．参加者別明細'!B69) ->  | C84: =IF(B84="","",'２．参加者別明細'!C69) ->  | D84: =IF(B84="","",'２．参加者別明細'!E69) ->  | E84: =IF(ISERR(IF(B84="","",C84+D84))=TRUE,"",IF(B84="","",C84+D84)) ->  | F84: =IF(B84="","",'２．参加者別明細'!F69) ->  | G84: ='２．参加者別明細'!G69 ->  | H84: ='２．参加者別明細'!H69 ->  | I84: ='２．参加者別明細'!I69 ->  | J84: =IF(G84="","",G84-H84-I84) ->  | K84: ='２．参加者別明細'!J69 ->  | L84: =IF(G84="","",J84+K84) ->  | M84: =IF(G84="","",E84-L84+F84) ->  | O84: =IF(B84="","","○") -> 
A85: 67 | B85: =IF('２．参加者別明細'!B70="","",'２．参加者別明細'!B70) ->  | C85: =IF(B85="","",'２．参加者別明細'!C70) ->  | D85: =IF(B85="","",'２．参加者別明細'!E70) ->  | F85: =IF(B85="","",'２．参加者別明細'!F70) ->  | G85: ='２．参加者別明細'!G70 ->  | H85: ='２．参加者別明細'!H70 ->  | I85: ='２．参加者別明細'!I70 ->  | K85: ='２．参加者別明細'!J70 -> 
A86: 68 | B86: =IF('２．参加者別明細'!B71="","",'２．参加者別明細'!B71) ->  | C86: =IF(B86="","",'２．参加者別明細'!C71) ->  | D86: =IF(B86="","",'２．参加者別明細'!E71) ->  | F86: =IF(B86="","",'２．参加者別明細'!F71) ->  | G86: ='２．参加者別明細'!G71 ->  | H86: ='２．参加者別明細'!H71 ->  | I86: ='２．参加者別明細'!I71 ->  | K86: ='２．参加者別明細'!J71 -> 
A87: 69 | B87: =IF('２．参加者別明細'!B72="","",'２．参加者別明細'!B72) ->  | C87: =IF(B87="","",'２．参加者別明細'!C72) ->  | D87: =IF(B87="","",'２．参加者別明細'!E72) ->  | F87: =IF(B87="","",'２．参加者別明細'!F72) ->  | G87: ='２．参加者別明細'!G72 ->  | H87: ='２．参加者別明細'!H72 ->  | I87: ='２．参加者別明細'!I72 ->  | K87: ='２．参加者別明細'!J72 -> 
A88: 70 | B88: =IF('２．参加者別明細'!B73="","",'２．参加者別明細'!B73) ->  | C88: =IF(B88="","",'２．参加者別明細'!C73) ->  | D88: =IF(B88="","",'２．参加者別明細'!E73) ->  | F88: =IF(B88="","",'２．参加者別明細'!F73) ->  | G88: ='２．参加者別明細'!G73 ->  | H88: ='２．参加者別明細'!H73 ->  | I88: ='２．参加者別明細'!I73 ->  | K88: ='２．参加者別明細'!J73 -> 
A89: 71 | B89: =IF('２．参加者別明細'!B74="","",'２．参加者別明細'!B74) ->  | C89: =IF(B89="","",'２．参加者別明細'!C74) ->  | D89: =IF(B89="","",'２．参加者別明細'!E74) ->  | F89: =IF(B89="","",'２．参加者別明細'!F74) ->  | G89: ='２．参加者別明細'!G74 ->  | H89: ='２．参加者別明細'!H74 ->  | I89: ='２．参加者別明細'!I74 ->  | K89: ='２．参加者別明細'!J74 -> 
A90: 72 | B90: =IF('２．参加者別明細'!B75="","",'２．参加者別明細'!B75) ->  | C90: =IF(B90="","",'２．参加者別明細'!C75) ->  | D90: =IF(B90="","",'２．参加者別明細'!E75) ->  | F90: =IF(B90="","",'２．参加者別明細'!F75) ->  | G90: ='２．参加者別明細'!G75 ->  | H90: ='２．参加者別明細'!H75 ->  | I90: ='２．参加者別明細'!I75 ->  | K90: ='２．参加者別明細'!J75 -> 
A91: 73 | B91: =IF('２．参加者別明細'!B76="","",'２．参加者別明細'!B76) ->  | C91: =IF(B91="","",'２．参加者別明細'!C76) ->  | D91: =IF(B91="","",'２．参加者別明細'!E76) ->  | F91: =IF(B91="","",'２．参加者別明細'!F76) ->  | G91: ='２．参加者別明細'!G76 ->  | H91: ='２．参加者別明細'!H76 ->  | I91: ='２．参加者別明細'!I76 ->  | K91: ='２．参加者別明細'!J76 -> 
A92: 74 | B92: =IF('２．参加者別明細'!B77="","",'２．参加者別明細'!B77) ->  | C92: =IF(B92="","",'２．参加者別明細'!C77) ->  | D92: =IF(B92="","",'２．参加者別明細'!E77) ->  | F92: =IF(B92="","",'２．参加者別明細'!F77) ->  | G92: ='２．参加者別明細'!G77 ->  | H92: ='２．参加者別明細'!H77 ->  | I92: ='２．参加者別明細'!I77 ->  | K92: ='２．参加者別明細'!J77 -> 
A93: 75 | B93: =IF('２．参加者別明細'!B78="","",'２．参加者別明細'!B78) ->  | C93: =IF(B93="","",'２．参加者別明細'!C78) ->  | D93: =IF(B93="","",'２．参加者別明細'!E78) ->  | F93: =IF(B93="","",'２．参加者別明細'!F78) ->  | G93: ='２．参加者別明細'!G78 ->  | H93: ='２．参加者別明細'!H78 ->  | I93: ='２．参加者別明細'!I78 ->  | K93: ='２．参加者別明細'!J78 -> 
A94: 76 | B94: =IF('２．参加者別明細'!B79="","",'２．参加者別明細'!B79) ->  | C94: =IF(B94="","",'２．参加者別明細'!C79) ->  | D94: =IF(B94="","",'２．参加者別明細'!E79) ->  | F94: =IF(B94="","",'２．参加者別明細'!F79) ->  | G94: ='２．参加者別明細'!G79 ->  | H94: ='２．参加者別明細'!H79 ->  | I94: ='２．参加者別明細'!I79 ->  | K94: ='２．参加者別明細'!J79 -> 
A95: 77 | B95: =IF('２．参加者別明細'!B80="","",'２．参加者別明細'!B80) ->  | C95: =IF(B95="","",'２．参加者別明細'!C80) ->  | D95: =IF(B95="","",'２．参加者別明細'!E80) ->  | F95: =IF(B95="","",'２．参加者別明細'!F80) ->  | G95: ='２．参加者別明細'!G80 ->  | H95: ='２．参加者別明細'!H80 ->  | I95: ='２．参加者別明細'!I80 ->  | K95: ='２．参加者別明細'!J80 -> 
A96: 78 | B96: =IF('２．参加者別明細'!B81="","",'２．参加者別明細'!B81) ->  | C96: =IF(B96="","",'２．参加者別明細'!C81) ->  | D96: =IF(B96="","",'２．参加者別明細'!E81) ->  | F96: =IF(B96="","",'２．参加者別明細'!F81) ->  | G96: ='２．参加者別明細'!G81 ->  | H96: ='２．参加者別明細'!H81 ->  | I96: ='２．参加者別明細'!I81 ->  | K96: ='２．参加者別明細'!J81 -> 
A97: 79 | B97: =IF('２．参加者別明細'!B82="","",'２．参加者別明細'!B82) ->  | C97: =IF(B97="","",'２．参加者別明細'!C82) ->  | D97: =IF(B97="","",'２．参加者別明細'!E82) ->  | F97: =IF(B97="","",'２．参加者別明細'!F82) ->  | G97: ='２．参加者別明細'!G82 ->  | H97: ='２．参加者別明細'!H82 ->  | I97: ='２．参加者別明細'!I82 ->  | K97: ='２．参加者別明細'!J82 -> 
A98: 80 | B98: =IF('２．参加者別明細'!B83="","",'２．参加者別明細'!B83) ->  | C98: =IF(B98="","",'２．参加者別明細'!C83) ->  | D98: =IF(B98="","",'２．参加者別明細'!E83) ->  | F98: =IF(B98="","",'２．参加者別明細'!F83) ->  | G98: ='２．参加者別明細'!G83 ->  | H98: ='２．参加者別明細'!H83 ->  | I98: ='２．参加者別明細'!I83 ->  | K98: ='２．参加者別明細'!J83 -> 
A99: 81 | B99: =IF('２．参加者別明細'!B84="","",'２．参加者別明細'!B84) ->  | C99: =IF(B99="","",'２．参加者別明細'!C84) ->  | D99: =IF(B99="","",'２．参加者別明細'!E84) ->  | F99: =IF(B99="","",'２．参加者別明細'!F84) ->  | G99: ='２．参加者別明細'!G84 ->  | H99: ='２．参加者別明細'!H84 ->  | I99: ='２．参加者別明細'!I84 ->  | K99: ='２．参加者別明細'!J84 -> 
A100: 82 | B100: =IF('２．参加者別明細'!B85="","",'２．参加者別明細'!B85) ->  | C100: =IF(B100="","",'２．参加者別明細'!C85) ->  | D100: =IF(B100="","",'２．参加者別明細'!E85) ->  | F100: =IF(B100="","",'２．参加者別明細'!F85) ->  | G100: ='２．参加者別明細'!G85 ->  | H100: ='２．参加者別明細'!H85 ->  | I100: ='２．参加者別明細'!I85 ->  | K100: ='２．参加者別明細'!J85 -> 
A101: 83 | B101: =IF('２．参加者別明細'!B86="","",'２．参加者別明細'!B86) ->  | C101: =IF(B101="","",'２．参加者別明細'!C86) ->  | D101: =IF(B101="","",'２．参加者別明細'!E86) ->  | F101: =IF(B101="","",'２．参加者別明細'!F86) ->  | G101: ='２．参加者別明細'!G86 ->  | H101: ='２．参加者別明細'!H86 ->  | I101: ='２．参加者別明細'!I86 ->  | K101: ='２．参加者別明細'!J86 -> 
A102: 84 | B102: =IF('２．参加者別明細'!B87="","",'２．参加者別明細'!B87) ->  | C102: =IF(B102="","",'２．参加者別明細'!C87) ->  | D102: =IF(B102="","",'２．参加者別明細'!E87) ->  | F102: =IF(B102="","",'２．参加者別明細'!F87) ->  | G102: ='２．参加者別明細'!G87 ->  | H102: ='２．参加者別明細'!H87 ->  | I102: ='２．参加者別明細'!I87 ->  | K102: ='２．参加者別明細'!J87 -> 
A103: 85 | B103: =IF('２．参加者別明細'!B88="","",'２．参加者別明細'!B88) ->  | C103: =IF(B103="","",'２．参加者別明細'!C88) ->  | D103: =IF(B103="","",'２．参加者別明細'!E88) ->  | F103: =IF(B103="","",'２．参加者別明細'!F88) ->  | G103: ='２．参加者別明細'!G88 ->  | H103: ='２．参加者別明細'!H88 ->  | I103: ='２．参加者別明細'!I88 ->  | K103: ='２．参加者別明細'!J88 -> 

Sheet 個人配布用
B1: STEP⑨： | C1: 印刷開始No（報告書のNoを入力） | F1: → | G1: 1 | H1: ※連番で3名分が出力されます。
B2: ='３．収支状況報告書'!$A$4 -> 令和5年分【令和5年1月1日～令和5年12月31日】 | G2: 中山間地域等直接支払交付金に係る所得計算表 | L2: ='３．収支状況報告書'!$K$7&'３．収支状況報告書'!$M$7 -> 集落協定
B3: 氏名 | C3: 収入 | G3: 支出 | M3: 所得金額 | N3: 備考
C4: 交付金 | F4: 役員報酬等 | G4: ⑤ 共同取組活動分 | K4: ⑨ | L4: ⑩
C5: ① | D5: ② | E5: ③ | F5: ④ | G5: 支出額 | H5: ⑥ ⑤のうち | I5: ⑦ ⑤のうち | J5: ⑧ | K5: 減価償却費 | L5: 必要経費 （⑧+⑨）
A6: No | C6: 個人配分分 | D6: 共同取組活動分 | E6: 合計 （①＋②） | F6: 個人が受領した額 | H6: 必要経費に該当しない支出額 | I6: 減価償却資産 の取得金額 | J6: 差引計 （⑤-⑥-⑦） | M6: （③-⑩＋④）
A7: =G1 -> 1 | B7: =IF(VLOOKUP($A7,'３．収支状況報告書'!$A$19:$N$103,B$24,FALSE)="","",VLOOKUP($A7,'３．収支状況報告書'!$A$19:$N$103,B$24,FALSE)) ->  | C7: =IF(VLOOKUP($A7,'３．収支状況報告書'!$A$19:$N$103,C$24,FALSE)="","",VLOOKUP($A7,'３．収支状況報告書'!$A$19:$N$103,C$24,FALSE)) ->  | D7: =IF(VLOOKUP($A7,'３．収支状況報告書'!$A$19:$N$103,D$24,FALSE)="","",VLOOKUP($A7,'３．収支状況報告書'!$A$19:$N$103,D$24,FALSE)) ->  | E7: =IF(VLOOKUP($A7,'３．収支状況報告書'!$A$19:$N$103,E$24,FALSE)="","",VLOOKUP($A7,'３．収支状況報告書'!$A$19:$N$103,E$24,FALSE)) ->  | F7: =IF(VLOOKUP($A7,'３．収支状況報告書'!$A$19:$N$103,F$24,FALSE)="","",VLOOKUP($A7,'３．収支状況報告書'!$A$19:$N$103,F$24,FALSE)) ->  | G7: =IF(VLOOKUP($A7,'３．収支状況報告書'!$A$19:$N$103,G$24,FALSE)="","",VLOOKUP($A7,'３．収支状況報告書'!$A$19:$N$103,G$24,FALSE)) ->  | H7: =IF(VLOOKUP($A7,'３．収支状況報告書'!$A$19:$N$103,H$24,FALSE)="","",VLOOKUP($A7,'３．収支状況報告書'!$A$19:$N$103,H$24,FALSE)) ->  | I7: =IF(VLOOKUP($A7,'３．収支状況報告書'!$A$19:$N$103,I$24,FALSE)="","",VLOOKUP($A7,'３．収支状況報告書'!$A$19:$N$103,I$24,FALSE)) ->  | J7: =IF(VLOOKUP($A7,'３．収支状況報告書'!$A$19:$N$103,J$24,FALSE)="","",VLOOKUP($A7,'３．収支状況報告書'!$A$19:$N$103,J$24,FALSE)) ->  | K7: =IF(VLOOKUP($A7,'３．収支状況報告書'!$A$19:$N$103,K$24,FALSE)="","",VLOOKUP($A7,'３．収支状況報告書'!$A$19:$N$103,K$24,FALSE)) ->  | L7: =IF(VLOOKUP($A7,'３．収支状況報告書'!$A$19:$N$103,L$24,FALSE)="","",VLOOKUP($A7,'３．収支状況報告書'!$A$19:$N$103,L$24,FALSE)) ->  | M7: =IF(VLOOKUP($A7,'３．収支状況報告書'!$A$19:$N$103,M$24,FALSE)="","",VLOOKUP($A7,'３．収支状況報告書'!$A$19:$N$103,M$24,FALSE)) ->  | N7: =IF(VLOOKUP($A7,'３．収支状況報告書'!$A$19:$N$103,N$24,FALSE)="","",VLOOKUP($A7,'３．収支状況報告書'!$A$19:$N$103,N$24,FALSE)) -> 
B10: ='３．収支状況報告書'!$A$4 -> 令和5年分【令和5年1月1日～令和5年12月31日】 | G10: 中山間地域等直接支払交付金に係る所得計算表 | L10: ='３．収支状況報告書'!$K$7&'３．収支状況報告書'!$M$7 -> 集落協定
B11: 氏名 | C11: 収入 | G11: 支出 | M11: 所得金額 | N11: 備考
C12: 交付金 | F12: 役員報酬等 | G12: ⑤ 共同取組活動分 | K12: ⑨ | L12: ⑩
C13: ① | D13: ② | E13: ③ | F13: ④ | G13: 支出額 | H13: ⑥ ⑤のうち | I13: ⑦ ⑤のうち | J13: ⑧ | K13: 減価償却費 | L13: 必要経費 （⑧+⑨）
C14: 個人配分分 | D14: 共同取組活動分 | E14: 合計 （①＋②） | F14: 個人が受領した額 | H14: 必要経費に該当しない支出額 | I14: 減価償却資産 の取得金額 | J14: 差引計 （⑤-⑥-⑦） | M14: （③-⑩＋④）
A15: =A7+1 -> 2 | B15: =IF(VLOOKUP($A15,'３．収支状況報告書'!$A$19:$N$103,B$24,FALSE)="","",VLOOKUP($A15,'３．収支状況報告書'!$A$19:$N$103,B$24,FALSE)) ->  | C15: =IF(VLOOKUP($A15,'３．収支状況報告書'!$A$19:$N$103,C$24,FALSE)="","",VLOOKUP($A15,'３．収支状況報告書'!$A$19:$N$103,C$24,FALSE)) ->  | D15: =IF(VLOOKUP($A15,'３．収支状況報告書'!$A$19:$N$103,D$24,FALSE)="","",VLOOKUP($A15,'３．収支状況報告書'!$A$19:$N$103,D$24,FALSE)) ->  | E15: =IF(VLOOKUP($A15,'３．収支状況報告書'!$A$19:$N$103,E$24,FALSE)="","",VLOOKUP($A15,'３．収支状況報告書'!$A$19:$N$103,E$24,FALSE)) ->  | F15: =IF(VLOOKUP($A15,'３．収支状況報告書'!$A$19:$N$103,F$24,FALSE)="","",VLOOKUP($A15,'３．収支状況報告書'!$A$19:$N$103,F$24,FALSE)) ->  | G15: =IF(VLOOKUP($A15,'３．収支状況報告書'!$A$19:$N$103,G$24,FALSE)="","",VLOOKUP($A15,'３．収支状況報告書'!$A$19:$N$103,G$24,FALSE)) ->  | H15: =IF(VLOOKUP($A15,'３．収支状況報告書'!$A$19:$N$103,H$24,FALSE)="","",VLOOKUP($A15,'３．収支状況報告書'!$A$19:$N$103,H$24,FALSE)) ->  | I15: =IF(VLOOKUP($A15,'３．収支状況報告書'!$A$19:$N$103,I$24,FALSE)="","",VLOOKUP($A15,'３．収支状況報告書'!$A$19:$N$103,I$24,FALSE)) ->  | J15: =IF(VLOOKUP($A15,'３．収支状況報告書'!$A$19:$N$103,J$24,FALSE)="","",VLOOKUP($A15,'３．収支状況報告書'!$A$19:$N$103,J$24,FALSE)) ->  | K15: =IF(VLOOKUP($A15,'３．収支状況報告書'!$A$19:$N$103,K$24,FALSE)="","",VLOOKUP($A15,'３．収支状況報告書'!$A$19:$N$103,K$24,FALSE)) ->  | L15: =IF(VLOOKUP($A15,'３．収支状況報告書'!$A$19:$N$103,L$24,FALSE)="","",VLOOKUP($A15,'３．収支状況報告書'!$A$19:$N$103,L$24,FALSE)) ->  | M15: =IF(VLOOKUP($A15,'３．収支状況報告書'!$A$19:$N$103,M$24,FALSE)="","",VLOOKUP($A15,'３．収支状況報告書'!$A$19:$N$103,M$24,FALSE)) ->  | N15: =IF(VLOOKUP($A15,'３．収支状況報告書'!$A$19:$N$103,N$24,FALSE)="","",VLOOKUP($A15,'３．収支状況報告書'!$A$19:$N$103,N$24,FALSE)) -> 
B18: ='３．収支状況報告書'!$A$4 -> 令和5年分【令和5年1月1日～令和5年12月31日】 | G18: 中山間地域等直接支払交付金に係る所得計算表 | L18: ='３．収支状況報告書'!$K$7&'３．収支状況報告書'!$M$7 -> 集落協定
B19: 氏名 | C19: 収入 | G19: 支出 | M19: 所得金額 | N19: 備考
C20: 交付金 | F20: 役員報酬等 | G20: ⑤ 共同取組活動分 | K20: ⑨ | L20: ⑩
C21: ① | D21: ② | E21: ③ | F21: ④ | G21: 支出額 | H21: ⑥ ⑤のうち | I21: ⑦ ⑤のうち | J21: ⑧ | K21: 減価償却費 | L21: 必要経費 （⑧+⑨）
C22: 個人配分分 | D22: 共同取組活動分 | E22: 合計 （①＋②） | F22: 個人が受領した額 | H22: 必要経費に該当しない支出額 | I22: 減価償却資産 の取得金額 | J22: 差引計 （⑤-⑥-⑦） | M22: （③-⑩＋④）
A23: =A15+1 -> 3 | B23: =IF(VLOOKUP($A23,'３．収支状況報告書'!$A$19:$N$103,B$24,FALSE)="","",VLOOKUP($A23,'３．収支状況報告書'!$A$19:$N$103,B$24,FALSE)) ->  | C23: =IF(VLOOKUP($A23,'３．収支状況報告書'!$A$19:$N$103,C$24,FALSE)="","",VLOOKUP($A23,'３．収支状況報告書'!$A$19:$N$103,C$24,FALSE)) ->  | D23: =IF(VLOOKUP($A23,'３．収支状況報告書'!$A$19:$N$103,D$24,FALSE)="","",VLOOKUP($A23,'３．収支状況報告書'!$A$19:$N$103,D$24,FALSE)) ->  | E23: =IF(VLOOKUP($A23,'３．収支状況報告書'!$A$19:$N$103,E$24,FALSE)="","",VLOOKUP($A23,'３．収支状況報告書'!$A$19:$N$103,E$24,FALSE)) ->  | F23: =IF(VLOOKUP($A23,'３．収支状況報告書'!$A$19:$N$103,F$24,FALSE)="","",VLOOKUP($A23,'３．収支状況報告書'!$A$19:$N$103,F$24,FALSE)) ->  | G23: =IF(VLOOKUP($A23,'３．収支状況報告書'!$A$19:$N$103,G$24,FALSE)="","",VLOOKUP($A23,'３．収支状況報告書'!$A$19:$N$103,G$24,FALSE)) ->  | H23: =IF(VLOOKUP($A23,'３．収支状況報告書'!$A$19:$N$103,H$24,FALSE)="","",VLOOKUP($A23,'３．収支状況報告書'!$A$19:$N$103,H$24,FALSE)) ->  | I23: =IF(VLOOKUP($A23,'３．収支状況報告書'!$A$19:$N$103,I$24,FALSE)="","",VLOOKUP($A23,'３．収支状況報告書'!$A$19:$N$103,I$24,FALSE)) ->  | J23: =IF(VLOOKUP($A23,'３．収支状況報告書'!$A$19:$N$103,J$24,FALSE)="","",VLOOKUP($A23,'３．収支状況報告書'!$A$19:$N$103,J$24,FALSE)) ->  | K23: =IF(VLOOKUP($A23,'３．収支状況報告書'!$A$19:$N$103,K$24,FALSE)="","",VLOOKUP($A23,'３．収支状況報告書'!$A$19:$N$103,K$24,FALSE)) ->  | L23: =IF(VLOOKUP($A23,'３．収支状況報告書'!$A$19:$N$103,L$24,FALSE)="","",VLOOKUP($A23,'３．収支状況報告書'!$A$19:$N$103,L$24,FALSE)) ->  | M23: =IF(VLOOKUP($A23,'３．収支状況報告書'!$A$19:$N$103,M$24,FALSE)="","",VLOOKUP($A23,'３．収支状況報告書'!$A$19:$N$103,M$24,FALSE)) ->  | N23: =IF(VLOOKUP($A23,'３．収支状況報告書'!$A$19:$N$103,N$24,FALSE)="","",VLOOKUP($A23,'３．収支状況報告書'!$A$19:$N$103,N$24,FALSE)) -> 
A24: 行番号 | B24: 2 | C24: 3 | D24: 4 | E24: 5 | F24: 6 | G24: 7 | H24: 8 | I24: 9 | J24: 10 | K24: 11 | L24: 12 | M24: 13 | N24: 14

Sheet 減価償却計算
A1: 減価償却費の計算 | D1: 平成19年4月1日以後取得（定額法）
A3: 申告年 | C3: 30 | I3: 当該年中の減価償却費（一人当たり） | N3: =ROUNDDOWN(VLOOKUP($C$3,$A$14:$N$52,14,FALSE)/$C$9,0) ->  | O3: 円
A4: 資産名称 | C4: ○○ | I4: 端数 | N4: =VLOOKUP($C$3,$A$14:$N$52,14,FALSE)-N3*C9 ->  | O4: 円
A5: 取得価格 | C5: 2000000
A6: 取得年月日 | C6: 30 | D6: 年 | E6: 5 | F6: 月
A7: 耐用年数 | C7: 7 | D7: 年（ | E7: =C7*12 -> 84 | F7: か月）
A8: 農業の使用割合 | C8: 1
A9: 共有者数 | C9: ='２．参加者別明細'!D2 -> 0 | D9: 一人当たり | E9: =IF(C5/C9<100000,"対象外",C5/C9) -> 
A10: 定額法償却率 | C10: =VLOOKUP(C7,償却率!A1:B50,2,FALSE) -> 0.143
A12: 年 | B12: 減価償却の基礎となる金額 （取得価格） | D12: 定額法償却率 | F12: 1年間の減価償却費 | H12: 使用月数 | J12: 減価償却費 | L12: 農業の使用割合 | N12: 必要経費となる減価償却費 | O12: 未償却残高
B13: （円） | F13: （円） | H13: （月） | J13: （円） | L13: （％） | N13: （円） | O13: （円）
A14: =C6 -> 30 | B14: =$C$5 -> 2000000 | C14: × | D14: =$C$10 -> 0.143 | E14: ＝ | F14: =ROUNDDOWN(B14*D14,0) -> 286000 | G14: × | H14: =13-E6 -> 8 | I14: ＝ | J14: =ROUNDDOWN(F14*H14/12,0) -> 190666 | K14: × | L14: =$C$8 -> 1 | M14: ＝ | N14: =J14*L14 -> 190666 | O14: =B14-N14 -> 1809334 | P14: =E7-H14 -> 76
A15: =A14+1 -> 31 | B15: =IF(P14=0,0,$C$5) -> 2000000 | C15: × | D15: 0.143 | E15: ＝ | F15: =ROUNDDOWN(B15*D15,0) -> 286000 | G15: × | H15: =IF(P14>=12,12,P14) -> 12 | I15: ＝ | J15: =ROUNDDOWN(F15*H15/12,0) -> 286000 | K15: × | L15: 1 | M15: ＝ | N15: =IF(O14=0,0,IF(J15*L15>=O14,O14-1,J15*L15)) -> 286000 | O15: =IF(N15=0,0,O14-N15) -> 1523334 | P15: =P14-H15 -> 64
A16: =A15+1 -> 32 | B16: 2000000 | C16: × | D16: 0.143 | E16: ＝ | F16: 286000 | G16: × | H16: =IF(P15>=12,12,P15) -> 12 | I16: ＝ | J16: 286000 | K16: × | L16: 1 | M16: ＝ | N16: =IF(O15=0,0,IF(J16*L16>=O15,O15-1,J16*L16)) -> 286000 | O16: =IF(N16=0,0,O15-N16) -> 1237334 | P16: =P15-H16 -> 52
A17: 33 | B17: 2000000 | C17: × | D17: 0.143 | E17: ＝ | F17: 286000 | G17: × | H17: 12 | I17: ＝ | J17: 286000 | K17: × | L17: 1 | M17: ＝ | N17: 286000 | O17: 951334 | P17: 40
A18: 34 | B18: 2000000 | C18: × | D18: 0.143 | E18: ＝ | F18: 286000 | G18: × | H18: 12 | I18: ＝ | J18: 286000 | K18: × | L18: 1 | M18: ＝ | N18: 286000 | O18: 665334 | P18: 28
A19: 35 | B19: 2000000 | C19: × | D19: 0.143 | E19: ＝ | F19: 286000 | G19: × | H19: 12 | I19: ＝ | J19: 286000 | K19: × | L19: 1 | M19: ＝ | N19: 286000 | O19: 379334 | P19: 16
A20: 36 | B20: 2000000 | C20: × | D20: 0.143 | E20: ＝ | F20: 286000 | G20: × | H20: 12 | I20: ＝ | J20: 286000 | K20: × | L20: 1 | M20: ＝ | N20: 286000 | O20: 93334 | P20: 4
A21: 37 | B21: 2000000 | C21: × | D21: 0.143 | E21: ＝ | F21: 286000 | G21: × | H21: 4 | I21: ＝ | J21: 95333 | K21: × | L21: 1 | M21: ＝ | N21: 93333 | O21: 1 | P21: 0
A22: 38 | B22: 0 | C22: × | D22: 0.143 | E22: ＝ | F22: 0 | G22: × | H22: 0 | I22: ＝ | J22: 0 | K22: × | L22: 1 | M22: ＝ | N22: 0 | O22: 0 | P22: 0
A23: 39 | B23: 0 | C23: × | D23: 0.143 | E23: ＝ | F23: 0 | G23: × | H23: 0 | I23: ＝ | J23: 0 | K23: × | L23: 1 | M23: ＝ | N23: 0 | O23: 0 | P23: 0
A24: 40 | B24: 0 | C24: × | D24: 0.143 | E24: ＝ | F24: 0 | G24: × | H24: 0 | I24: ＝ | J24: 0 | K24: × | L24: 1 | M24: ＝ | N24: 0 | O24: 0 | P24: 0
A25: 41 | B25: 0 | C25: × | D25: 0.143 | E25: ＝ | F25: 0 | G25: × | H25: 0 | I25: ＝ | J25: 0 | K25: × | L25: 1 | M25: ＝ | N25: 0 | O25: 0 | P25: 0
A26: 42 | B26: 0 | C26: × | D26: 0.143 | E26: ＝ | F26: 0 | G26: × | H26: 0 | I26: ＝ | J26: 0 | K26: × | L26: 1 | M26: ＝ | N26: 0 | O26: 0 | P26: 0
A27: 43 | B27: 0 | C27: × | D27: 0.143 | E27: ＝ | F27: 0 | G27: × | H27: 0 | I27: ＝ | J27: 0 | K27: × | L27: 1 | M27: ＝ | N27: 0 | O27: 0 | P27: 0
A28: 44 | B28: 0 | C28: × | D28: 0.143 | E28: ＝ | F28: 0 | G28: × | H28: 0 | I28: ＝ | J28: 0 | K28: × | L28: 1 | M28: ＝ | N28: 0 | O28: 0 | P28: 0
A29: 45 | B29: 0 | C29: × | D29: 0.143 | E29: ＝ | F29: 0 | G29: × | H29: 0 | I29: ＝ | J29: 0 | K29: × | L29: 1 | M29: ＝ | N29: 0 | O29: 0 | P29: 0
A30: 46 | B30: =IF(P29=0,0,$C$5) -> 0 | C30: × | D30: 0.143 | E30: ＝ | F30: 0 | G30: × | H30: 0 | I30: ＝ | J30: 0 | K30: × | L30: 1 | M30: ＝ | N30: 0 | O30: 0 | P30: 0
A31: 47 | B31: 0 | C31: × | D31: 0.143 | E31: ＝ | F31: 0 | G31: × | H31: 0 | I31: ＝ | J31: 0 | K31: × | L31: 1 | M31: ＝ | N31: 0 | O31: 0 | P31: 0
A32: 48 | B32: 0 | C32: × | D32: 0.143 | E32: ＝ | F32: 0 | G32: × | H32: 0 | I32: ＝ | J32: 0 | K32: × | L32: 1 | M32: ＝ | N32: 0 | O32: 0 | P32: 0
A33: 49 | B33: 0 | C33: × | D33: 0.143 | E33: ＝ | F33: 0 | G33: × | H33: 0 | I33: ＝ | J33: 0 | K33: × | L33: 1 | M33: ＝ | N33: 0 | O33: 0 | P33: 0
A34: 50 | B34: 0 | C34: × | D34: 0.143 | E34: ＝ | F34: 0 | G34: × | H34: 0 | I34: ＝ | J34: 0 | K34: × | L34: 1 | M34: ＝ | N34: 0 | O34: 0 | P34: 0
A35: 51 | B35: 0 | C35: × | D35: 0.143 | E35: ＝ | F35: 0 | G35: × | H35: 0 | I35: ＝ | J35: 0 | K35: × | L35: 1 | M35: ＝ | N35: 0 | O35: 0 | P35: 0
A36: 52 | B36: 0 | C36: × | D36: 0.143 | E36: ＝ | F36: 0 | G36: × | H36: 0 | I36: ＝ | J36: 0 | K36: × | L36: 1 | M36: ＝ | N36: 0 | O36: 0 | P36: 0
A37: 53 | B37: 0 | C37: × | D37: 0.143 | E37: ＝ | F37: 0 | G37: × | H37: 0 | I37: ＝ | J37: 0 | K37: × | L37: 1 | M37: ＝ | N37: 0 | O37: 0 | P37: 0
A38: 54 | B38: 0 | C38: × | D38: 0.143 | E38: ＝ | F38: 0 | G38: × | H38: 0 | I38: ＝ | J38: 0 | K38: × | L38: 1 | M38: ＝ | N38: 0 | O38: 0 | P38: 0
A39: 55 | B39: 0 | C39: × | D39: 0.143 | E39: ＝ | F39: 0 | G39: × | H39: 0 | I39: ＝ | J39: 0 | K39: × | L39: 1 | M39: ＝ | N39: 0 | O39: 0 | P39: 0
A40: 56 | B40: 0 | C40: × | D40: 0.143 | E40: ＝ | F40: 0 | G40: × | H40: 0 | I40: ＝ | J40: 0 | K40: × | L40: 1 | M40: ＝ | N40: 0 | O40: 0 | P40: 0
A41: 57 | B41: 0 | C41: × | D41: 0.143 | E41: ＝ | F41: 0 | G41: × | H41: 0 | I41: ＝ | J41: 0 | K41: × | L41: 1 | M41: ＝ | N41: 0 | O41: 0 | P41: 0
A42: 58 | B42: 0 | C42: × | D42: 0.143 | E42: ＝ | F42: 0 | G42: × | H42: 0 | I42: ＝ | J42: 0 | K42: × | L42: 1 | M42: ＝ | N42: 0 | O42: 0 | P42: 0
A43: 59 | B43: 0 | C43: × | D43: 0.143 | E43: ＝ | F43: 0 | G43: × | H43: 0 | I43: ＝ | J43: 0 | K43: × | L43: 1 | M43: ＝ | N43: 0 | O43: 0 | P43: 0
A44: 60 | B44: 0 | C44: × | D44: 0.143 | E44: ＝ | F44: 0 | G44: × | H44: 0 | I44: ＝ | J44: 0 | K44: × | L44: 1 | M44: ＝ | N44: 0 | O44: 0 | P44: 0
A45: 61 | B45: 0 | C45: × | D45: 0.143 | E45: ＝ | F45: 0 | G45: × | H45: 0 | I45: ＝ | J45: 0 | K45: × | L45: 1 | M45: ＝ | N45: 0 | O45: 0 | P45: 0
A46: 62 | B46: 0 | C46: × | D46: 0.143 | E46: ＝ | F46: 0 | G46: × | H46: 0 | I46: ＝ | J46: 0 | K46: × | L46: 1 | M46: ＝ | N46: 0 | O46: 0 | P46: 0
A47: 63 | B47: 0 | C47: × | D47: 0.143 | E47: ＝ | F47: 0 | G47: × | H47: 0 | I47: ＝ | J47: 0 | K47: × | L47: 1 | M47: ＝ | N47: 0 | O47: 0 | P47: 0
A48: 64 | B48: 0 | C48: × | D48: 0.143 | E48: ＝ | F48: 0 | G48: × | H48: 0 | I48: ＝ | J48: 0 | K48: × | L48: 1 | M48: ＝ | N48: 0 | O48: 0 | P48: 0
A49: 65 | B49: 0 | C49: × | D49: 0.143 | E49: ＝ | F49: 0 | G49: × | H49: 0 | I49: ＝ | J49: 0 | K49: × | L49: 1 | M49: ＝ | N49: 0 | O49: 0 | P49: 0
A50: 66 | B50: 0 | C50: × | D50: 0.143 | E50: ＝ | F50: 0 | G50: × | H50: 0 | I50: ＝ | J50: 0 | K50: × | L50: 1 | M50: ＝ | N50: 0 | O50: 0 | P50: 0
A51: 67 | B51: 0 | C51: × | D51: 0.143 | E51: ＝ | F51: 0 | G51: × | H51: 0 | I51: ＝ | J51: 0 | K51: × | L51: 1 | M51: ＝ | N51: 0 | O51: 0 | P51: 0
A52: 68 | B52: 0 | C52: × | D52: 0.143 | E52: ＝ | F52: 0 | G52: × | H52: 0 | I52: ＝ | J52: 0 | K52: × | L52: 1 | M52: ＝ | N52: 0 | O52: 0 | P52: 0
L53: 合計 | N53: =SUM(N14:N52) -> 1999999

Sheet 償却率
A1: 耐用年数 | B1: 償却率
A2: 2 | B2: 0.5
A3: 3 | B3: 0.334
A4: 4 | B4: 0.25
A5: 5 | B5: 0.2
A6: 6 | B6: 0.167
A7: 7 | B7: 0.143
A8: 8 | B8: 0.125
A9: 9 | B9: 0.112
A10: 10 | B10: 0.1
A11: 11 | B11: 0.091
A12: 12 | B12: 0.084
A13: 13 | B13: 0.077
A14: 14 | B14: 0.072
A15: 15 | B15: 0.067
A16: 16 | B16: 0.063
A17: 17 | B17: 0.059
A18: 18 | B18: 0.056
A19: 19 | B19: 0.053
A20: 20 | B20: 0.05
A21: 21 | B21: 0.048
A22: 22 | B22: 0.046
A23: 23 | B23: 0.044
A24: 24 | B24: 0.042
A25: 25 | B25: 0.04
A26: 26 | B26: 0.039
A27: 27 | B27: 0.038
A28: 28 | B28: 0.036
A29: 29 | B29: 0.035
A30: 30 | B30: 0.034
A31: 31 | B31: 0.033
A32: 32 | B32: 0.032
A33: 33 | B33: 0.031
A34: 34 | B34: 0.03
A35: 35 | B35: 0.029
A36: 36 | B36: 0.028
A37: 37 | B37: 0.028
A38: 38 | B38: 0.027
A39: 39 | B39: 0.026
A40: 40 | B40: 0.025
A41: 41 | B41: 0.025
A42: 42 | B42: 0.024
A43: 43 | B43: 0.024
A44: 44 | B44: 0.023
A45: 45 | B45: 0.023
A46: 46 | B46: 0.022
A47: 47 | B47: 0.022
A48: 48 | B48: 0.021
A49: 49 | B49: 0.021
A50: 50 | B50: 0.02

Sheet 作成に係る計算表 (記入例)
A1: 収支状況報告書作成に係る計算表
W2: 集落協定
A3: １ 交付金に係る配分額及び共同取組活動の支出額
A4: （１）配分総額
I5: 総 額（円） | N5: 配分等の基礎
B6: ①個人配分分 | I6: 330000 | N6: 交付金の５０％を面積で按分
B7: ②共同取組活動分 | I7: 660000 | N7: 交付金の５０％を均等割りで按分 （早期交付分330,000含む）
B8: ③合計 | I8: =SUM(I6:M7) -> 990000
A9: （２）共同取組活動支出額
B10: 支出項目 | L10: 支出額（円） | Q10: 備考
B11: ⑤共同取組活動費 | C11: ④役員報酬等 | D11: 役員報酬 | L11: 50000 | Q11: 会長20,000×1名、役員10,000×3名
D12: 日当 | L12: 50000 | Q12: 作業日当 5,000円×10名
D13: その他手当等
D14: ④合計額 | L14: =SUM(L11:P13) -> 100000
C15: 鳥獣害防止対策費 | L15: 150000 | Q15: 防護柵資材代
C16: 水路・農道等の管理費 | L16: 50000 | Q16: 水路補修資材代
C17: 共同利用機械購入費 | L17: 660000 | Q17: 乗用草刈機 １台 共同所有
B23: ⑤共同取組活動費合計額（④を含む） | L23: =L14+SUM(L15:P22) -> 960000 | Q23: 内訳：過年度積立分30万円 29年度分66万円
B24: ⑥ | C24: ⑤のうち、必要経費に該当しない経費の合計額
B25: 残（積立・繰越）額 | Q25: 過年残（積立）額累計

Sheet 協定参加者別 (記入例)
M1: 平成 年 月 日
A3: ="平成"&P3&"年分【平成"&P3&"年1月1日～平成"&P3&"年12月31日】" ->  | O3: 年→ | P3: ='３．収支状況報告書'!#REF! -> 
A4: 確定申告に係る中山間地域等直接支払交付金収支状況報告書
J6: 集落協定名 | K6: ●●集落協定
J8: 集落協定代表者 | K8: ●● ●● | N8: ㊞
J10: 該当行政区名 | K10: ●●町 | L10: ●●
A12: No. | B12: 氏名 | C12: 収入 | G12: 支出 | M12: 所得金額 | N12: 備考
C13: 交付金 | F13: 役員報酬等 | G13: ⑤ 共同取組活動分 | K13: ⑨ | L13: ⑩
C14: ① | D14: ② | E14: ③ | F14: ④ | G14: 支出額 | H14: ⑥ ⑤のうち | I14: ⑦ ⑤のうち | J14: ⑧ | K14: 減価償却費 | L14: 必要経費 （⑧+⑨）
C15: 個人配分分 | D15: 共同取組活動分 | E15: 合計 （①＋②） | F15: ②のうち個人が受領した額 | H15: 必要経費に該当しない支出額 | I15: 減価償却資産 の取得金額 | J15: 差引計 （⑤-⑥-⑦） | M15: （③-⑩＋④）
A16: 集落合計 | C16: 円 | D16: 円 | E16: 円 | F16: 円 | G16: 円 | H16: 円 | I16: 円 | J16: 円 | K16: 円 | L16: 円 | M16: 円
C17: =SUM(C18:C75) -> 330000 | D17: =SUM(D18:D75) -> 660000 | E17: =C17+D17 -> 990000 | F17: =SUM(F18:F75) -> 100000 | G17: =SUM(G18:G75) -> 960000 | H17: =SUM(H18:H75) -> 0 | I17: =SUM(I18:I75) -> 660000 | J17: =G17-H17-I17 -> 300000 | K17: =SUM(K18:K75) -> 62920 | L17: =J17+K17 -> 362920 | M17: =E17-L17+F17 -> 727080
A18: 1 | B18: ○○ 太郎 | C18: 60000 | D18: 132000 | E18: =IF(C18="","",C18+D18) -> 192000 | F18: 30000 | G18: 192000 | I18: 132000 | J18: =IF(G18="","",G18-H18-I18) -> 60000 | K18: 12584 | L18: =IF(G18="","",J18+K18) -> 72584 | M18: =IF(G18="","",E18-L18+F18) -> 149416
A19: 2 | B19: □□ 二郎 | C19: 70000 | D19: 132000 | E19: 202000 | F19: 20000 | G19: 192000 | I19: 132000 | J19: 60000 | K19: 12584 | L19: 72584 | M19: =IF(G19="","",E19-L19+F19) -> 149416
A20: 3 | B20: △△ 三郎 | C20: 50000 | D20: 132000 | E20: 182000 | F20: 20000 | G20: 192000 | I20: 132000 | J20: 60000 | K20: 12584 | L20: 72584 | M20: 129416
A21: 4 | B21: ●● 四郎 | C21: 50000 | D21: 132000 | E21: 182000 | F21: 20000 | G21: 192000 | I21: 132000 | J21: 60000 | K21: 12584 | L21: 72584 | M21: 129416
A22: 5 | B22: ■■ 五郎 | C22: 100000 | D22: 132000 | E22: 232000 | F22: 10000 | G22: 192000 | I22: 132000 | J22: 60000 | K22: 12584 | L22: 72584 | M22: 169416
A23: 6
A24: 7
A25: 8
A26: 9
A27: 10
A28: 11
A29: 12
A30: 13
A31: 14
A32: 15
A33: 16
A34: 17
A35: 18
A36: 19
A37: 20
A38: 21
A39: 22
A40: 23
A41: 24
A42: 25
A43: 26
A44: 27
A45: 28
A46: 29
A47: 30
A48: 31
A49: 32
A50: 33
A51: 34
A52: 35
A53: 36
A54: 37
A55: 38
A56: 39
A57: 40
A58: 41
A59: 42
A60: 43
A61: 44
A62: 45
A63: 46
A64: 47
A65: 48
A66: 49
A67: 50
A68: 51
A69: 52
A70: 53 | E70: =IF(C70="","",C70+D70) -> 
A71: 54
A72: 55
A73: 56
A74: 57
A75: 58
